{"text_format":"1","workbook":"xlsx","n_sheets":8,"sheets":["Benvenuto","Lotto5_R840_1","Lotto5_R840_2","Lotto5_R840_3","Altre_Opzioni","Riepilogo_ordine","ConfigurationTS4L6","Tabella_prezzi"],"not_rendered":{"charts":0,"images":7,"macros":1,"external_links":0,"defined_names":39,"comments":0,"pivot_tables":0},"unopened":[],"bounds":{"document_bytes":16777216,"sheet_cells":100000,"rows_first":2000,"rows_last":500,"rows_between":2000,"halvings":0,"cell_chars":16384,"cell_head_chars":4096},"cells_cut":0,"cells_raw":0,"read":"whole","date_system":"1900"}

{"sheet":"Benvenuto","index":0,"n_rows":28,"n_cols":17,"rows_kept":28,"cut":false,"hidden":false,"merged":[[2,4,42,13],[2,15,2,16],[4,15,4,16],[6,15,6,16],[27,15,29,16]]}
[]
[]
[null,null,null,null,null,null,null,null,null,null,null,null,null,null,null,"LEGENDA"]
[null,null,null,null,null,null,null,null,null,null,null,null,null,null,null,"Campi Non Editabili","Campi Editabili"]
[]
[null,null,null,null,null,null,null,null,null,null,null,null,null,null,null,"Opzioni 20%","Qtà 20%"]
[]
[null,null,null,null,null,null,null,null,null,null,null,null,null,null,null,"Errore nella Selezione","Verifica Positiva"]
[]
[]
[]
[]
[]
[]
[]
[]
[]
[]
[]
[]
[]
[]
[]
[]
[]
[]
[]
[null,null,null,null,null,null,null,null,null,null,null,null,null,null,null,"Listino Prezzi Consip"]

{"sheet":"Lotto5_R840_1","index":1,"n_rows":112,"n_cols":26,"rows_kept":112,"cut":false,"hidden":false,"merged":[[23,7,24,7],[26,7,27,7],[111,8,111,11],[112,8,123,11],[56,10,56,11],[58,10,58,11],[40,8,41,8],[100,9,101,9],[103,9,104,9],[65,9,66,9],[62,9,63,9],[88,10,88,11],[1,8,2,8],[3,8,5,8],[64,13,66,14],[40,13,41,13],[3,10,4,10],[11,9,12,9],[14,9,15,9],[17,9,18,9],[37,9,38,9],[5,10,6,10],[37,11,37,13],[18,11,20,11]]}
[]
[null,null,null,null,null,null,null,null,"Convenzione \nTecnologie Server 4 - Lotto 5",null,null,null,null,{"$f":"IF(Riepilogo_ordine!K70>Riepilogo_ordine!G70,\"Superata Quota 20%\",\"\")","v":""}]
[null,null,null,null,null,null,null,null,null,null,null,null,null,"Articoli 20% Totali",null,null,null,null,"Check CPU","Check RAM","Check Dischi","Check Win","Check Gar","Check RAM","Check Tot"]
[null,null,null,null,null,null,null,null,null,null,{"$f":"IF(Y4>1,\"Errori nella Configurazione\",IF(S4>0,\"Errore nella Selezione della CPU\",IF(T4>0,\"Errore Nella Selezione della RAM\",IF(X4>0,\"Errore Nella selezione della RAM\",IF(U4>0,\"Errore Nella selezione dei Dischi\",IF(V4>0,\"Errore nella Selezione Licenze Windows\",IF(W4>0,\"Errore nella Selezione Estensione di Garanzia\",\"\")))))))","v":""},"Totale Altre Opzioni",null,{"$f":"Riepilogo_ordine!K70","v":0},null,null,null,null,{"$f":"IF(L21<>\"\",1,0)","v":0},{"$f":"IF(L24<>\"\",1,0)","v":0},{"$f":"IF(N41<>\"\",1,0)","v":0},{"$f":"IF(L30<>\"\",1,0)","v":0},{"$f":"IF(L104<>\"\",1,0)","v":0},{"$f":"IF(H27=\"Configurazione RAM non congrua selezionare RAM 32GB\",1,0)","v":0},{"$f":"SUM(S4:X4)","v":0}]
[null,null,null,null,null,null,null,null,null,null,null,{"$f":"Altre_Opzioni!J3","v":0},null,"Quota Residua 20 %"]
[null,null,null,null,null,null,null,null,null,null,"Guida alla Convenzione","Totale Configurazione",null,{"$f":"Riepilogo_ordine!G71","v":0}]
[null,null,null,null,null,null,null,null,{"$f":"IF(Riepilogo_ordine!P8>0,\"Compilare i Dati Necessari all'Ordine per Stampare in PDF\",\"Dati Completi\")","v":"Compilare i Dati Necessari all'Ordine per Stampare in PDF"},null,null,{"$f":"$L$110","v":0},null,"Totale Ordine\nIva Esclusa"]
[null,null,null,null,null,null,null,null,"DELL POWEREDGE R840",null,"Quantità Server",0,null,{"$f":"Riepilogo_ordine!K71","v":0}]
[]
[]
[]
[null,null,null,null,null,null,null,null,"Base",null,null,null,null,null,null,null,null,null,null,null,null,"PowerEdge R840 Server (2TB)"]
[null,null,null,null,null,null,null,null,"PowerEdge R840 Server (General Purpose)",null,{"$f":"IF($L$8>0,\"TS4L5-SRV\",\"\")","v":""},{"$f":"IF($L$8>0,1,\"\")","v":""},null,{"$f":"R13","v":4022.56},null,null,null,{"$f":"VLOOKUP($I$13,TS4L6_Chassis,10,FALSE)","v":4022.56},null,{"$f":"VLOOKUP($I13,TS4L6_Chassis,12,FALSE)","v":"L5N01"},null,{"$f":"IF(I13=ConfigurationTS4L6!A9,\"nVME\",\"\")","v":""},{"$f":"IF(I13=ConfigurationTS4L6!A10,\"vSAN\",\"\")","v":""},{"$f":"IF(K16=\"TS3L4-GPUSW\",1,IF(K16=\"TS3L4-GPUDW\",1,\"\"))","v":""}]
[null,null,null,null,null,null,null,null,null,null,null,null,null,null,null,null,null,null,null,null,null,null,null,null,{"$f":"IF($I$22=\"No Additional Processor\",ConfigurationTS4L6!$A$17:$A$24,IF(Z27=\"2TB\",ConfigurationTS4L6!A51,ConfigurationTS4L6!$A$32:$A$47))","v":0}]
[null,null,null,null,null,null,null,null,"Chassis Configuration",null,{"$f":"IF($V$70=\"SW\",\"MAX 4 GPU\",IF($V$70=\"DW\",\"MAX 2 GPU\",\"\"))","v":""},null,null,null,null,null,null,null,null,null,null,null,null,null,128]
[null,null,null,null,null,null,null,null,{"$f":"IF($L$22=1,VLOOKUP($I$13,TS4L6_Chassis,3,FALSE),VLOOKUP($I$13,TS4L6_Chassis,2,FALSE))","v":"Chassis with Up to 8X 2.5 SAS/SATA"},null,{"$f":"IF($L$22=1,VLOOKUP($I$13,TS4L6_Chassis,13,FALSE),VLOOKUP($I$13,TS4L6_Chassis,13,FALSE))","v":""},{"$f":"IF(I13=V12,VLOOKUP($I$13,TS4L6_Chassis,7,FALSE),VLOOKUP($I$13,TS4L6_Chassis,6,FALSE))","v":0},null,{"$f":"S16","v":0},null,null,null,null,{"$f":"VLOOKUP($I13,TS4L6_Chassis,11,FALSE)","v":0},{"$f":"VLOOKUP($I13,TS4L6_Chassis,14,FALSE)","v":""},null,"Chassis with Up to 24 x 2.5'' Hard Drives for 2CPU Configuration",1,null,192]
[null,null,null,null,null,null,null,null,null,null,null,null,null,null,null,null,null,null,null,null,null,null,null,null,256]
[null,null,null,null,null,null,null,null,"Processor",null,null,null,null,null,null,null,null,null,null,null,null,null,null,null,320]
[null,null,null,null,null,null,null,null,"2 x Intel Xeon Gold 6252N, 2.3G, 24C/48T, 10.4GT/s, 35.75M Cache, Turbo, HT (150W) DDR4-2933",null,null,{"$f":"IF(AND(I22=\"No Additional Processor\",Z27=\"2TB\"),\"Selezionare Processore Aggiuntivo per 2 TB RAM\",\"\")","v":""},null,null,null,null,null,{"$f":"IF(L16=1,VLOOKUP($I$19,TS4L6_CPU,11,FALSE),VLOOKUP($I$19,TS4L6_CPU,11,FALSE))","v":0},{"$f":"IF(L16=1,VLOOKUP($I$19,TS4L6_CPU,11,FALSE),VLOOKUP($I$19,TS4L6_CPU,11,FALSE))","v":0},{"$f":"IF(S19=0,0,VLOOKUP($I19,TS4L6_CPU,12,FALSE))","v":0},null,null,null,null,384]
[null,null,null,null,null,null,null,null,null,null,null,null,null,null,null,null,null,null,null,null,null,null,null,null,448]
[null,null,null,null,null,null,null,null,"Additional Processor",null,null,null,null,null,null,null,null,null,null,null,null,null,null,null,512]
[null,null,null,null,null,null,null,null,"No Additional Processor",null,{"$f":"IF(L16=1,VLOOKUP($I$19,TS4L6_CPU,13,FALSE),VLOOKUP($I$22,TS4L6_CPU,13,FALSE))","v":""},{"$f":"IF(L16=1,VLOOKUP($I$19,TS4L6_CPU,7,FALSE),VLOOKUP($I$22,TS4L6_CPU,7,FALSE))","v":""},null,{"$f":"R22","v":""},null,null,null,{"$f":"IF(L16=1,VLOOKUP($I$19,TS4L6_CPU,10,FALSE),VLOOKUP($I$22,TS4L6_CPU,10,FALSE))","v":""},{"$f":"IF(L16=1,VLOOKUP($I$19,TS4L6_CPU,11,FALSE),VLOOKUP($I$22,TS4L6_CPU,11,FALSE))","v":""},{"$f":"IF(L16=1,VLOOKUP(I19,TSL6_ALL,12,FALSE),VLOOKUP($I22,TS4L6_CPU,12,FALSE))","v":""},null,{"$f":"IF(L16=1,\"AMD7413 2.65GHz,24C/48T,128M,180W,3200CK\",I22)","v":"No Additional Processor"}]
[]
[null,null,null,null,null,null,null,{"$f":"IF(I25=0,\"\",\"Comprese nella configurazione Base e NON SOSTITUIBILI\")","v":"Comprese nella configurazione Base e NON SOSTITUIBILI"},"Memoria installata di BASE (GB)",null,null,{"$f":"IF(AND(L22=0,I25>768),\"Selezionare Quantità Ram Corretta\",\"\")","v":""}]
[null,null,null,null,null,null,null,null,{"$f":"IF(Z27=\"2TB\",0,256)","v":256},null,{"$f":"V25","v":"TS4L5-RAM32"},{"$f":"IF(Z27=\"2TB\",0,W25)","v":8},null,{"$f":"IF(I25=0,\"\",\"Costo compreso nella macchina base\")","v":"Costo compreso nella macchina base"},null,null,null,null,null,null,null,"TS4L5-RAM32",8,{"$f":"IF(L24<>\"\",\"\",IF($L$22=1,VLOOKUP($I$25,TS4L6_RAM2CPU,10,FALSE),VLOOKUP($I$25,TS4L6_RAM1CPU,10,FALSE)))","v":2053.12},{"$f":"IF(L24<>\"\",\"\",IF($L$22=1,VLOOKUP($I$25,TS4L6_RAM2CPU,12,FALSE),VLOOKUP($I$25,TS4L6_RAM1CPU,12,FALSE)))","v":"L5N03"}]
[]
[null,null,null,null,null,null,null,{"$f":"IF(AND(K28=\"TS4L5-RAM64\",Z27<>\"2TB\",I28>0),\"Configurazione RAM non congrua selezionare RAM 32GB\",\"Memoria totale: \"& U27 & \"GB\")","v":"Memoria totale: 256GB"},"Memoria Aggiuntiva (GB) - In aggiunta ai 256 GB di base",null,"Selezionare Taglio RAM",{"$f":"IF(AND(Z27=\"\",I28=2048),\"Selezionare RAM Corretta\",IF(AND(L22=\"\",I28>512),\"Selezionare Quantità Ram aggiuntiva Corretta\",IF(AND(Z27=\"2TB\",I28<>2048),\"Selezionare Quantità Ram aggiuntiva Corretta\",IF(AND(Z27=\"2TB\",K28<>\"TS4L5-RAM64\"),\"Selezionare Taglio Ram 64\",IF(AND(L22=\"\",K28=\"TS4L5-RAM64\",I28>0),\"Selezionare Taglio RAM Corretto\",\"\")))))","v":""},null,null,null,null,null,null,null,null,{"$f":"SUM(I25,I28)","v":256},null,null,null,null,{"$f":"IF(I13=\"PowerEdge R840 Server (2TB)\",\"2TB\",\"\")","v":""}]
[null,null,null,null,null,null,null,null,0,null,"TS4L5-RAM32",{"$f":"W28","v":0},null,{"$f":"R28","v":""},null,null,null,{"$f":"IFERROR(X28,0)","v":""},null,{"$f":"Y28","v":""},null,{"$f":"IF(AND(I28=2048,Z27<>\"2TB\"),VLOOKUP($I$28,TS4L5_RAM4CPU,13,FALSE),IF(AND(Z27=\"2TB\",I28=2048),VLOOKUP($I$28,TS4L5_RAM2TB,13,FALSE),IF(AND($L$22=1,K28=\"TS4L5-RAM64\"),VLOOKUP($I$28,TS4L5_RAM4CPU,15,FALSE),IF(AND($L$22=\"\",K28=\"TS4L5-RAM64\"),VLOOKUP($I$28,TS4L5_RAM2CPU,15,FALSE),IF(AND($L$22=1,K28=\"TS4L5-RAM32\"),VLOOKUP($I$28,TS4L5_RAM4CPU,13,FALSE),IF(AND($L$22=\"\",K28=\"TS4L5-RAM32\"),VLOOKUP($I$28,TS4L5_RAM2CPU,13)))))))","v":""},{"$f":"IF(N28=\"Non Configurabile\",0,IF(AND(I28=2048,Z27<>\"2TB\"),VLOOKUP($I$28,TS4L5_RAM4CPU,7,FALSE),IF(AND(Z27=\"2TB\",I28=2048,K28=\"TS4L5-RAM64\"),VLOOKUP($I$28,TS4L5_RAM2TB,7,FALSE),IF(AND($L$22=1,K28=\"TS4L5-RAM64\"),VLOOKUP($I$28,TS4L5_RAM4CPU,17,FALSE),IF(AND($L$22=\"\",K28=\"TS4L5-RAM64\"),VLOOKUP($I$28,TS4L5_RAM2CPU,17,FALSE),IF(AND($L$22=1,K28=\"TS4L5-RAM32\"),VLOOKUP($I$28,TS4L5_RAM4CPU,7,FALSE),IF(AND($L$22=\"\",K28=\"TS4L5-RAM32\"),VLOOKUP($I$28,TS4L5_RAM2CPU,7,FALSE))))))))","v":0},{"$f":"IF(AND(I28=2048,Z27<>\"2TB\"),VLOOKUP($I$28,TS4L5_RAM4CPU,10,FALSE),IF(AND(Z27=\"2TB\",I28=2048),VLOOKUP($I$28,TS4L5_RAM2TB,10,FALSE),IF(AND($L$22=1,K28=\"TS4L5-RAM64\"),VLOOKUP($I$28,TS4L5_RAM4CPU,16,FALSE),IF(AND($L$22=\"\",K28=\"TS4L5-RAM64\"),VLOOKUP($I$28,TS4L5_RAM2CPU,16,FALSE),IF(AND($L$22=1,K28=\"TS4L5-RAM32\"),VLOOKUP($I$28,TS4L5_RAM4CPU,10,FALSE),IF(AND($L$22=\"\",K28=\"TS4L5-RAM32\"),VLOOKUP($I$28,TS4L5_RAM2CPU,10,FALSE)))))))","v":""},{"$f":"IF(AND(I28=2048,Z27<>\"2TB\"),VLOOKUP($I$28,TS4L5_RAM4CPU,12,FALSE),IF(AND(Z27=\"2TB\",I28=2048),VLOOKUP($I$28,TS4L5_RAM2TB,19,FALSE),IF(AND($L$22=1,K28=\"TS4L5-RAM64\"),VLOOKUP($I$28,TS4L5_RAM4CPU,19,FALSE),IF(AND($L$22=\"\",K28=\"TS4L5-RAM64\"),VLOOKUP($I$28,TS4L5_RAM2CPU,19,FALSE),IF(AND($L$22=1,K28=\"TS4L5-RAM32\"),VLOOKUP($I$28,TS4L5_RAM4CPU,12,FALSE),IF(AND($L$22=\"\",K28=\"TS4L5-RAM32\"),VLOOKUP($I$28,TS4L5_RAM2CPU,12,FALSE)))))))","v":""}]
[]
[null,null,null,null,null,null,null,null,"Operating System STANDARD",null,null,{"$f":"IF(AND(I31=\"Ubuntu Server 22.04 LTS 64 Bit\",L32>0),\"Deselezionare Licenze 2 Core\",IF(AND(L31=1,L32=0,I31=\"Ubuntu Server 22.04 LTS 64 Bit\"),\"\",IF(AND(L31=1,L32=0),\"Selezionare Licenze 2 Core\",IF(AND(L22=\"\",L32>64),\"Selezionare Licenze 2 Core Corrette\",IF(AND(L22=1,L32=16),\"Selezionare Licenze 2 Core Corrette\",IF(AND(L31=0,L32>0),\"Deselezionare Licenze 2 Core\",\"\"))))))","v":""}]
[null,null,null,null,null,null,null,null,"No Operating System",null,{"$f":"VLOOKUP($I$31,TS4L6_OS,13,FALSE)","v":""},{"$f":"IF(I31=\"Windows Server 2022,Standard,ROK,16CORE\",1,IF(I31=\"Ubuntu Server 22.04 LTS 64 Bit\",1,0))","v":0},null,{"$f":"R31","v":0},null,null,null,{"$f":"VLOOKUP($I$31,TS4L6_OS,10,FALSE)*L31","v":0},{"$f":"VLOOKUP($I$31,TS4L6_OS,11,FALSE)","v":0},{"$f":"VLOOKUP($I31,TSL6_ALL,12,FALSE)","v":""}]
[null,null,null,null,null,null,null,null,"Windows Server 2022 Standard Edition, Add License,2CORE",null,{"$f":"VLOOKUP($I$32,TS4L6_OS,13,FALSE)","v":"TS4L5-WINSRV2C"},null,null,{"$f":"R32","v":0},null,null,null,{"$f":"VLOOKUP($I$32,TS4L6_OS,10,FALSE)*L32","v":0},{"$f":"VLOOKUP($I$31,TS4L6_OS,11,FALSE)","v":0},{"$f":"VLOOKUP($I32,TSL6_ALL,12,FALSE)","v":"L5N24"}]
[]
[null,null,null,null,null,null,null,null,"Operating System Device CAL / User CAL"]
[null,null,null,null,null,null,null,null,"1-pack of Windows Server 2022/2019 Device CALs (STD or DC)",null,{"$f":"VLOOKUP($I$35,ConfigurationTS4L6!A57:X58,13,FALSE)","v":"TS4L5-WINDEVCAL"},0,null,{"$f":"R35","v":0},null,null,null,{"$f":"VLOOKUP($I$35,ConfigurationTS4L6!A57:O58,10,FALSE)*L35","v":0},{"$f":"VLOOKUP($I$31,TS4L6_OS,11,FALSE)","v":0},{"$f":"VLOOKUP($I35,TSL6_ALL,12,FALSE)","v":"L5N22"}]
[null,null,null,null,null,null,null,null,"1-pack of Windows Server 2022/2019 User CALs (STD or DC)",null,{"$f":"VLOOKUP($I$36,ConfigurationTS4L6!A58:X59,13,FALSE)","v":"TS4L5-WINUSRCAL"},0,null,{"$f":"R36","v":0},null,null,null,{"$f":"VLOOKUP($I$36,ConfigurationTS4L6!A58:O59,10,FALSE)*L36","v":0},{"$f":"VLOOKUP($I$31,TS4L6_OS,11,FALSE)","v":0},{"$f":"VLOOKUP($I36,TSL6_ALL,12,FALSE)","v":"L5N23"}]
[]
[null,null,null,null,null,null,null,null,"Disk Controller  (PCI SLOT 3)",null,{"$f":"IF(AND(L39=\"\",I13=\"PowerEdge R940 Server (vSAN Ready)\"),\"Per vSAN Selezionare Controller HBA330\",\"\")","v":""},{"$f":"IF(AND(I13=\"PowerEdge R940 Server (vSAN Ready)\",L61<>1),\"Selezionando questo controller in una soluzione vSAN, per il boot si deve utilizzare la componentete 'BOSS Card'\",\"\")","v":""}]
[null,null,null,null,null,null,{"$f":"IF($K$16=\"TS3L4-VSAN\",\"vSAN HCL\",\"\")","v":""},null,{"$f":"IF(W13=\"vSAN\",ConfigurationTS4L6!A90,ConfigurationTS4L6!A89)","v":"PERC H750 Adapter"},null,{"$f":"VLOOKUP($I39,TS4L6_CRTL,13,FALSE)","v":""},{"$f":"VLOOKUP($I39,TS4L6_CRTL,7,FALSE)","v":""},null,{"$f":"R39+S39","v":0},null,null,null,{"$f":"IF(I39=ConfigurationTS4L6!A36,0,VLOOKUP($I39,TS4L6_CRTL,10,FALSE))","v":0},{"$f":"VLOOKUP($I39,TS4L6_CRTL,11,FALSE)","v":0},{"$f":"IF(I16=\"Chassis with Up to 24 x 2.5'' Hard Drives for 2CPU Configuration\",\"L4N34\",IF(V13=\"VxFlex\",\"L4N34\",IF(N7=\"\",\"\",VLOOKUP($I39,TSL6_ALL,12,FALSE))))","v":"L5N44"},null,{"$f":"IF(K39=\"TS3L4-HBA330-L\",1,0)","v":0},{"$f":"IF(I39=\"PERC H740P RAID Controller, 8GB NV Cache\",1,0)","v":0},{"$f":"IF(Y39=1,Y39*V39,W39*V39)","v":0},{"$f":"IF(N7=\"\",1,0)","v":0}]
[]
[null,null,null,null,null,null,null,null,"Hard Drivers Bays n° 8 - 2 bay occupate dai dischi 960GB SSD di base",null,"Usati","Disponibili",null,{"$f":"IF(L42<0,\"Troppi Dischi\",\"\")","v":""}]
[null,null,null,null,null,null,null,null,null,null,{"$f":"SUM(L44:L56)","v":2},{"$f":"8-K42","v":6}]
[]
[null,null,null,null,null,null,null,null,{"$f":"ConfigurationTS4L6!A65","v":"2.4TB 10k SAS ISE 12Gbps"},null,{"$f":"VLOOKUP($I44,TS4L6_HDD,13,FALSE)","v":"TS4L5-HDD2TB"},0,null,{"$f":"R44","v":0},null,null,null,{"$f":"VLOOKUP($I44,TS4L6_HDD,10,FALSE)*L44","v":0},{"$f":"VLOOKUP($I44,TS4L6_HDD,11,FALSE)","v":0},{"$f":"VLOOKUP($I44,TSL6_ALL,12,FALSE)","v":"L5N11"}]
[]
[null,null,null,null,null,null,null,null,{"$f":"ConfigurationTS4L6!A66","v":"1.2TB 10K RPM SAS ISE 12Gbps"},null,{"$f":"VLOOKUP($I46,TS4L6_HDD,13,FALSE)","v":"TS4L5-HDD1TB"},0,null,{"$f":"R46","v":0},null,null,null,{"$f":"VLOOKUP($I46,TS4L6_HDD,10,FALSE)*L46","v":0},{"$f":"VLOOKUP($I46,TS4L6_HDD,11,FALSE)","v":0},{"$f":"VLOOKUP($I46,TSL6_ALL,12,FALSE)","v":"L5N12"}]
[]
[null,null,null,null,null,null,null,null,{"$f":"ConfigurationTS4L6!A67","v":"3.84TB SSD SAS ISE RI 12Gbps"},null,{"$f":"VLOOKUP($I48,TS4L6_HDD,13,FALSE)","v":"TS4L5-SSD-RI3,8TB"},0,null,{"$f":"R48","v":0},null,null,null,{"$f":"VLOOKUP($I48,TS4L6_HDD,10,FALSE)*L48","v":0},{"$f":"VLOOKUP($I48,TS4L6_HDD,11,FALSE)","v":0},{"$f":"VLOOKUP($I48,TSL6_ALL,12,FALSE)","v":"L5N13"}]
[]
[null,null,null,null,null,null,null,null,{"$f":"ConfigurationTS4L6!A68","v":"1.92TB SSD SAS ISE RI 12Gbps"},null,{"$f":"VLOOKUP($I50,TS4L6_HDD,13,FALSE)","v":"TS4L5-SSD-RI1,6TB"},0,null,{"$f":"R50","v":0},null,null,null,{"$f":"VLOOKUP($I50,TS4L6_HDD,10,FALSE)*L50","v":0},{"$f":"VLOOKUP($I50,TS4L6_HDD,11,FALSE)","v":0},{"$f":"VLOOKUP($I50,TSL6_ALL,12,FALSE)","v":"L5N14"}]
[]
[null,null,null,null,null,null,null,null,{"$f":"ConfigurationTS4L6!A69","v":"1.6TB SSD SAS ISE MU 12Gbps"},null,{"$f":"VLOOKUP($I52,TS4L6_HDD,13,FALSE)","v":"TS4L5-SSD-MU1,6TB"},0,null,{"$f":"R52","v":0},null,null,null,{"$f":"VLOOKUP($I52,TS4L6_HDD,10,FALSE)*L52","v":0},{"$f":"VLOOKUP($I52,TS4L6_HDD,11,FALSE)","v":0},{"$f":"VLOOKUP($I52,TSL6_ALL,12,FALSE)","v":"L5N15"}]
[]
[null,null,null,null,null,null,null,null,{"$f":"ConfigurationTS4L6!A70","v":"960GB SSD SAS ISE RI 12Gbps"},null,{"$f":"VLOOKUP($I54,TS4L6_HDD,13,FALSE)","v":"TS4L5-SSD-RI800GB"},2,null,{"$f":"R54","v":0},null,null,null,{"$f":"IF(L54>2,(VLOOKUP($I54,TS4L6_HDD,10,FALSE)*(L54-2)),0)","v":0},{"$f":"VLOOKUP($I54,TS4L6_HDD,11,FALSE)*L54","v":0},{"$f":"VLOOKUP($I54,TSL6_ALL,12,FALSE)","v":"L5N16"}]
[]
[null,null,null,null,null,null,null,null,{"$f":"ConfigurationTS4L6!A71","v":"800GB SSD SAS ISE Mix Use 12Gbps"},null,{"$f":"VLOOKUP($I56,TS4L6_HDD,13,FALSE)","v":"TS4L5-SSD-MU800GB"},0,null,{"$f":"R56","v":0},null,null,null,{"$f":"VLOOKUP($I56,TS4L6_HDD,10,FALSE)*L56","v":0},{"$f":"VLOOKUP($I56,TS4L6_HDD,11,FALSE)*L56","v":0},{"$f":"VLOOKUP($I56,TSL6_ALL,12,FALSE)","v":"L5N17"}]
[]
[null,null,null,null,null,null,null,null,{"$f":"ConfigurationTS4L6!A72","v":"7.68TB SSD RI SAS ISE 12Gbps"},null,{"$f":"VLOOKUP($I58,TS4L6_HDD,13,FALSE)","v":"TS4L5-SSD7,68RI"},0,null,{"$f":"R58+S58","v":0},null,null,null,{"$f":"VLOOKUP($I58,TS4L6_HDD,11,FALSE)*L58","v":0},{"$f":"VLOOKUP($I58,TS4L6_HDD,10,FALSE)*L58","v":0},{"$f":"VLOOKUP($I58,TSL6_ALL,12,FALSE)","v":"L5N30"}]
[]
[null,null,null,null,null,null,null,null,"BOSS controller card"]
[null,null,null,null,null,null,null,null,{"$f":"IF(Z27=\"2TB\",ConfigurationTS4L6!A95,ConfigurationTS4L6!A93)","v":"No Boss card"},null,{"$f":"IF(S61>0,VLOOKUP($I61,TS4L6_ISDM,13,FALSE),\"\")","v":""},{"$f":"VLOOKUP($I61,TS4L6_ISDM,7,FALSE)","v":""},null,null,null,null,null,{"$f":"VLOOKUP($I61,TS4L6_ISDM,10,FALSE)","v":0},{"$f":"VLOOKUP($I61,TS4L6_ISDM,11,FALSE)","v":0},{"$f":"VLOOKUP($I61,TSL6_ALL,12,FALSE)","v":""}]
[]
[null,null,null,null,null,null,null,null,"Power Supply",{"$f":"IF(N63=\"\",\"\",U64)","v":""}]
[null,null,null,null,null,null,null,null,{"$f":"ConfigurationTS4L6!A80","v":"Dual, Hot-plug, Redundant Power Supply (1+1), 1600W, 250 Volt"},null,{"$f":"VLOOKUP($I64,TS4L6_PSU,13,FALSE)","v":"TS4L5-PSU1600W"},{"$f":"VLOOKUP($I64,TS4L6_PSU,7,FALSE)","v":1},null,null,null,null,null,{"$f":"VLOOKUP($I64,TS4L6_PSU,10,FALSE)","v":0},{"$f":"VLOOKUP($I64,TS4L6_PSU,11,FALSE)","v":0},{"$f":"VLOOKUP($I64,TSL6_ALL,12,FALSE)","v":"L5N49"},"⚠"]
[]
[null,null,null,null,null,null,null,null,"Embedded Systems Management"]
[null,null,null,null,null,null,null,null,"iDRAC9,Enterprise"]
[]
[]
[null,null,null,null,null,null,null,null,null,null,null,null,null,null,null,null,null,null,null,null,{"$f":"IF($K$16=\"TS3L4-GPUDW\",\"1\",IF($K$16=\"TS3L4-GPUSW\",\"20\",IF($L$22=1,\"300\",\"4000\")))","v":"4000"}]
[null,null,null,null,null,null,null,null,"PCI Slot 1 Processor 1 x8 PCIe for HL/FH"]
[null,null,null,null,null,null,null,null,"",null,{"$f":"VLOOKUP($I72,TSL6_ALL,13,FALSE)","v":""},{"$f":"VLOOKUP($I72,TSL6_ALL,7,FALSE)","v":""},null,{"$f":"R72+S72","v":0},null,null,null,{"$f":"VLOOKUP($I72,TS4L5_PCI,10,FALSE)","v":0},{"$f":"VLOOKUP($I72,TS4L5_PCI,11,FALSE)","v":0},{"$f":"VLOOKUP($I72,TS4L5_PCI,12,FALSE)","v":""}]
[]
[null,null,null,null,null,null,null,null,"PCI Slot 2 Processor 1 x8 PCIe  for HL/FH"]
[null,null,null,null,null,null,null,null,"",null,{"$f":"VLOOKUP($I75,TSL6_ALL,13,FALSE)","v":""},{"$f":"VLOOKUP($I75,TSL6_ALL,7,FALSE)","v":""},null,{"$f":"R75+S75","v":0},null,null,null,{"$f":"VLOOKUP($I75,TS4L5_PCI,10,FALSE)","v":0},{"$f":"VLOOKUP($I75,TS4L5_PCI,11,FALSE)","v":0},{"$f":"VLOOKUP($I75,TS4L5_PCI,12,FALSE)","v":""},{"$f":"IF(L75=\"\",\"OK\",IF(V75+L75=2,\"Errore\",\"OK\"))","v":"OK"}]
[]
[null,null,null,null,null,null,null,null,"PCI Slot 3 Processor 1 x16 PCIe  for HL/LP"]
[null,null,null,null,null,null,null,null,"Riservato per PERC",null,null,null,null,{"$f":"R78+S78","v":0},null,null,null,0,0,{"$f":"\"\"","v":""}]
[]
[null,null,null,null,null,null,null,null,"PCI Slot 4 Processor 2 x16 PCIe  for HL/LP",{"$f":"IF($V$70=\"SW\",\"GPU Slot\",IF($V$70=\"DW\",\"GPU Slot\",\"\"))","v":""}]
[null,null,null,null,null,null,null,null,"",null,{"$f":"VLOOKUP($I81,TSL6_ALL,13,FALSE)","v":""},{"$f":"VLOOKUP($I81,TSL6_ALL,7,FALSE)","v":""},null,{"$f":"R81+S81","v":0},null,null,null,{"$f":"VLOOKUP($I81,TS4L5_PCI_LP,10,FALSE)","v":0},{"$f":"VLOOKUP($I81,TS4L5_PCI_LP,11,FALSE)","v":0},{"$f":"VLOOKUP($I81,TS4L5_PCI_LP,12,FALSE)","v":""}]
[]
[null,null,null,null,null,null,null,null,"PCI Slot 5 Processor 2 x8 PCIe  for HL/FH",{"$f":"IF($V$70=\"SW\",\"GPU Slot\",\"\")","v":""},null,{"$f":"IF(AND(L84=1,L61=1),\"In caso di BOSS card lo slot 5 è riservato\",\"\")","v":""}]
[null,null,null,null,null,null,null,null,"Riservato Boss Card",null,{"$f":"VLOOKUP($I84,TSL6_ALL,13,FALSE)","v":""},{"$f":"VLOOKUP($I84,TSL6_ALL,7,FALSE)","v":""},null,{"$f":"R84+S84","v":0},null,null,null,{"$f":"VLOOKUP($I84,TS4L5_PCI,10,FALSE)","v":0},{"$f":"VLOOKUP($I84,TS4L5_PCI,11,FALSE)","v":0},{"$f":"VLOOKUP($I84,TS4L5_PCI,12,FALSE)","v":""},{"$f":"IF(L84=\"\",\"OK\",IF(V84+L84=2,\"Errore\",\"OK\"))","v":"OK"}]
[]
[null,null,null,null,null,null,null,null,"PCI Slot 6 Processor 2 x8 PCIe  for HL/FH"]
[null,null,null,null,null,null,null,null,"",null,{"$f":"VLOOKUP($I87,TSL6_ALL,13,FALSE)","v":""},{"$f":"IF($V$13=\"VxFlex\",1,VLOOKUP($I87,TSL6_ALL,7,FALSE))","v":""},null,{"$f":"R87+S87","v":0},null,null,null,{"$f":"VLOOKUP($I87,TS4L5_PCI,10,FALSE)","v":0},{"$f":"VLOOKUP($I87,TS4L5_PCI,11,FALSE)","v":0},{"$f":"VLOOKUP($I87,TS4L5_PCI,12,FALSE)","v":""}]
[]
[null,null,null,null,null,null,null,null,"SFP+ Transceivers 10 Gbps",null,"Si ricorda che nelle schede di Base sono già Compresi gli SFP"]
[null,null,null,null,null,null,null,null,{"$f":"ConfigurationTS4L6!A147","v":"SFP+ SR Optic for all SFP+ ports except high temp validation warning cards"},null,{"$f":"VLOOKUP($I90,TS4L6_SFP,13,FALSE)","v":"TS4L5-OT10GB"},0,null,{"$f":"R90+S90","v":0},null,null,null,{"$f":"VLOOKUP($I90,TS4L6_SFP,10,FALSE)","v":0},{"$f":"VLOOKUP($I90,TS4L6_SFP,11,FALSE)*L90","v":0},{"$f":"IF(L90>0,VLOOKUP($I90,TS4L6_SFP,12,FALSE),\"\")","v":""}]
[]
[null,null,null,null,null,null,null,null,"SFP28 - 25GbE"]
[null,null,null,null,null,null,null,null,{"$f":"ConfigurationTS4L6!A148","v":"SFP28 SR Optic, 25GbE, 85C, for all SFP28 ports"},null,{"$f":"VLOOKUP($I93,TS4L6_SFP,13,FALSE)","v":"TS4L5-OT25GB"},0,null,{"$f":"R93+S93","v":0},null,null,null,{"$f":"VLOOKUP($I93,TS4L6_SFP,10,FALSE)","v":0},{"$f":"VLOOKUP($I93,TS4L6_SFP,11,FALSE)*L93","v":0},{"$f":"IF(L93>0,VLOOKUP($I93,TS4L6_SFP,12,FALSE),\"\")","v":""}]
[]
[null,null,null,null,null,null,null,null,"QSFP+ - 40GbE"]
[null,null,null,null,null,null,null,null,{"$f":"ConfigurationTS4L6!A149","v":"Dell Networking, Transceiver, 40GbE QSFP+ SR4 Optics, MPO, 850nmWavelength, 100-150m Reach on OM3/OM4"},null,{"$f":"VLOOKUP($I96,TS4L6_SFP,13,FALSE)","v":"TS4L5-OT40GB"},0,null,{"$f":"R96+S96","v":0},null,null,null,{"$f":"VLOOKUP($I96,TS4L6_SFP,10,FALSE)","v":0},{"$f":"VLOOKUP($I96,TS4L6_SFP,11,FALSE)*L96","v":0},{"$f":"IF(L96>0,VLOOKUP($I96,TS4L6_SFP,12,FALSE),\"\")","v":""}]
[]
[null,null,null,null,null,null,null,null,"QSFP28-100GbE"]
[null,null,null,null,null,null,null,null,{"$f":"ConfigurationTS4L6!A150","v":"Dell EMC PowerEdge QSFP28 SR4 100GbE 85C optic"},null,{"$f":"VLOOKUP($I99,TS4L6_SFP,13,FALSE)","v":"TS4L5-OT100GB"},null,null,{"$f":"R99+S99","v":0},null,null,null,{"$f":"VLOOKUP($I99,TS4L6_SFP,10,FALSE)","v":0},{"$f":"VLOOKUP($I99,TS4L6_SFP,11,FALSE)*L99","v":0},{"$f":"IF(L99>0,VLOOKUP($I99,TS4L6_SFP,12,FALSE),\"\")","v":""}]
[]
[null,null,null,null,null,null,null,null,"Garanzia"]
[null,null,null,null,null,null,null,null,"Manutenzione in garanzia (36 mesi)",null,{"$f":"VLOOKUP($I102,TS4L6_WARRANTY,13,FALSE)","v":""},{"$f":"VLOOKUP($I102,TSL6_ALL,7,FALSE)","v":""},null,{"$f":"R102","v":0},null,null,null,{"$f":"VLOOKUP($I102,TS4L6_WARRANTY,10,FALSE)","v":0},{"$f":"VLOOKUP($I102,TS4L6_WARRANTY,11,FALSE)","v":0},{"$f":"VLOOKUP($I102,TSL6_ALL,12,FALSE)","v":""}]
[]
[null,null,null,null,null,null,null,null,"Hard Disk Retention",null,null,{"$f":"IF(AND(I105=\"Hard disk Retention 60 mesi\",L102=\"\"),\"Selezionare Estensione di Garanzia 60 Mesi\",\"\")","v":""}]
[null,null,null,null,null,null,null,null,"",null,{"$f":"VLOOKUP($I105,TS4L6_HDDRET,13,FALSE)","v":""},{"$f":"IF(I105=\"\",\"\",1)","v":""},null,{"$f":"R105","v":""},null,null,null,{"$f":"IF(L104<>\"\",\"\",VLOOKUP(I105,TS4L6_HDDRET,10,FALSE))","v":""},{"$f":"IFERROR(X105,VLOOKUP(I105,TSL6_ALL,11,FALSE))","v":0},{"$f":"IF(L104<>\"\",\"\",VLOOKUP(I105,TS4L6_HDDRET,12,FALSE))","v":""}]
[]
[]
[null,null,null,null,null,null,null,null,null,null,"Configurazione",{"$f":"SUM(R13:R105)*L8","v":0}]
[null,null,null,null,null,null,null,null,null,null,0.2,{"$f":"SUM(S13:S105)*L8","v":0}]
[null,null,null,null,null,null,null,null,null,null,"Totale",{"$f":"SUM(L108:L109)","v":0}]
[]
[null,null,null,null,null,null,null,null,"NOTE"]

{"sheet":"Lotto5_R840_2","index":2,"n_rows":112,"n_cols":26,"rows_kept":112,"cut":false,"hidden":false,"merged":[[14,9,15,9],[1,8,2,8],[3,8,5,8],[3,10,4,10],[5,10,6,10],[11,9,12,9],[64,13,66,14],[65,9,66,9],[100,9,101,9],[17,9,18,9],[23,7,24,7],[26,7,27,7],[37,9,38,9],[37,11,37,13],[40,8,41,8],[40,13,41,13],[18,11,20,11],[88,10,88,11],[103,9,104,9],[111,8,111,11],[112,8,123,11],[56,10,56,11],[58,10,58,11],[62,9,63,9]]}
[]
[null,null,null,null,null,null,null,null,"Convenzione \nTecnologie Server 4 - Lotto 5",null,null,null,null,{"$f":"IF(Riepilogo_ordine!K70>Riepilogo_ordine!G70,\"Superata Quota 20%\",\"\")","v":""}]
[null,null,null,null,null,null,null,null,null,null,null,null,null,"Articoli 20% Totali",null,null,null,null,"Check CPU","Check RAM","Check Dischi","Check Win","Check Gar","Check RAM","Check Tot"]
[null,null,null,null,null,null,null,null,null,null,{"$f":"IF(Y4>1,\"Errori nella Configurazione\",IF(S4>0,\"Errore nella Selezione della CPU\",IF(T4>0,\"Errore Nella Selezione della RAM\",IF(X4>0,\"Errore Nella selezione della RAM\",IF(U4>0,\"Errore Nella selezione dei Dischi\",IF(V4>0,\"Errore nella Selezione Licenze Windows\",IF(W4>0,\"Errore nella Selezione Estensione di Garanzia\",\"\")))))))","v":""},"Totale Altre Opzioni",null,{"$f":"Riepilogo_ordine!K70","v":0},null,null,null,null,{"$f":"IF(L21<>\"\",1,0)","v":0},{"$f":"IF(L24<>\"\",1,0)","v":0},{"$f":"IF(N41<>\"\",1,0)","v":0},{"$f":"IF(L30<>\"\",1,0)","v":0},{"$f":"IF(L104<>\"\",1,0)","v":0},{"$f":"IF(H27=\"Configurazione RAM non congrua selezionare RAM 32GB\",1,0)","v":0},{"$f":"SUM(S4:X4)","v":0}]
[null,null,null,null,null,null,null,null,null,null,null,{"$f":"Altre_Opzioni!J3","v":0},null,"Quota Residua 20 %"]
[null,null,null,null,null,null,null,null,null,null,"Guida alla Convenzione","Totale Configurazione",null,{"$f":"Riepilogo_ordine!G71","v":0}]
[null,null,null,null,null,null,null,null,{"$f":"IF(Riepilogo_ordine!P8>0,\"Compilare i Dati Necessari all'Ordine per Stampare in PDF\",\"Dati Completi\")","v":"Compilare i Dati Necessari all'Ordine per Stampare in PDF"},null,null,{"$f":"$L$110","v":0},null,"Totale Ordine\nIva Esclusa"]
[null,null,null,null,null,null,null,null,"DELL POWEREDGE R840",null,"Quantità Server",0,null,{"$f":"Riepilogo_ordine!K71","v":0}]
[]
[]
[]
[null,null,null,null,null,null,null,null,"Base",null,null,null,null,null,null,null,null,null,null,null,null,"PowerEdge R840 Server (2TB)"]
[null,null,null,null,null,null,null,null,"PowerEdge R840 Server (General Purpose)",null,{"$f":"IF($L$8>0,\"TS4L5-SRV\",\"\")","v":""},{"$f":"IF($L$8>0,1,\"\")","v":""},null,{"$f":"R13","v":4022.56},null,null,null,{"$f":"VLOOKUP($I$13,TS4L6_Chassis,10,FALSE)","v":4022.56},null,{"$f":"VLOOKUP($I13,TS4L6_Chassis,12,FALSE)","v":"L5N01"},null,{"$f":"IF(I13=ConfigurationTS4L6!A9,\"nVME\",\"\")","v":""},{"$f":"IF(I13=ConfigurationTS4L6!A10,\"vSAN\",\"\")","v":""},{"$f":"IF(K16=\"TS3L4-GPUSW\",1,IF(K16=\"TS3L4-GPUDW\",1,\"\"))","v":""}]
[null,null,null,null,null,null,null,null,null,null,null,null,null,null,null,null,null,null,null,null,null,null,null,null,{"$f":"IF($I$22=\"No Additional Processor\",ConfigurationTS4L6!$A$17:$A$24,IF(Z27=\"2TB\",ConfigurationTS4L6!A51,ConfigurationTS4L6!$A$32:$A$47))","v":2048}]
[null,null,null,null,null,null,null,null,"Chassis Configuration",null,{"$f":"IF($V$70=\"SW\",\"MAX 4 GPU\",IF($V$70=\"DW\",\"MAX 2 GPU\",\"\"))","v":""}]
[null,null,null,null,null,null,null,null,{"$f":"IF($L$22=1,VLOOKUP($I$13,TS4L6_Chassis,3,FALSE),VLOOKUP($I$13,TS4L6_Chassis,2,FALSE))","v":"Chassis with Up to 8X 2.5 SAS/SATA"},null,{"$f":"IF($L$22=1,VLOOKUP($I$13,TS4L6_Chassis,13,FALSE),VLOOKUP($I$13,TS4L6_Chassis,13,FALSE))","v":""},{"$f":"IF(I13=V12,VLOOKUP($I$13,TS4L6_Chassis,7,FALSE),VLOOKUP($I$13,TS4L6_Chassis,6,FALSE))","v":0},null,{"$f":"S16","v":0},null,null,null,null,{"$f":"VLOOKUP($I13,TS4L6_Chassis,11,FALSE)","v":0},{"$f":"VLOOKUP($I13,TS4L6_Chassis,14,FALSE)","v":""},null,"Chassis with Up to 24 x 2.5'' Hard Drives for 2CPU Configuration",1]
[]
[null,null,null,null,null,null,null,null,"Processor"]
[null,null,null,null,null,null,null,null,"2 x Intel Xeon Gold 6252N, 2.3G, 24C/48T, 10.4GT/s, 35.75M Cache, Turbo, HT (150W) DDR4-2933",null,null,{"$f":"IF(AND(I22=\"No Additional Processor\",Z27=\"2TB\"),\"Selezionare Processore Aggiuntivo per 2 TB RAM\",\"\")","v":""},null,null,null,null,null,{"$f":"IF(L16=1,VLOOKUP($I$19,TS4L6_CPU,11,FALSE),VLOOKUP($I$19,TS4L6_CPU,11,FALSE))","v":0},{"$f":"IF(L16=1,VLOOKUP($I$19,TS4L6_CPU,11,FALSE),VLOOKUP($I$19,TS4L6_CPU,11,FALSE))","v":0},{"$f":"IF(S19=0,0,VLOOKUP($I19,TS4L6_CPU,12,FALSE))","v":0}]
[]
[null,null,null,null,null,null,null,null,"Additional Processor"]
[null,null,null,null,null,null,null,null,"No Additional Processor",null,{"$f":"IF(L16=1,VLOOKUP($I$19,TS4L6_CPU,13,FALSE),VLOOKUP($I$22,TS4L6_CPU,13,FALSE))","v":""},{"$f":"IF(L16=1,VLOOKUP($I$19,TS4L6_CPU,7,FALSE),VLOOKUP($I$22,TS4L6_CPU,7,FALSE))","v":""},null,{"$f":"R22","v":""},null,null,null,{"$f":"IF(L16=1,VLOOKUP($I$19,TS4L6_CPU,10,FALSE),VLOOKUP($I$22,TS4L6_CPU,10,FALSE))","v":""},{"$f":"IF(L16=1,VLOOKUP($I$19,TS4L6_CPU,11,FALSE),VLOOKUP($I$22,TS4L6_CPU,11,FALSE))","v":""},{"$f":"IF(L16=1,VLOOKUP(I19,TSL6_ALL,12,FALSE),VLOOKUP($I22,TS4L6_CPU,12,FALSE))","v":""},null,{"$f":"IF(L16=1,\"AMD7413 2.65GHz,24C/48T,128M,180W,3200CK\",I22)","v":"No Additional Processor"}]
[]
[null,null,null,null,null,null,null,{"$f":"IF(I25=0,\"\",\"Comprese nella configurazione Base e NON SOSTITUIBILI\")","v":"Comprese nella configurazione Base e NON SOSTITUIBILI"},"Memoria installata di BASE (GB)",null,null,{"$f":"IF(AND(L22=0,I25>768),\"Selezionare Quantità Ram Corretta\",\"\")","v":""}]
[null,null,null,null,null,null,null,null,{"$f":"IF(Z27=\"2TB\",0,256)","v":256},null,{"$f":"V25","v":"TS4L5-RAM32"},{"$f":"IF(Z27=\"2TB\",0,W25)","v":8},null,{"$f":"IF(I25=0,\"\",\"Costo compreso nella macchina base\")","v":"Costo compreso nella macchina base"},null,null,null,null,null,null,null,"TS4L5-RAM32",8,{"$f":"IF(L24<>\"\",\"\",IF($L$22=1,VLOOKUP($I$25,TS4L6_RAM2CPU,10,FALSE),VLOOKUP($I$25,TS4L6_RAM1CPU,10,FALSE)))","v":2053.12},{"$f":"IF(L24<>\"\",\"\",IF($L$22=1,VLOOKUP($I$25,TS4L6_RAM2CPU,12,FALSE),VLOOKUP($I$25,TS4L6_RAM1CPU,12,FALSE)))","v":"L5N03"}]
[]
[null,null,null,null,null,null,null,{"$f":"IF(AND(K28=\"TS4L5-RAM64\",Z27<>\"2TB\",I28>0),\"Configurazione RAM non congrua selezionare RAM 32GB\",\"Memoria totale: \"& U27 & \"GB\")","v":"Memoria totale: 256GB"},"Memoria Aggiuntiva (GB) - In aggiunta ai 256 GB di base",null,"Selezionare Taglio RAM",{"$f":"IF(AND(Z27=\"\",I28=2048),\"Selezionare RAM Corretta\",IF(AND(L22=\"\",I28>512),\"Selezionare Quantità Ram aggiuntiva Corretta\",IF(AND(Z27=\"2TB\",I28<>2048),\"Selezionare Quantità Ram aggiuntiva Corretta\",IF(AND(Z27=\"2TB\",K28<>\"TS4L5-RAM64\"),\"Selezionare Taglio Ram 64\",IF(AND(L22=\"\",K28=\"TS4L5-RAM64\",I28>0),\"Selezionare Taglio RAM Corretto\",\"\")))))","v":""},null,null,null,null,null,null,null,null,{"$f":"SUM(I25,I28)","v":256},null,null,null,null,{"$f":"IF(I13=\"PowerEdge R840 Server (2TB)\",\"2TB\",\"\")","v":""}]
[null,null,null,null,null,null,null,null,0,null,"TS4L5-RAM32",{"$f":"W28","v":0},null,{"$f":"R28","v":""},null,null,null,{"$f":"IFERROR(X28,0)","v":""},null,{"$f":"Y28","v":""},null,{"$f":"IF(AND(I28=2048,Z27<>\"2TB\"),VLOOKUP($I$28,TS4L5_RAM4CPU,13,FALSE),IF(AND(Z27=\"2TB\",I28=2048),VLOOKUP($I$28,TS4L5_RAM2TB,13,FALSE),IF(AND($L$22=1,K28=\"TS4L5-RAM64\"),VLOOKUP($I$28,TS4L5_RAM4CPU,15,FALSE),IF(AND($L$22=\"\",K28=\"TS4L5-RAM64\"),VLOOKUP($I$28,TS4L5_RAM2CPU,15,FALSE),IF(AND($L$22=1,K28=\"TS4L5-RAM32\"),VLOOKUP($I$28,TS4L5_RAM4CPU,13,FALSE),IF(AND($L$22=\"\",K28=\"TS4L5-RAM32\"),VLOOKUP($I$28,TS4L5_RAM2CPU,13)))))))","v":""},{"$f":"IF(N28=\"Non Configurabile\",0,IF(AND(I28=2048,Z27<>\"2TB\"),VLOOKUP($I$28,TS4L5_RAM4CPU,7,FALSE),IF(AND(Z27=\"2TB\",I28=2048,K28=\"TS4L5-RAM64\"),VLOOKUP($I$28,TS4L5_RAM2TB,7,FALSE),IF(AND($L$22=1,K28=\"TS4L5-RAM64\"),VLOOKUP($I$28,TS4L5_RAM4CPU,17,FALSE),IF(AND($L$22=\"\",K28=\"TS4L5-RAM64\"),VLOOKUP($I$28,TS4L5_RAM2CPU,17,FALSE),IF(AND($L$22=1,K28=\"TS4L5-RAM32\"),VLOOKUP($I$28,TS4L5_RAM4CPU,7,FALSE),IF(AND($L$22=\"\",K28=\"TS4L5-RAM32\"),VLOOKUP($I$28,TS4L5_RAM2CPU,7,FALSE))))))))","v":0},{"$f":"IF(AND(I28=2048,Z27<>\"2TB\"),VLOOKUP($I$28,TS4L5_RAM4CPU,10,FALSE),IF(AND(Z27=\"2TB\",I28=2048),VLOOKUP($I$28,TS4L5_RAM2TB,10,FALSE),IF(AND($L$22=1,K28=\"TS4L5-RAM64\"),VLOOKUP($I$28,TS4L5_RAM4CPU,16,FALSE),IF(AND($L$22=\"\",K28=\"TS4L5-RAM64\"),VLOOKUP($I$28,TS4L5_RAM2CPU,16,FALSE),IF(AND($L$22=1,K28=\"TS4L5-RAM32\"),VLOOKUP($I$28,TS4L5_RAM4CPU,10,FALSE),IF(AND($L$22=\"\",K28=\"TS4L5-RAM32\"),VLOOKUP($I$28,TS4L5_RAM2CPU,10,FALSE)))))))","v":""},{"$f":"IF(AND(I28=2048,Z27<>\"2TB\"),VLOOKUP($I$28,TS4L5_RAM4CPU,12,FALSE),IF(AND(Z27=\"2TB\",I28=2048),VLOOKUP($I$28,TS4L5_RAM2TB,19,FALSE),IF(AND($L$22=1,K28=\"TS4L5-RAM64\"),VLOOKUP($I$28,TS4L5_RAM4CPU,19,FALSE),IF(AND($L$22=\"\",K28=\"TS4L5-RAM64\"),VLOOKUP($I$28,TS4L5_RAM2CPU,19,FALSE),IF(AND($L$22=1,K28=\"TS4L5-RAM32\"),VLOOKUP($I$28,TS4L5_RAM4CPU,12,FALSE),IF(AND($L$22=\"\",K28=\"TS4L5-RAM32\"),VLOOKUP($I$28,TS4L5_RAM2CPU,12,FALSE)))))))","v":""}]
[]
[null,null,null,null,null,null,null,null,"Operating System STANDARD",null,null,{"$f":"IF(AND(I31=\"Ubuntu Server 22.04 LTS 64 Bit\",L32>0),\"Deselezionare Licenze 2 Core\",IF(AND(L31=1,L32=0,I31=\"Ubuntu Server 22.04 LTS 64 Bit\"),\"\",IF(AND(L31=1,L32=0),\"Selezionare Licenze 2 Core\",IF(AND(L22=\"\",L32>64),\"Selezionare Licenze 2 Core Corrette\",IF(AND(L22=1,L32=16),\"Selezionare Licenze 2 Core Corrette\",IF(AND(L31=0,L32>0),\"Deselezionare Licenze 2 Core\",\"\"))))))","v":""}]
[null,null,null,null,null,null,null,null,"No Operating System",null,{"$f":"VLOOKUP($I$31,TS4L6_OS,13,FALSE)","v":""},{"$f":"IF(I31=\"Windows Server 2022,Standard,ROK,16CORE\",1,IF(I31=\"Ubuntu Server 22.04 LTS 64 Bit\",1,0))","v":0},null,{"$f":"R31","v":0},null,null,null,{"$f":"VLOOKUP($I$31,TS4L6_OS,10,FALSE)*L31","v":0},{"$f":"VLOOKUP($I$31,TS4L6_OS,11,FALSE)","v":0},{"$f":"VLOOKUP($I31,TSL6_ALL,12,FALSE)","v":""}]
[null,null,null,null,null,null,null,null,"Windows Server 2022 Standard Edition, Add License,2CORE",null,{"$f":"VLOOKUP($I$32,TS4L6_OS,13,FALSE)","v":"TS4L5-WINSRV2C"},null,null,{"$f":"R32","v":0},null,null,null,{"$f":"VLOOKUP($I$32,TS4L6_OS,10,FALSE)*L32","v":0},{"$f":"VLOOKUP($I$31,TS4L6_OS,11,FALSE)","v":0},{"$f":"VLOOKUP($I32,TSL6_ALL,12,FALSE)","v":"L5N24"}]
[]
[null,null,null,null,null,null,null,null,"Operating System Device CAL / User CAL"]
[null,null,null,null,null,null,null,null,"1-pack of Windows Server 2022/2019 Device CALs (STD or DC)",null,{"$f":"VLOOKUP($I$35,ConfigurationTS4L6!A57:X58,13,FALSE)","v":"TS4L5-WINDEVCAL"},0,null,{"$f":"R35","v":0},null,null,null,{"$f":"VLOOKUP($I$35,ConfigurationTS4L6!A57:O58,10,FALSE)*L35","v":0},{"$f":"VLOOKUP($I$31,TS4L6_OS,11,FALSE)","v":0},{"$f":"VLOOKUP($I35,TSL6_ALL,12,FALSE)","v":"L5N22"}]
[null,null,null,null,null,null,null,null,"1-pack of Windows Server 2022/2019 User CALs (STD or DC)",null,{"$f":"VLOOKUP($I$36,ConfigurationTS4L6!A58:X59,13,FALSE)","v":"TS4L5-WINUSRCAL"},0,null,{"$f":"R36","v":0},null,null,null,{"$f":"VLOOKUP($I$36,ConfigurationTS4L6!A58:O59,10,FALSE)*L36","v":0},{"$f":"VLOOKUP($I$31,TS4L6_OS,11,FALSE)","v":0},{"$f":"VLOOKUP($I36,TSL6_ALL,12,FALSE)","v":"L5N23"}]
[]
[null,null,null,null,null,null,null,null,"Disk Controller  (PCI SLOT 3)",null,{"$f":"IF(AND(L39=\"\",I13=\"PowerEdge R940 Server (vSAN Ready)\"),\"Per vSAN Selezionare Controller HBA330\",\"\")","v":""},{"$f":"IF(AND(I13=\"PowerEdge R940 Server (vSAN Ready)\",L61<>1),\"Selezionando questo controller in una soluzione vSAN, per il boot si deve utilizzare la componentete 'BOSS Card'\",\"\")","v":""}]
[null,null,null,null,null,null,{"$f":"IF($K$16=\"TS3L4-VSAN\",\"vSAN HCL\",\"\")","v":""},null,{"$f":"IF(W13=\"vSAN\",ConfigurationTS4L6!A90,ConfigurationTS4L6!A89)","v":"PERC H750 Adapter"},null,{"$f":"VLOOKUP($I39,TS4L6_CRTL,13,FALSE)","v":""},{"$f":"VLOOKUP($I39,TS4L6_CRTL,7,FALSE)","v":""},null,{"$f":"R39+S39","v":0},null,null,null,{"$f":"IF(I39=ConfigurationTS4L6!A36,0,VLOOKUP($I39,TS4L6_CRTL,10,FALSE))","v":0},{"$f":"VLOOKUP($I39,TS4L6_CRTL,11,FALSE)","v":0},{"$f":"IF(I16=\"Chassis with Up to 24 x 2.5'' Hard Drives for 2CPU Configuration\",\"L4N34\",IF(V13=\"VxFlex\",\"L4N34\",IF(N7=\"\",\"\",VLOOKUP($I39,TSL6_ALL,12,FALSE))))","v":"L5N44"},null,{"$f":"IF(K39=\"TS3L4-HBA330-L\",1,0)","v":0},{"$f":"IF(I39=\"PERC H740P RAID Controller, 8GB NV Cache\",1,0)","v":0},{"$f":"IF(Y39=1,Y39*V39,W39*V39)","v":0},{"$f":"IF(N7=\"\",1,0)","v":0}]
[]
[null,null,null,null,null,null,null,null,"Hard Drivers Bays n° 8 - 2 bay occupate dai dischi 960GB SSD di base",null,"Usati","Disponibili",null,{"$f":"IF(L42<0,\"Troppi Dischi\",\"\")","v":""}]
[null,null,null,null,null,null,null,null,null,null,{"$f":"SUM(L44:L56)","v":2},{"$f":"8-K42","v":6}]
[]
[null,null,null,null,null,null,null,null,{"$f":"ConfigurationTS4L6!A65","v":"2.4TB 10k SAS ISE 12Gbps"},null,{"$f":"VLOOKUP($I44,TS4L6_HDD,13,FALSE)","v":"TS4L5-HDD2TB"},0,null,{"$f":"R44","v":0},null,null,null,{"$f":"VLOOKUP($I44,TS4L6_HDD,10,FALSE)*L44","v":0},{"$f":"VLOOKUP($I44,TS4L6_HDD,11,FALSE)","v":0},{"$f":"VLOOKUP($I44,TSL6_ALL,12,FALSE)","v":"L5N11"}]
[]
[null,null,null,null,null,null,null,null,{"$f":"ConfigurationTS4L6!A66","v":"1.2TB 10K RPM SAS ISE 12Gbps"},null,{"$f":"VLOOKUP($I46,TS4L6_HDD,13,FALSE)","v":"TS4L5-HDD1TB"},0,null,{"$f":"R46","v":0},null,null,null,{"$f":"VLOOKUP($I46,TS4L6_HDD,10,FALSE)*L46","v":0},{"$f":"VLOOKUP($I46,TS4L6_HDD,11,FALSE)","v":0},{"$f":"VLOOKUP($I46,TSL6_ALL,12,FALSE)","v":"L5N12"}]
[]
[null,null,null,null,null,null,null,null,{"$f":"ConfigurationTS4L6!A67","v":"3.84TB SSD SAS ISE RI 12Gbps"},null,{"$f":"VLOOKUP($I48,TS4L6_HDD,13,FALSE)","v":"TS4L5-SSD-RI3,8TB"},0,null,{"$f":"R48","v":0},null,null,null,{"$f":"VLOOKUP($I48,TS4L6_HDD,10,FALSE)*L48","v":0},{"$f":"VLOOKUP($I48,TS4L6_HDD,11,FALSE)","v":0},{"$f":"VLOOKUP($I48,TSL6_ALL,12,FALSE)","v":"L5N13"}]
[]
[null,null,null,null,null,null,null,null,{"$f":"ConfigurationTS4L6!A68","v":"1.92TB SSD SAS ISE RI 12Gbps"},null,{"$f":"VLOOKUP($I50,TS4L6_HDD,13,FALSE)","v":"TS4L5-SSD-RI1,6TB"},0,null,{"$f":"R50","v":0},null,null,null,{"$f":"VLOOKUP($I50,TS4L6_HDD,10,FALSE)*L50","v":0},{"$f":"VLOOKUP($I50,TS4L6_HDD,11,FALSE)","v":0},{"$f":"VLOOKUP($I50,TSL6_ALL,12,FALSE)","v":"L5N14"}]
[]
[null,null,null,null,null,null,null,null,{"$f":"ConfigurationTS4L6!A69","v":"1.6TB SSD SAS ISE MU 12Gbps"},null,{"$f":"VLOOKUP($I52,TS4L6_HDD,13,FALSE)","v":"TS4L5-SSD-MU1,6TB"},0,null,{"$f":"R52","v":0},null,null,null,{"$f":"VLOOKUP($I52,TS4L6_HDD,10,FALSE)*L52","v":0},{"$f":"VLOOKUP($I52,TS4L6_HDD,11,FALSE)","v":0},{"$f":"VLOOKUP($I52,TSL6_ALL,12,FALSE)","v":"L5N15"}]
[]
[null,null,null,null,null,null,null,null,{"$f":"ConfigurationTS4L6!A70","v":"960GB SSD SAS ISE RI 12Gbps"},null,{"$f":"VLOOKUP($I54,TS4L6_HDD,13,FALSE)","v":"TS4L5-SSD-RI800GB"},2,null,{"$f":"R54","v":0},null,null,null,{"$f":"IF(L54>2,(VLOOKUP($I54,TS4L6_HDD,10,FALSE)*(L54-2)),0)","v":0},{"$f":"VLOOKUP($I54,TS4L6_HDD,11,FALSE)*L54","v":0},{"$f":"VLOOKUP($I54,TSL6_ALL,12,FALSE)","v":"L5N16"}]
[]
[null,null,null,null,null,null,null,null,{"$f":"ConfigurationTS4L6!A71","v":"800GB SSD SAS ISE Mix Use 12Gbps"},null,{"$f":"VLOOKUP($I56,TS4L6_HDD,13,FALSE)","v":"TS4L5-SSD-MU800GB"},0,null,{"$f":"R56","v":0},null,null,null,{"$f":"VLOOKUP($I56,TS4L6_HDD,10,FALSE)*L56","v":0},{"$f":"VLOOKUP($I56,TS4L6_HDD,11,FALSE)*L56","v":0},{"$f":"VLOOKUP($I56,TSL6_ALL,12,FALSE)","v":"L5N17"}]
[]
[null,null,null,null,null,null,null,null,{"$f":"ConfigurationTS4L6!A72","v":"7.68TB SSD RI SAS ISE 12Gbps"},null,{"$f":"VLOOKUP($I58,TS4L6_HDD,13,FALSE)","v":"TS4L5-SSD7,68RI"},0,null,{"$f":"R58+S58","v":0},null,null,null,{"$f":"VLOOKUP($I58,TS4L6_HDD,11,FALSE)*L58","v":0},{"$f":"VLOOKUP($I58,TS4L6_HDD,10,FALSE)*L58","v":0},{"$f":"VLOOKUP($I58,TSL6_ALL,12,FALSE)","v":"L5N30"}]
[]
[null,null,null,null,null,null,null,null,"BOSS controller card"]
[null,null,null,null,null,null,null,null,{"$f":"IF(Z27=\"2TB\",ConfigurationTS4L6!A95,ConfigurationTS4L6!A93)","v":"No Boss card"},null,{"$f":"IF(S61>0,VLOOKUP($I61,TS4L6_ISDM,13,FALSE),\"\")","v":""},{"$f":"VLOOKUP($I61,TS4L6_ISDM,7,FALSE)","v":""},null,null,null,null,null,{"$f":"VLOOKUP($I61,TS4L6_ISDM,10,FALSE)","v":0},{"$f":"VLOOKUP($I61,TS4L6_ISDM,11,FALSE)","v":0},{"$f":"VLOOKUP($I61,TSL6_ALL,12,FALSE)","v":""}]
[]
[null,null,null,null,null,null,null,null,"Power Supply",{"$f":"IF(N63=\"\",\"\",U64)","v":""}]
[null,null,null,null,null,null,null,null,{"$f":"ConfigurationTS4L6!A80","v":"Dual, Hot-plug, Redundant Power Supply (1+1), 1600W, 250 Volt"},null,{"$f":"VLOOKUP($I64,TS4L6_PSU,13,FALSE)","v":"TS4L5-PSU1600W"},{"$f":"VLOOKUP($I64,TS4L6_PSU,7,FALSE)","v":1},null,null,null,null,null,{"$f":"VLOOKUP($I64,TS4L6_PSU,10,FALSE)","v":0},{"$f":"VLOOKUP($I64,TS4L6_PSU,11,FALSE)","v":0},{"$f":"VLOOKUP($I64,TSL6_ALL,12,FALSE)","v":"L5N49"},"⚠"]
[]
[null,null,null,null,null,null,null,null,"Embedded Systems Management"]
[null,null,null,null,null,null,null,null,"iDRAC9,Enterprise"]
[]
[]
[null,null,null,null,null,null,null,null,null,null,null,null,null,null,null,null,null,null,null,null,{"$f":"IF($K$16=\"TS3L4-GPUDW\",\"1\",IF($K$16=\"TS3L4-GPUSW\",\"20\",IF($L$22=1,\"300\",\"4000\")))","v":"4000"}]
[null,null,null,null,null,null,null,null,"PCI Slot 1 Processor 1 x8 PCIe for HL/FH"]
[null,null,null,null,null,null,null,null,"",null,{"$f":"VLOOKUP($I72,TSL6_ALL,13,FALSE)","v":""},{"$f":"VLOOKUP($I72,TSL6_ALL,7,FALSE)","v":""},null,{"$f":"R72+S72","v":0},null,null,null,{"$f":"VLOOKUP($I72,TS4L5_PCI,10,FALSE)","v":0},{"$f":"VLOOKUP($I72,TS4L5_PCI,11,FALSE)","v":0},{"$f":"VLOOKUP($I72,TS4L5_PCI,12,FALSE)","v":""}]
[]
[null,null,null,null,null,null,null,null,"PCI Slot 2 Processor 1 x8 PCIe  for HL/FH"]
[null,null,null,null,null,null,null,null,"",null,{"$f":"VLOOKUP($I75,TSL6_ALL,13,FALSE)","v":""},{"$f":"VLOOKUP($I75,TSL6_ALL,7,FALSE)","v":""},null,{"$f":"R75+S75","v":0},null,null,null,{"$f":"VLOOKUP($I75,TS4L5_PCI,10,FALSE)","v":0},{"$f":"VLOOKUP($I75,TS4L5_PCI,11,FALSE)","v":0},{"$f":"VLOOKUP($I75,TS4L5_PCI,12,FALSE)","v":""},{"$f":"IF(L75=\"\",\"OK\",IF(V75+L75=2,\"Errore\",\"OK\"))","v":"OK"}]
[]
[null,null,null,null,null,null,null,null,"PCI Slot 3 Processor 1 x16 PCIe  for HL/LP"]
[null,null,null,null,null,null,null,null,"Riservato per PERC",null,null,null,null,{"$f":"R78+S78","v":0},null,null,null,0,0,{"$f":"\"\"","v":""}]
[]
[null,null,null,null,null,null,null,null,"PCI Slot 4 Processor 2 x16 PCIe  for HL/LP",{"$f":"IF($V$70=\"SW\",\"GPU Slot\",IF($V$70=\"DW\",\"GPU Slot\",\"\"))","v":""}]
[null,null,null,null,null,null,null,null,"",null,{"$f":"VLOOKUP($I81,TSL6_ALL,13,FALSE)","v":""},{"$f":"VLOOKUP($I81,TSL6_ALL,7,FALSE)","v":""},null,{"$f":"R81+S81","v":0},null,null,null,{"$f":"VLOOKUP($I81,TS4L5_PCI_LP,10,FALSE)","v":0},{"$f":"VLOOKUP($I81,TS4L5_PCI_LP,11,FALSE)","v":0},{"$f":"VLOOKUP($I81,TS4L5_PCI_LP,12,FALSE)","v":""}]
[]
[null,null,null,null,null,null,null,null,"PCI Slot 5 Processor 2 x8 PCIe  for HL/FH",{"$f":"IF($V$70=\"SW\",\"GPU Slot\",\"\")","v":""},null,{"$f":"IF(AND(L84=1,L61=1),\"In caso di BOSS card lo slot 5 è riservato\",\"\")","v":""}]
[null,null,null,null,null,null,null,null,"Riservato Boss Card",null,{"$f":"VLOOKUP($I84,TSL6_ALL,13,FALSE)","v":""},{"$f":"VLOOKUP($I84,TSL6_ALL,7,FALSE)","v":""},null,{"$f":"R84+S84","v":0},null,null,null,{"$f":"VLOOKUP($I84,TS4L5_PCI,10,FALSE)","v":0},{"$f":"VLOOKUP($I84,TS4L5_PCI,11,FALSE)","v":0},{"$f":"VLOOKUP($I84,TS4L5_PCI,12,FALSE)","v":""},{"$f":"IF(L84=\"\",\"OK\",IF(V84+L84=2,\"Errore\",\"OK\"))","v":"OK"}]
[]
[null,null,null,null,null,null,null,null,"PCI Slot 6 Processor 2 x8 PCIe  for HL/FH"]
[null,null,null,null,null,null,null,null,"",null,{"$f":"VLOOKUP($I87,TSL6_ALL,13,FALSE)","v":""},{"$f":"IF($V$13=\"VxFlex\",1,VLOOKUP($I87,TSL6_ALL,7,FALSE))","v":""},null,{"$f":"R87+S87","v":0},null,null,null,{"$f":"VLOOKUP($I87,TS4L5_PCI,10,FALSE)","v":0},{"$f":"VLOOKUP($I87,TS4L5_PCI,11,FALSE)","v":0},{"$f":"VLOOKUP($I87,TS4L5_PCI,12,FALSE)","v":""}]
[]
[null,null,null,null,null,null,null,null,"SFP+ Transceivers 10 Gbps",null,"Si ricorda che nelle schede di Base sono già Compresi gli SFP"]
[null,null,null,null,null,null,null,null,{"$f":"ConfigurationTS4L6!A147","v":"SFP+ SR Optic for all SFP+ ports except high temp validation warning cards"},null,{"$f":"VLOOKUP($I90,TS4L6_SFP,13,FALSE)","v":"TS4L5-OT10GB"},0,null,{"$f":"R90+S90","v":0},null,null,null,{"$f":"VLOOKUP($I90,TS4L6_SFP,10,FALSE)","v":0},{"$f":"VLOOKUP($I90,TS4L6_SFP,11,FALSE)*L90","v":0},{"$f":"IF(L90>0,VLOOKUP($I90,TS4L6_SFP,12,FALSE),\"\")","v":""}]
[]
[null,null,null,null,null,null,null,null,"SFP28 - 25GbE"]
[null,null,null,null,null,null,null,null,{"$f":"ConfigurationTS4L6!A148","v":"SFP28 SR Optic, 25GbE, 85C, for all SFP28 ports"},null,{"$f":"VLOOKUP($I93,TS4L6_SFP,13,FALSE)","v":"TS4L5-OT25GB"},0,null,{"$f":"R93+S93","v":0},null,null,null,{"$f":"VLOOKUP($I93,TS4L6_SFP,10,FALSE)","v":0},{"$f":"VLOOKUP($I93,TS4L6_SFP,11,FALSE)*L93","v":0},{"$f":"IF(L93>0,VLOOKUP($I93,TS4L6_SFP,12,FALSE),\"\")","v":""}]
[]
[null,null,null,null,null,null,null,null,"QSFP+ - 40GbE"]
[null,null,null,null,null,null,null,null,{"$f":"ConfigurationTS4L6!A149","v":"Dell Networking, Transceiver, 40GbE QSFP+ SR4 Optics, MPO, 850nmWavelength, 100-150m Reach on OM3/OM4"},null,{"$f":"VLOOKUP($I96,TS4L6_SFP,13,FALSE)","v":"TS4L5-OT40GB"},0,null,{"$f":"R96+S96","v":0},null,null,null,{"$f":"VLOOKUP($I96,TS4L6_SFP,10,FALSE)","v":0},{"$f":"VLOOKUP($I96,TS4L6_SFP,11,FALSE)*L96","v":0},{"$f":"IF(L96>0,VLOOKUP($I96,TS4L6_SFP,12,FALSE),\"\")","v":""}]
[]
[null,null,null,null,null,null,null,null,"QSFP28-100GbE"]
[null,null,null,null,null,null,null,null,{"$f":"ConfigurationTS4L6!A150","v":"Dell EMC PowerEdge QSFP28 SR4 100GbE 85C optic"},null,{"$f":"VLOOKUP($I99,TS4L6_SFP,13,FALSE)","v":"TS4L5-OT100GB"},null,null,{"$f":"R99+S99","v":0},null,null,null,{"$f":"VLOOKUP($I99,TS4L6_SFP,10,FALSE)","v":0},{"$f":"VLOOKUP($I99,TS4L6_SFP,11,FALSE)*L99","v":0},{"$f":"IF(L99>0,VLOOKUP($I99,TS4L6_SFP,12,FALSE),\"\")","v":""}]
[]
[null,null,null,null,null,null,null,null,"Garanzia"]
[null,null,null,null,null,null,null,null,"Manutenzione in garanzia (36 mesi)",null,{"$f":"VLOOKUP($I102,TS4L6_WARRANTY,13,FALSE)","v":""},{"$f":"VLOOKUP($I102,TSL6_ALL,7,FALSE)","v":""},null,{"$f":"R102","v":0},null,null,null,{"$f":"VLOOKUP($I102,TS4L6_WARRANTY,10,FALSE)","v":0},{"$f":"VLOOKUP($I102,TS4L6_WARRANTY,11,FALSE)","v":0},{"$f":"VLOOKUP($I102,TSL6_ALL,12,FALSE)","v":""}]
[]
[null,null,null,null,null,null,null,null,"Hard Disk Retention",null,null,{"$f":"IF(AND(I105=\"Hard disk Retention 60 mesi\",L102=\"\"),\"Selezionare Estensione di Garanzia 60 Mesi\",\"\")","v":""}]
[null,null,null,null,null,null,null,null,"",null,{"$f":"VLOOKUP($I105,TS4L6_HDDRET,13,FALSE)","v":""},{"$f":"IF(I105=\"\",\"\",1)","v":""},null,{"$f":"R105","v":""},null,null,null,{"$f":"IF(L104<>\"\",\"\",VLOOKUP(I105,TS4L6_HDDRET,10,FALSE))","v":""},{"$f":"IFERROR(X105,VLOOKUP(I105,TSL6_ALL,11,FALSE))","v":0},{"$f":"IF(L104<>\"\",\"\",VLOOKUP(I105,TS4L6_HDDRET,12,FALSE))","v":""}]
[]
[]
[null,null,null,null,null,null,null,null,null,null,"Configurazione",{"$f":"SUM(R13:R105)*L8","v":0}]
[null,null,null,null,null,null,null,null,null,null,0.2,{"$f":"SUM(S13:S105)*L8","v":0}]
[null,null,null,null,null,null,null,null,null,null,"Totale",{"$f":"SUM(L108:L109)","v":0}]
[]
[null,null,null,null,null,null,null,null,"NOTE"]

{"sheet":"Lotto5_R840_3","index":3,"n_rows":112,"n_cols":26,"rows_kept":112,"cut":false,"hidden":false,"merged":[[14,9,15,9],[1,8,2,8],[3,8,5,8],[3,10,4,10],[5,10,6,10],[11,9,12,9],[64,13,66,14],[65,9,66,9],[100,9,101,9],[17,9,18,9],[23,7,24,7],[26,7,27,7],[37,9,38,9],[37,11,37,13],[40,8,41,8],[40,13,41,13],[18,11,20,11],[88,10,88,11],[103,9,104,9],[111,8,111,11],[112,8,123,11],[56,10,56,11],[58,10,58,11],[62,9,63,9]]}
[]
[null,null,null,null,null,null,null,null,"Convenzione \nTecnologie Server 4 - Lotto 5",null,null,null,null,{"$f":"IF(Riepilogo_ordine!K70>Riepilogo_ordine!G70,\"Superata Quota 20%\",\"\")","v":""}]
[null,null,null,null,null,null,null,null,null,null,null,null,null,"Articoli 20% Totali",null,null,null,null,"Check CPU","Check RAM","Check Dischi","Check Win","Check Gar","Check RAM","Check Tot"]
[null,null,null,null,null,null,null,null,null,null,{"$f":"IF(Y4>1,\"Errori nella Configurazione\",IF(S4>0,\"Errore nella Selezione della CPU\",IF(T4>0,\"Errore Nella Selezione della RAM\",IF(X4>0,\"Errore Nella selezione della RAM\",IF(U4>0,\"Errore Nella selezione dei Dischi\",IF(V4>0,\"Errore nella Selezione Licenze Windows\",IF(W4>0,\"Errore nella Selezione Estensione di Garanzia\",\"\")))))))","v":""},"Totale Altre Opzioni",null,{"$f":"Riepilogo_ordine!K70","v":0},null,null,null,null,{"$f":"IF(L21<>\"\",1,0)","v":0},{"$f":"IF(L24<>\"\",1,0)","v":0},{"$f":"IF(N41<>\"\",1,0)","v":0},{"$f":"IF(L30<>\"\",1,0)","v":0},{"$f":"IF(L104<>\"\",1,0)","v":0},{"$f":"IF(H27=\"Configurazione RAM non congrua selezionare RAM 32GB\",1,0)","v":0},{"$f":"SUM(S4:X4)","v":0}]
[null,null,null,null,null,null,null,null,null,null,null,{"$f":"Altre_Opzioni!J3","v":0},null,"Quota Residua 20 %"]
[null,null,null,null,null,null,null,null,null,null,"Guida alla Convenzione","Totale Configurazione",null,{"$f":"Riepilogo_ordine!G71","v":0}]
[null,null,null,null,null,null,null,null,{"$f":"IF(Riepilogo_ordine!P8>0,\"Compilare i Dati Necessari all'Ordine per Stampare in PDF\",\"Dati Completi\")","v":"Compilare i Dati Necessari all'Ordine per Stampare in PDF"},null,null,{"$f":"$L$110","v":0},null,"Totale Ordine\nIva Esclusa"]
[null,null,null,null,null,null,null,null,"DELL POWEREDGE R840",null,"Quantità Server",0,null,{"$f":"Riepilogo_ordine!K71","v":0}]
[]
[]
[]
[null,null,null,null,null,null,null,null,"Base",null,null,null,null,null,null,null,null,null,null,null,null,"PowerEdge R840 Server (2TB)"]
[null,null,null,null,null,null,null,null,"PowerEdge R840 Server (General Purpose)",null,{"$f":"IF($L$8>0,\"TS4L5-SRV\",\"\")","v":""},{"$f":"IF($L$8>0,1,\"\")","v":""},null,{"$f":"R13","v":4022.56},null,null,null,{"$f":"VLOOKUP($I$13,TS4L6_Chassis,10,FALSE)","v":4022.56},null,{"$f":"VLOOKUP($I13,TS4L6_Chassis,12,FALSE)","v":"L5N01"},null,{"$f":"IF(I13=ConfigurationTS4L6!A9,\"nVME\",\"\")","v":""},{"$f":"IF(I13=ConfigurationTS4L6!A10,\"vSAN\",\"\")","v":""},{"$f":"IF(K16=\"TS3L4-GPUSW\",1,IF(K16=\"TS3L4-GPUDW\",1,\"\"))","v":""}]
[null,null,null,null,null,null,null,null,null,null,null,null,null,null,null,null,null,null,null,null,null,null,null,null,{"$f":"IF($I$22=\"No Additional Processor\",ConfigurationTS4L6!$A$17:$A$24,IF(Z27=\"2TB\",ConfigurationTS4L6!A51,ConfigurationTS4L6!$A$32:$A$47))","v":0}]
[null,null,null,null,null,null,null,null,"Chassis Configuration",null,{"$f":"IF($V$70=\"SW\",\"MAX 4 GPU\",IF($V$70=\"DW\",\"MAX 2 GPU\",\"\"))","v":""},null,null,null,null,null,null,null,null,null,null,null,null,null,128]
[null,null,null,null,null,null,null,null,{"$f":"IF($L$22=1,VLOOKUP($I$13,TS4L6_Chassis,3,FALSE),VLOOKUP($I$13,TS4L6_Chassis,2,FALSE))","v":"Chassis with Up to 8X 2.5 SAS/SATA"},null,{"$f":"IF($L$22=1,VLOOKUP($I$13,TS4L6_Chassis,13,FALSE),VLOOKUP($I$13,TS4L6_Chassis,13,FALSE))","v":""},{"$f":"IF(I13=V12,VLOOKUP($I$13,TS4L6_Chassis,7,FALSE),VLOOKUP($I$13,TS4L6_Chassis,6,FALSE))","v":0},null,{"$f":"S16","v":0},null,null,null,null,{"$f":"VLOOKUP($I13,TS4L6_Chassis,11,FALSE)","v":0},{"$f":"VLOOKUP($I13,TS4L6_Chassis,14,FALSE)","v":""},null,"Chassis with Up to 24 x 2.5'' Hard Drives for 2CPU Configuration",1,null,192]
[null,null,null,null,null,null,null,null,null,null,null,null,null,null,null,null,null,null,null,null,null,null,null,null,256]
[null,null,null,null,null,null,null,null,"Processor",null,null,null,null,null,null,null,null,null,null,null,null,null,null,null,320]
[null,null,null,null,null,null,null,null,"2 x Intel Xeon Gold 6252N, 2.3G, 24C/48T, 10.4GT/s, 35.75M Cache, Turbo, HT (150W) DDR4-2933",null,null,{"$f":"IF(AND(I22=\"No Additional Processor\",Z27=\"2TB\"),\"Selezionare Processore Aggiuntivo per 2 TB RAM\",\"\")","v":""},null,null,null,null,null,{"$f":"IF(L16=1,VLOOKUP($I$19,TS4L6_CPU,11,FALSE),VLOOKUP($I$19,TS4L6_CPU,11,FALSE))","v":0},{"$f":"IF(L16=1,VLOOKUP($I$19,TS4L6_CPU,11,FALSE),VLOOKUP($I$19,TS4L6_CPU,11,FALSE))","v":0},{"$f":"IF(S19=0,0,VLOOKUP($I19,TS4L6_CPU,12,FALSE))","v":0},null,null,null,null,384]
[null,null,null,null,null,null,null,null,null,null,null,null,null,null,null,null,null,null,null,null,null,null,null,null,448]
[null,null,null,null,null,null,null,null,"Additional Processor",null,null,null,null,null,null,null,null,null,null,null,null,null,null,null,512]
[null,null,null,null,null,null,null,null,"No Additional Processor",null,{"$f":"IF(L16=1,VLOOKUP($I$19,TS4L6_CPU,13,FALSE),VLOOKUP($I$22,TS4L6_CPU,13,FALSE))","v":""},{"$f":"IF(L16=1,VLOOKUP($I$19,TS4L6_CPU,7,FALSE),VLOOKUP($I$22,TS4L6_CPU,7,FALSE))","v":""},null,{"$f":"R22","v":""},null,null,null,{"$f":"IF(L16=1,VLOOKUP($I$19,TS4L6_CPU,10,FALSE),VLOOKUP($I$22,TS4L6_CPU,10,FALSE))","v":""},{"$f":"IF(L16=1,VLOOKUP($I$19,TS4L6_CPU,11,FALSE),VLOOKUP($I$22,TS4L6_CPU,11,FALSE))","v":""},{"$f":"IF(L16=1,VLOOKUP(I19,TSL6_ALL,12,FALSE),VLOOKUP($I22,TS4L6_CPU,12,FALSE))","v":""},null,{"$f":"IF(L16=1,\"AMD7413 2.65GHz,24C/48T,128M,180W,3200CK\",I22)","v":"No Additional Processor"}]
[]
[null,null,null,null,null,null,null,{"$f":"IF(I25=0,\"\",\"Comprese nella configurazione Base e NON SOSTITUIBILI\")","v":"Comprese nella configurazione Base e NON SOSTITUIBILI"},"Memoria installata di BASE (GB)",null,null,{"$f":"IF(AND(L22=0,I25>768),\"Selezionare Quantità Ram Corretta\",\"\")","v":""}]
[null,null,null,null,null,null,null,null,{"$f":"IF(Z27=\"2TB\",0,256)","v":256},null,{"$f":"V25","v":"TS4L5-RAM32"},{"$f":"IF(Z27=\"2TB\",0,W25)","v":8},null,{"$f":"IF(I25=0,\"\",\"Costo compreso nella macchina base\")","v":"Costo compreso nella macchina base"},null,null,null,null,null,null,null,"TS4L5-RAM32",8,{"$f":"IF(L24<>\"\",\"\",IF($L$22=1,VLOOKUP($I$25,TS4L6_RAM2CPU,10,FALSE),VLOOKUP($I$25,TS4L6_RAM1CPU,10,FALSE)))","v":2053.12},{"$f":"IF(L24<>\"\",\"\",IF($L$22=1,VLOOKUP($I$25,TS4L6_RAM2CPU,12,FALSE),VLOOKUP($I$25,TS4L6_RAM1CPU,12,FALSE)))","v":"L5N03"}]
[]
[null,null,null,null,null,null,null,{"$f":"IF(AND(K28=\"TS4L5-RAM64\",Z27<>\"2TB\",I28>0),\"Configurazione RAM non congrua selezionare RAM 32GB\",\"Memoria totale: \"& U27 & \"GB\")","v":"Memoria totale: 256GB"},"Memoria Aggiuntiva (GB) - In aggiunta ai 256 GB di base",null,"Selezionare Taglio RAM",{"$f":"IF(AND(Z27=\"\",I28=2048),\"Selezionare RAM Corretta\",IF(AND(L22=\"\",I28>512),\"Selezionare Quantità Ram aggiuntiva Corretta\",IF(AND(Z27=\"2TB\",I28<>2048),\"Selezionare Quantità Ram aggiuntiva Corretta\",IF(AND(Z27=\"2TB\",K28<>\"TS4L5-RAM64\"),\"Selezionare Taglio Ram 64\",IF(AND(L22=\"\",K28=\"TS4L5-RAM64\",I28>0),\"Selezionare Taglio RAM Corretto\",\"\")))))","v":""},null,null,null,null,null,null,null,null,{"$f":"SUM(I25,I28)","v":256},null,null,null,null,{"$f":"IF(I13=\"PowerEdge R840 Server (2TB)\",\"2TB\",\"\")","v":""}]
[null,null,null,null,null,null,null,null,0,null,"TS4L5-RAM32",{"$f":"W28","v":0},null,{"$f":"R28","v":""},null,null,null,{"$f":"IFERROR(X28,0)","v":""},null,{"$f":"Y28","v":""},null,{"$f":"IF(AND(I28=2048,Z27<>\"2TB\"),VLOOKUP($I$28,TS4L5_RAM4CPU,13,FALSE),IF(AND(Z27=\"2TB\",I28=2048),VLOOKUP($I$28,TS4L5_RAM2TB,13,FALSE),IF(AND($L$22=1,K28=\"TS4L5-RAM64\"),VLOOKUP($I$28,TS4L5_RAM4CPU,15,FALSE),IF(AND($L$22=\"\",K28=\"TS4L5-RAM64\"),VLOOKUP($I$28,TS4L5_RAM2CPU,15,FALSE),IF(AND($L$22=1,K28=\"TS4L5-RAM32\"),VLOOKUP($I$28,TS4L5_RAM4CPU,13,FALSE),IF(AND($L$22=\"\",K28=\"TS4L5-RAM32\"),VLOOKUP($I$28,TS4L5_RAM2CPU,13)))))))","v":""},{"$f":"IF(N28=\"Non Configurabile\",0,IF(AND(I28=2048,Z27<>\"2TB\"),VLOOKUP($I$28,TS4L5_RAM4CPU,7,FALSE),IF(AND(Z27=\"2TB\",I28=2048,K28=\"TS4L5-RAM64\"),VLOOKUP($I$28,TS4L5_RAM2TB,7,FALSE),IF(AND($L$22=1,K28=\"TS4L5-RAM64\"),VLOOKUP($I$28,TS4L5_RAM4CPU,17,FALSE),IF(AND($L$22=\"\",K28=\"TS4L5-RAM64\"),VLOOKUP($I$28,TS4L5_RAM2CPU,17,FALSE),IF(AND($L$22=1,K28=\"TS4L5-RAM32\"),VLOOKUP($I$28,TS4L5_RAM4CPU,7,FALSE),IF(AND($L$22=\"\",K28=\"TS4L5-RAM32\"),VLOOKUP($I$28,TS4L5_RAM2CPU,7,FALSE))))))))","v":0},{"$f":"IF(AND(I28=2048,Z27<>\"2TB\"),VLOOKUP($I$28,TS4L5_RAM4CPU,10,FALSE),IF(AND(Z27=\"2TB\",I28=2048),VLOOKUP($I$28,TS4L5_RAM2TB,10,FALSE),IF(AND($L$22=1,K28=\"TS4L5-RAM64\"),VLOOKUP($I$28,TS4L5_RAM4CPU,16,FALSE),IF(AND($L$22=\"\",K28=\"TS4L5-RAM64\"),VLOOKUP($I$28,TS4L5_RAM2CPU,16,FALSE),IF(AND($L$22=1,K28=\"TS4L5-RAM32\"),VLOOKUP($I$28,TS4L5_RAM4CPU,10,FALSE),IF(AND($L$22=\"\",K28=\"TS4L5-RAM32\"),VLOOKUP($I$28,TS4L5_RAM2CPU,10,FALSE)))))))","v":""},{"$f":"IF(AND(I28=2048,Z27<>\"2TB\"),VLOOKUP($I$28,TS4L5_RAM4CPU,12,FALSE),IF(AND(Z27=\"2TB\",I28=2048),VLOOKUP($I$28,TS4L5_RAM2TB,19,FALSE),IF(AND($L$22=1,K28=\"TS4L5-RAM64\"),VLOOKUP($I$28,TS4L5_RAM4CPU,19,FALSE),IF(AND($L$22=\"\",K28=\"TS4L5-RAM64\"),VLOOKUP($I$28,TS4L5_RAM2CPU,19,FALSE),IF(AND($L$22=1,K28=\"TS4L5-RAM32\"),VLOOKUP($I$28,TS4L5_RAM4CPU,12,FALSE),IF(AND($L$22=\"\",K28=\"TS4L5-RAM32\"),VLOOKUP($I$28,TS4L5_RAM2CPU,12,FALSE)))))))","v":""}]
[]
[null,null,null,null,null,null,null,null,"Operating System STANDARD",null,null,{"$f":"IF(AND(I31=\"Ubuntu Server 22.04 LTS 64 Bit\",L32>0),\"Deselezionare Licenze 2 Core\",IF(AND(L31=1,L32=0,I31=\"Ubuntu Server 22.04 LTS 64 Bit\"),\"\",IF(AND(L31=1,L32=0),\"Selezionare Licenze 2 Core\",IF(AND(L22=\"\",L32>64),\"Selezionare Licenze 2 Core Corrette\",IF(AND(L22=1,L32=16),\"Selezionare Licenze 2 Core Corrette\",IF(AND(L31=0,L32>0),\"Deselezionare Licenze 2 Core\",\"\"))))))","v":""}]
[null,null,null,null,null,null,null,null,"No Operating System",null,{"$f":"VLOOKUP($I$31,TS4L6_OS,13,FALSE)","v":""},{"$f":"IF(I31=\"Windows Server 2022,Standard,ROK,16CORE\",1,IF(I31=\"Ubuntu Server 22.04 LTS 64 Bit\",1,0))","v":0},null,{"$f":"R31","v":0},null,null,null,{"$f":"VLOOKUP($I$31,TS4L6_OS,10,FALSE)*L31","v":0},{"$f":"VLOOKUP($I$31,TS4L6_OS,11,FALSE)","v":0},{"$f":"VLOOKUP($I31,TSL6_ALL,12,FALSE)","v":""}]
[null,null,null,null,null,null,null,null,"Windows Server 2022 Standard Edition, Add License,2CORE",null,{"$f":"VLOOKUP($I$32,TS4L6_OS,13,FALSE)","v":"TS4L5-WINSRV2C"},null,null,{"$f":"R32","v":0},null,null,null,{"$f":"VLOOKUP($I$32,TS4L6_OS,10,FALSE)*L32","v":0},{"$f":"VLOOKUP($I$31,TS4L6_OS,11,FALSE)","v":0},{"$f":"VLOOKUP($I32,TSL6_ALL,12,FALSE)","v":"L5N24"}]
[]
[null,null,null,null,null,null,null,null,"Operating System Device CAL / User CAL"]
[null,null,null,null,null,null,null,null,"1-pack of Windows Server 2022/2019 Device CALs (STD or DC)",null,{"$f":"VLOOKUP($I$35,ConfigurationTS4L6!A57:X58,13,FALSE)","v":"TS4L5-WINDEVCAL"},0,null,{"$f":"R35","v":0},null,null,null,{"$f":"VLOOKUP($I$35,ConfigurationTS4L6!A57:O58,10,FALSE)*L35","v":0},{"$f":"VLOOKUP($I$31,TS4L6_OS,11,FALSE)","v":0},{"$f":"VLOOKUP($I35,TSL6_ALL,12,FALSE)","v":"L5N22"}]
[null,null,null,null,null,null,null,null,"1-pack of Windows Server 2022/2019 User CALs (STD or DC)",null,{"$f":"VLOOKUP($I$36,ConfigurationTS4L6!A58:X59,13,FALSE)","v":"TS4L5-WINUSRCAL"},0,null,{"$f":"R36","v":0},null,null,null,{"$f":"VLOOKUP($I$36,ConfigurationTS4L6!A58:O59,10,FALSE)*L36","v":0},{"$f":"VLOOKUP($I$31,TS4L6_OS,11,FALSE)","v":0},{"$f":"VLOOKUP($I36,TSL6_ALL,12,FALSE)","v":"L5N23"}]
[]
[null,null,null,null,null,null,null,null,"Disk Controller  (PCI SLOT 3)",null,{"$f":"IF(AND(L39=\"\",I13=\"PowerEdge R940 Server (vSAN Ready)\"),\"Per vSAN Selezionare Controller HBA330\",\"\")","v":""},{"$f":"IF(AND(I13=\"PowerEdge R940 Server (vSAN Ready)\",L61<>1),\"Selezionando questo controller in una soluzione vSAN, per il boot si deve utilizzare la componentete 'BOSS Card'\",\"\")","v":""}]
[null,null,null,null,null,null,{"$f":"IF($K$16=\"TS3L4-VSAN\",\"vSAN HCL\",\"\")","v":""},null,{"$f":"IF(W13=\"vSAN\",ConfigurationTS4L6!A90,ConfigurationTS4L6!A89)","v":"PERC H750 Adapter"},null,{"$f":"VLOOKUP($I39,TS4L6_CRTL,13,FALSE)","v":""},{"$f":"VLOOKUP($I39,TS4L6_CRTL,7,FALSE)","v":""},null,{"$f":"R39+S39","v":0},null,null,null,{"$f":"IF(I39=ConfigurationTS4L6!A36,0,VLOOKUP($I39,TS4L6_CRTL,10,FALSE))","v":0},{"$f":"VLOOKUP($I39,TS4L6_CRTL,11,FALSE)","v":0},{"$f":"IF(I16=\"Chassis with Up to 24 x 2.5'' Hard Drives for 2CPU Configuration\",\"L4N34\",IF(V13=\"VxFlex\",\"L4N34\",IF(N7=\"\",\"\",VLOOKUP($I39,TSL6_ALL,12,FALSE))))","v":"L5N44"},null,{"$f":"IF(K39=\"TS3L4-HBA330-L\",1,0)","v":0},{"$f":"IF(I39=\"PERC H740P RAID Controller, 8GB NV Cache\",1,0)","v":0},{"$f":"IF(Y39=1,Y39*V39,W39*V39)","v":0},{"$f":"IF(N7=\"\",1,0)","v":0}]
[]
[null,null,null,null,null,null,null,null,"Hard Drivers Bays n° 8 - 2 bay occupate dai dischi 960GB SSD di base",null,"Usati","Disponibili",null,{"$f":"IF(L42<0,\"Troppi Dischi\",\"\")","v":""}]
[null,null,null,null,null,null,null,null,null,null,{"$f":"SUM(L44:L56)","v":2},{"$f":"8-K42","v":6}]
[]
[null,null,null,null,null,null,null,null,{"$f":"ConfigurationTS4L6!A65","v":"2.4TB 10k SAS ISE 12Gbps"},null,{"$f":"VLOOKUP($I44,TS4L6_HDD,13,FALSE)","v":"TS4L5-HDD2TB"},0,null,{"$f":"R44","v":0},null,null,null,{"$f":"VLOOKUP($I44,TS4L6_HDD,10,FALSE)*L44","v":0},{"$f":"VLOOKUP($I44,TS4L6_HDD,11,FALSE)","v":0},{"$f":"VLOOKUP($I44,TSL6_ALL,12,FALSE)","v":"L5N11"}]
[]
[null,null,null,null,null,null,null,null,{"$f":"ConfigurationTS4L6!A66","v":"1.2TB 10K RPM SAS ISE 12Gbps"},null,{"$f":"VLOOKUP($I46,TS4L6_HDD,13,FALSE)","v":"TS4L5-HDD1TB"},0,null,{"$f":"R46","v":0},null,null,null,{"$f":"VLOOKUP($I46,TS4L6_HDD,10,FALSE)*L46","v":0},{"$f":"VLOOKUP($I46,TS4L6_HDD,11,FALSE)","v":0},{"$f":"VLOOKUP($I46,TSL6_ALL,12,FALSE)","v":"L5N12"}]
[]
[null,null,null,null,null,null,null,null,{"$f":"ConfigurationTS4L6!A67","v":"3.84TB SSD SAS ISE RI 12Gbps"},null,{"$f":"VLOOKUP($I48,TS4L6_HDD,13,FALSE)","v":"TS4L5-SSD-RI3,8TB"},0,null,{"$f":"R48","v":0},null,null,null,{"$f":"VLOOKUP($I48,TS4L6_HDD,10,FALSE)*L48","v":0},{"$f":"VLOOKUP($I48,TS4L6_HDD,11,FALSE)","v":0},{"$f":"VLOOKUP($I48,TSL6_ALL,12,FALSE)","v":"L5N13"}]
[]
[null,null,null,null,null,null,null,null,{"$f":"ConfigurationTS4L6!A68","v":"1.92TB SSD SAS ISE RI 12Gbps"},null,{"$f":"VLOOKUP($I50,TS4L6_HDD,13,FALSE)","v":"TS4L5-SSD-RI1,6TB"},0,null,{"$f":"R50","v":0},null,null,null,{"$f":"VLOOKUP($I50,TS4L6_HDD,10,FALSE)*L50","v":0},{"$f":"VLOOKUP($I50,TS4L6_HDD,11,FALSE)","v":0},{"$f":"VLOOKUP($I50,TSL6_ALL,12,FALSE)","v":"L5N14"}]
[]
[null,null,null,null,null,null,null,null,{"$f":"ConfigurationTS4L6!A69","v":"1.6TB SSD SAS ISE MU 12Gbps"},null,{"$f":"VLOOKUP($I52,TS4L6_HDD,13,FALSE)","v":"TS4L5-SSD-MU1,6TB"},0,null,{"$f":"R52","v":0},null,null,null,{"$f":"VLOOKUP($I52,TS4L6_HDD,10,FALSE)*L52","v":0},{"$f":"VLOOKUP($I52,TS4L6_HDD,11,FALSE)","v":0},{"$f":"VLOOKUP($I52,TSL6_ALL,12,FALSE)","v":"L5N15"}]
[]
[null,null,null,null,null,null,null,null,{"$f":"ConfigurationTS4L6!A70","v":"960GB SSD SAS ISE RI 12Gbps"},null,{"$f":"VLOOKUP($I54,TS4L6_HDD,13,FALSE)","v":"TS4L5-SSD-RI800GB"},2,null,{"$f":"R54","v":0},null,null,null,{"$f":"IF(L54>2,(VLOOKUP($I54,TS4L6_HDD,10,FALSE)*(L54-2)),0)","v":0},{"$f":"VLOOKUP($I54,TS4L6_HDD,11,FALSE)*L54","v":0},{"$f":"VLOOKUP($I54,TSL6_ALL,12,FALSE)","v":"L5N16"}]
[]
[null,null,null,null,null,null,null,null,{"$f":"ConfigurationTS4L6!A71","v":"800GB SSD SAS ISE Mix Use 12Gbps"},null,{"$f":"VLOOKUP($I56,TS4L6_HDD,13,FALSE)","v":"TS4L5-SSD-MU800GB"},0,null,{"$f":"R56","v":0},null,null,null,{"$f":"VLOOKUP($I56,TS4L6_HDD,10,FALSE)*L56","v":0},{"$f":"VLOOKUP($I56,TS4L6_HDD,11,FALSE)*L56","v":0},{"$f":"VLOOKUP($I56,TSL6_ALL,12,FALSE)","v":"L5N17"}]
[]
[null,null,null,null,null,null,null,null,{"$f":"ConfigurationTS4L6!A72","v":"7.68TB SSD RI SAS ISE 12Gbps"},null,{"$f":"VLOOKUP($I58,TS4L6_HDD,13,FALSE)","v":"TS4L5-SSD7,68RI"},0,null,{"$f":"R58+S58","v":0},null,null,null,{"$f":"VLOOKUP($I58,TS4L6_HDD,11,FALSE)*L58","v":0},{"$f":"VLOOKUP($I58,TS4L6_HDD,10,FALSE)*L58","v":0},{"$f":"VLOOKUP($I58,TSL6_ALL,12,FALSE)","v":"L5N30"}]
[]
[null,null,null,null,null,null,null,null,"BOSS controller card"]
[null,null,null,null,null,null,null,null,{"$f":"IF(Z27=\"2TB\",ConfigurationTS4L6!A95,ConfigurationTS4L6!A93)","v":"No Boss card"},null,{"$f":"IF(S61>0,VLOOKUP($I61,TS4L6_ISDM,13,FALSE),\"\")","v":""},{"$f":"VLOOKUP($I61,TS4L6_ISDM,7,FALSE)","v":""},null,null,null,null,null,{"$f":"VLOOKUP($I61,TS4L6_ISDM,10,FALSE)","v":0},{"$f":"VLOOKUP($I61,TS4L6_ISDM,11,FALSE)","v":0},{"$f":"VLOOKUP($I61,TSL6_ALL,12,FALSE)","v":""}]
[]
[null,null,null,null,null,null,null,null,"Power Supply",{"$f":"IF(N63=\"\",\"\",U64)","v":""}]
[null,null,null,null,null,null,null,null,{"$f":"ConfigurationTS4L6!A80","v":"Dual, Hot-plug, Redundant Power Supply (1+1), 1600W, 250 Volt"},null,{"$f":"VLOOKUP($I64,TS4L6_PSU,13,FALSE)","v":"TS4L5-PSU1600W"},{"$f":"VLOOKUP($I64,TS4L6_PSU,7,FALSE)","v":1},null,null,null,null,null,{"$f":"VLOOKUP($I64,TS4L6_PSU,10,FALSE)","v":0},{"$f":"VLOOKUP($I64,TS4L6_PSU,11,FALSE)","v":0},{"$f":"VLOOKUP($I64,TSL6_ALL,12,FALSE)","v":"L5N49"},"⚠"]
[]
[null,null,null,null,null,null,null,null,"Embedded Systems Management"]
[null,null,null,null,null,null,null,null,"iDRAC9,Enterprise"]
[]
[]
[null,null,null,null,null,null,null,null,null,null,null,null,null,null,null,null,null,null,null,null,{"$f":"IF($K$16=\"TS3L4-GPUDW\",\"1\",IF($K$16=\"TS3L4-GPUSW\",\"20\",IF($L$22=1,\"300\",\"4000\")))","v":"4000"}]
[null,null,null,null,null,null,null,null,"PCI Slot 1 Processor 1 x8 PCIe for HL/FH"]
[null,null,null,null,null,null,null,null,"",null,{"$f":"VLOOKUP($I72,TSL6_ALL,13,FALSE)","v":""},{"$f":"VLOOKUP($I72,TSL6_ALL,7,FALSE)","v":""},null,{"$f":"R72+S72","v":0},null,null,null,{"$f":"VLOOKUP($I72,TS4L5_PCI,10,FALSE)","v":0},{"$f":"VLOOKUP($I72,TS4L5_PCI,11,FALSE)","v":0},{"$f":"VLOOKUP($I72,TS4L5_PCI,12,FALSE)","v":""}]
[]
[null,null,null,null,null,null,null,null,"PCI Slot 2 Processor 1 x8 PCIe  for HL/FH"]
[null,null,null,null,null,null,null,null,"",null,{"$f":"VLOOKUP($I75,TSL6_ALL,13,FALSE)","v":""},{"$f":"VLOOKUP($I75,TSL6_ALL,7,FALSE)","v":""},null,{"$f":"R75+S75","v":0},null,null,null,{"$f":"VLOOKUP($I75,TS4L5_PCI,10,FALSE)","v":0},{"$f":"VLOOKUP($I75,TS4L5_PCI,11,FALSE)","v":0},{"$f":"VLOOKUP($I75,TS4L5_PCI,12,FALSE)","v":""},{"$f":"IF(L75=\"\",\"OK\",IF(V75+L75=2,\"Errore\",\"OK\"))","v":"OK"}]
[]
[null,null,null,null,null,null,null,null,"PCI Slot 3 Processor 1 x16 PCIe  for HL/LP"]
[null,null,null,null,null,null,null,null,"Riservato per PERC",null,null,null,null,{"$f":"R78+S78","v":0},null,null,null,0,0,{"$f":"\"\"","v":""}]
[]
[null,null,null,null,null,null,null,null,"PCI Slot 4 Processor 2 x16 PCIe  for HL/LP",{"$f":"IF($V$70=\"SW\",\"GPU Slot\",IF($V$70=\"DW\",\"GPU Slot\",\"\"))","v":""}]
[null,null,null,null,null,null,null,null,"",null,{"$f":"VLOOKUP($I81,TSL6_ALL,13,FALSE)","v":""},{"$f":"VLOOKUP($I81,TSL6_ALL,7,FALSE)","v":""},null,{"$f":"R81+S81","v":0},null,null,null,{"$f":"VLOOKUP($I81,TS4L5_PCI_LP,10,FALSE)","v":0},{"$f":"VLOOKUP($I81,TS4L5_PCI_LP,11,FALSE)","v":0},{"$f":"VLOOKUP($I81,TS4L5_PCI_LP,12,FALSE)","v":""}]
[]
[null,null,null,null,null,null,null,null,"PCI Slot 5 Processor 2 x8 PCIe  for HL/FH",{"$f":"IF($V$70=\"SW\",\"GPU Slot\",\"\")","v":""},null,{"$f":"IF(AND(L84=1,L61=1),\"In caso di BOSS card lo slot 5 è riservato\",\"\")","v":""}]
[null,null,null,null,null,null,null,null,"Riservato Boss Card",null,{"$f":"VLOOKUP($I84,TSL6_ALL,13,FALSE)","v":""},{"$f":"VLOOKUP($I84,TSL6_ALL,7,FALSE)","v":""},null,{"$f":"R84+S84","v":0},null,null,null,{"$f":"VLOOKUP($I84,TS4L5_PCI,10,FALSE)","v":0},{"$f":"VLOOKUP($I84,TS4L5_PCI,11,FALSE)","v":0},{"$f":"VLOOKUP($I84,TS4L5_PCI,12,FALSE)","v":""},{"$f":"IF(L84=\"\",\"OK\",IF(V84+L84=2,\"Errore\",\"OK\"))","v":"OK"}]
[]
[null,null,null,null,null,null,null,null,"PCI Slot 6 Processor 2 x8 PCIe  for HL/FH"]
[null,null,null,null,null,null,null,null,"",null,{"$f":"VLOOKUP($I87,TSL6_ALL,13,FALSE)","v":""},{"$f":"IF($V$13=\"VxFlex\",1,VLOOKUP($I87,TSL6_ALL,7,FALSE))","v":""},null,{"$f":"R87+S87","v":0},null,null,null,{"$f":"VLOOKUP($I87,TS4L5_PCI,10,FALSE)","v":0},{"$f":"VLOOKUP($I87,TS4L5_PCI,11,FALSE)","v":0},{"$f":"VLOOKUP($I87,TS4L5_PCI,12,FALSE)","v":""}]
[]
[null,null,null,null,null,null,null,null,"SFP+ Transceivers 10 Gbps",null,"Si ricorda che nelle schede di Base sono già Compresi gli SFP"]
[null,null,null,null,null,null,null,null,{"$f":"ConfigurationTS4L6!A147","v":"SFP+ SR Optic for all SFP+ ports except high temp validation warning cards"},null,{"$f":"VLOOKUP($I90,TS4L6_SFP,13,FALSE)","v":"TS4L5-OT10GB"},0,null,{"$f":"R90+S90","v":0},null,null,null,{"$f":"VLOOKUP($I90,TS4L6_SFP,10,FALSE)","v":0},{"$f":"VLOOKUP($I90,TS4L6_SFP,11,FALSE)*L90","v":0},{"$f":"IF(L90>0,VLOOKUP($I90,TS4L6_SFP,12,FALSE),\"\")","v":""}]
[]
[null,null,null,null,null,null,null,null,"SFP28 - 25GbE"]
[null,null,null,null,null,null,null,null,{"$f":"ConfigurationTS4L6!A148","v":"SFP28 SR Optic, 25GbE, 85C, for all SFP28 ports"},null,{"$f":"VLOOKUP($I93,TS4L6_SFP,13,FALSE)","v":"TS4L5-OT25GB"},0,null,{"$f":"R93+S93","v":0},null,null,null,{"$f":"VLOOKUP($I93,TS4L6_SFP,10,FALSE)","v":0},{"$f":"VLOOKUP($I93,TS4L6_SFP,11,FALSE)*L93","v":0},{"$f":"IF(L93>0,VLOOKUP($I93,TS4L6_SFP,12,FALSE),\"\")","v":""}]
[]
[null,null,null,null,null,null,null,null,"QSFP+ - 40GbE"]
[null,null,null,null,null,null,null,null,{"$f":"ConfigurationTS4L6!A149","v":"Dell Networking, Transceiver, 40GbE QSFP+ SR4 Optics, MPO, 850nmWavelength, 100-150m Reach on OM3/OM4"},null,{"$f":"VLOOKUP($I96,TS4L6_SFP,13,FALSE)","v":"TS4L5-OT40GB"},0,null,{"$f":"R96+S96","v":0},null,null,null,{"$f":"VLOOKUP($I96,TS4L6_SFP,10,FALSE)","v":0},{"$f":"VLOOKUP($I96,TS4L6_SFP,11,FALSE)*L96","v":0},{"$f":"IF(L96>0,VLOOKUP($I96,TS4L6_SFP,12,FALSE),\"\")","v":""}]
[]
[null,null,null,null,null,null,null,null,"QSFP28-100GbE"]
[null,null,null,null,null,null,null,null,{"$f":"ConfigurationTS4L6!A150","v":"Dell EMC PowerEdge QSFP28 SR4 100GbE 85C optic"},null,{"$f":"VLOOKUP($I99,TS4L6_SFP,13,FALSE)","v":"TS4L5-OT100GB"},null,null,{"$f":"R99+S99","v":0},null,null,null,{"$f":"VLOOKUP($I99,TS4L6_SFP,10,FALSE)","v":0},{"$f":"VLOOKUP($I99,TS4L6_SFP,11,FALSE)*L99","v":0},{"$f":"IF(L99>0,VLOOKUP($I99,TS4L6_SFP,12,FALSE),\"\")","v":""}]
[]
[null,null,null,null,null,null,null,null,"Garanzia"]
[null,null,null,null,null,null,null,null,"Manutenzione in garanzia (36 mesi)",null,{"$f":"VLOOKUP($I102,TS4L6_WARRANTY,13,FALSE)","v":""},{"$f":"VLOOKUP($I102,TSL6_ALL,7,FALSE)","v":""},null,{"$f":"R102","v":0},null,null,null,{"$f":"VLOOKUP($I102,TS4L6_WARRANTY,10,FALSE)","v":0},{"$f":"VLOOKUP($I102,TS4L6_WARRANTY,11,FALSE)","v":0},{"$f":"VLOOKUP($I102,TSL6_ALL,12,FALSE)","v":""}]
[]
[null,null,null,null,null,null,null,null,"Hard Disk Retention",null,null,{"$f":"IF(AND(I105=\"Hard disk Retention 60 mesi\",L102=\"\"),\"Selezionare Estensione di Garanzia 60 Mesi\",\"\")","v":""}]
[null,null,null,null,null,null,null,null,"",null,{"$f":"VLOOKUP($I105,TS4L6_HDDRET,13,FALSE)","v":""},{"$f":"IF(I105=\"\",\"\",1)","v":""},null,{"$f":"R105","v":""},null,null,null,{"$f":"IF(L104<>\"\",\"\",VLOOKUP(I105,TS4L6_HDDRET,10,FALSE))","v":""},{"$f":"IFERROR(X105,VLOOKUP(I105,TSL6_ALL,11,FALSE))","v":0},{"$f":"IF(L104<>\"\",\"\",VLOOKUP(I105,TS4L6_HDDRET,12,FALSE))","v":""}]
[]
[]
[null,null,null,null,null,null,null,null,null,null,"Configurazione",{"$f":"SUM(R13:R105)*L8","v":0}]
[null,null,null,null,null,null,null,null,null,null,0.2,{"$f":"SUM(S13:S105)*L8","v":0}]
[null,null,null,null,null,null,null,null,null,null,"Totale",{"$f":"SUM(L108:L109)","v":0}]
[]
[null,null,null,null,null,null,null,null,"NOTE"]

{"sheet":"Altre_Opzioni","index":4,"n_rows":22,"n_cols":16,"rows_kept":22,"cut":false,"hidden":false,"merged":[[1,9,1,11],[20,7,21,7],[17,7,18,7],[5,7,6,7],[8,7,9,7],[11,7,12,7],[14,7,15,7]]}
[]
[null,null,null,null,null,null,"Opzioni",null,null,"Totale altre opzioni"]
[null,null,null,null,null,null,null,null,null,{"$f":"SUM(N7:N16)","v":0}]
[]
[]
[null,null,null,null,null,null,"OpzRack"]
[null,null,null,null,null,null,{"$f":"ConfigurationTS4L6!A115","v":"Armadio Rack 42U"},null,{"$f":"VLOOKUP($G7,TS4L5_RACK,13,FALSE)","v":"TS4L5-RACK"},0,null,{"$f":"N7","v":0},null,{"$f":"VLOOKUP($G7,TS4L5_RACK,11,FALSE)*J7","v":0},{"$f":"VLOOKUP($G7,TS4L5_RACK,10,FALSE)*J7","v":0},{"$f":"VLOOKUP($G7,TS4L5_RACK,12,FALSE)","v":"L5N28"}]
[]
[null,null,null,null,null,null,"OpzUps (3000VA)"]
[null,null,null,null,null,null,{"$f":"ConfigurationTS4L6!A158","v":"Dispositivo UPS di tipo On-line doppia conversione, strutturato per il montaggio a rack da 19”"},null,{"$f":"VLOOKUP($G10,TS4L5_UPS,13,FALSE)","v":"TS4L5-UPS"},0,null,{"$f":"N10","v":0},null,{"$f":"VLOOKUP($G10,TS4L5_UPS,11,FALSE)*J10","v":0},{"$f":"VLOOKUP($G10,TS4L5_UPS,10,FALSE)*J10","v":0},{"$f":"VLOOKUP($G10,TS4L5_UPS,12,FALSE)","v":"L5N18"}]
[]
[null,null,null,null,null,null,"OpzGUI"]
[null,null,null,null,null,null,{"$f":"ConfigurationTS4L6!A161","v":"Unità KVM - monitor 17\", cavo combi PS/2&USB da 1,8mt, tastiera italiana, touch pad"},null,{"$f":"VLOOKUP($G13,TS4L5_GUI,13,FALSE)","v":"TS4L5-GUI"},0,null,{"$f":"N13","v":0},null,{"$f":"VLOOKUP($G13,TS4L5_GUI,11,FALSE)*J13","v":0},{"$f":"VLOOKUP($G13,TS4L5_GUI,10,FALSE)*J13","v":0},{"$f":"VLOOKUP($G13,TS4L5_GUI,12,FALSE)","v":"L5N19"}]
[]
[null,null,null,null,null,null,"OpzKVM"]
[null,null,null,null,null,null,{"$f":"ConfigurationTS4L6!A165","v":"KVM Switch IP per GUI 16P"},null,{"$f":"VLOOKUP($G16,TS4L5_KVM,13,FALSE)","v":"TS4L5-KVM"},0,null,{"$f":"N16","v":0},null,{"$f":"VLOOKUP($G16,TS4L5_KVM,11,FALSE)*J16","v":0},{"$f":"VLOOKUP($G16,TS4L5_KVM,10,FALSE)*J16","v":0},{"$f":"VLOOKUP($G16,TS4L5_KVM,12,FALSE)","v":"L5N20"}]
[]
[null,null,null,null,null,null,{"$f":"IF(#REF!+#REF!>0,\"OpzDeviceCal\",\"\")","v":{"$error":"#REF!"}}]
[null,null,null,null,null,null,{"$f":"IF(#REF!+#REF!>0,\"1-pack of Windows Server 2019/2016 Device CALs (STD or DC)\",\"\")","v":{"$error":"#REF!"}},null,{"$f":"VLOOKUP($G19,TS4L4_ALL,13,FALSE)","v":{"$error":"#REF!"}},null,null,null,null,{"$f":"VLOOKUP($G19,TS4L4_ALL,10,FALSE)*J19","v":{"$error":"#REF!"}},{"$f":"VLOOKUP($G19,TS4L4_ALL,11,FALSE)","v":{"$error":"#REF!"}},{"$f":"VLOOKUP($G19,TS4L4_ALL,12,FALSE)","v":{"$error":"#REF!"}}]
[]
[null,null,null,null,null,null,{"$f":"IF(#REF!+#REF!>0,\"OpzUserCal\",\"\")","v":{"$error":"#REF!"}}]
[null,null,null,null,null,null,{"$f":"IF(#REF!+#REF!>0,\"1-pack of Windows Server 2019/2016 User CALs (STD or DC)\",\"\")","v":{"$error":"#REF!"}},null,{"$f":"VLOOKUP($G22,TS4L4_ALL,13,FALSE)","v":{"$error":"#REF!"}},null,null,null,null,{"$f":"VLOOKUP($G22,TS4L4_ALL,10,FALSE)*J22","v":{"$error":"#REF!"}},{"$f":"VLOOKUP($G22,TS4L4_ALL,11,FALSE)","v":{"$error":"#REF!"}},{"$f":"VLOOKUP($G22,TS4L4_ALL,12,FALSE)","v":{"$error":"#REF!"}}]

{"sheet":"Riepilogo_ordine","index":5,"n_rows":73,"n_cols":25,"rows_kept":73,"cut":false,"hidden":false,"merged":[[69,8,69,9],[70,8,70,9],[71,5,71,6],[71,8,71,9],[68,5,68,6],[68,8,68,9],[6,5,6,6],[6,7,6,9],[7,5,7,6],[7,7,7,9],[8,5,8,6],[8,7,8,9],[9,5,9,6],[9,7,9,9],[10,8,10,9],[11,5,11,10],[52,5,52,10],[1,5,1,7],[1,8,3,10],[2,5,2,7],[3,5,3,7],[4,5,4,7],[4,8,4,9],[4,10,5,10],[5,5,5,7],[5,8,5,9]]}
[]
[null,null,null,null,null,"Convenzione \nTecnologie Server 4 - Lotto 5",null,null,{"$f":"IF(P8>0,\"Compilare i Dati Necessari (*) all'Ordine o controllare le Configurazioni per Stampare in PDF\",\"Dati Completi\")","v":"Compilare i Dati Necessari (*) all'Ordine o controllare le Configurazioni per Stampare in PDF"},null,null,null,null,null,null,null,null,null,null,null,null,null,null,null,"SI"]
[null,null,null,null,null,"Riepilogo Ordine N°",null,null,null,null,null,null,null,null,null,null,null,{"$f":"IF(Lotto5_R840_1!L8>0,1,0)","v":0},{"$f":"IF(Lotto5_R840_2!L8>0,1,0)","v":0},{"$f":"IF(Lotto5_R840_3!L8>0,1,0)","v":0},null,{"$f":"SUM(R3:T3)","v":0},null,null,"SI"]
[null,null,null,null,null,null,null,null,null,null,null,null,null,null,null,null,null,null,null,null,null,null,null,null,"SI"]
[null,null,null,null,null,"Ente Ordinante",null,null,"Data",null,null,null,null,null,null,"Ordine","Ente","data","Ref Cons","mail","tel","Ref Inst","mail","Tel","SI"]
[null,null,null,null,null,null,null,null,null,null,null,null,null,null,null,{"$f":"IF(F4>0,0,1)","v":1},{"$f":"IF(F6>0,0,1)","v":1},{"$f":"IF(I6>0,0,1)","v":1},{"$f":"IF(F8>0,0,1)","v":1},{"$f":"IF(H8>0,0,1)","v":1},{"$f":"IF(K8>0,0,1)","v":1},{"$f":"IF(F10>0,0,1)","v":1},{"$f":"IF(H10>0,0,1)","v":1},{"$f":"IF(K10>0,0,1)","v":1},"SI"]
[null,null,null,null,null,"Referente Consegna",null,"Mail",null,null,"Tel",null,null,null,null,null,null,null,null,null,null,null,null,null,"SI"]
[null,null,null,null,null,null,null,null,null,null,null,null,null,null,null,{"$f":"SUM(P6:X6)+SUM(R10:T10)","v":9},null,null,null,null,null,null,null,null,"SI"]
[null,null,null,null,null,"Referente Installazione",null,"Mail",null,null,"Tel",null,null,null,null,null,null,null,null,null,null,null,null,null,"SI"]
[null,null,null,null,null,null,null,null,null,null,null,null,null,null,null,null,null,{"$f":"IF(Lotto5_R840_1!K4<>\"\",1,0)","v":0},{"$f":"IF(Lotto5_R840_2!K4<>\"\",1,0)","v":0},{"$f":"IF(Lotto5_R840_3!K4<>\"\",1,0)","v":0},null,null,null,null,"SI"]
[null,null,null,null,null,{"$f":"IF(R10>0,\"Errore nella Configurazione 1\",\"\")","v":""},{"$f":"IF(S10>0,\"Errore nella Configurazione 2\",\"\")","v":""},null,{"$f":"IF(T10>0,\"Errore nella Configurazione 3\",\"\")","v":""},null,null,null,null,null,null,null,null,null,null,null,null,null,null,null,"SI"]
[null,null,null,null,null,"Articoli in convenzione",null,null,null,null,null,null,null,null,null,null,null,"Config 1","Config 2","Config 3","Totale",null,null,null,"SI"]
[null,null,null,null,null,"Codice Produttore","Codice Convenzione","Descrizione","Qtà","Costo unitario","Costo Totale",null,null,null,null,"N°","Codice Convenzione",{"$f":"Lotto5_R840_1!L8","v":0},{"$f":"Lotto5_R840_2!L8","v":0},{"$f":"Lotto5_R840_3!L8","v":0},null,null,null,null,"SI"]
[null,null,null,null,null,{"$f":"IF(I14=\"\",\"\",VLOOKUP(P14,Tabella_Prezzi,10,FALSE))","v":""},{"$f":"IF(I14=\"\",\"\",VLOOKUP(P14,Tabella_Prezzi,6,FALSE))","v":""},{"$f":"IF(J14=\"\",\"\",VLOOKUP(P14,Tabella_Prezzi,9,FALSE))","v":""},{"$f":"IF(U14>0,U14,\"\")","v":""},{"$f":"IF(I14=\"\",\"\",VLOOKUP(P14,Tabella_Prezzi,4,FALSE))","v":""},{"$f":"IF(F14=\"\",\"\",J14*I14)","v":""},null,null,null,null,"L5N01","TS4L6-SRV",{"$f":"COUNTIF(TS4L5_1,P14)*$R$13","v":0},{"$f":"COUNTIF(TS4L5_2,P14)*$S$13","v":0},{"$f":"COUNTIF(TS4L5_3,P14)*$T$13","v":0},{"$f":"SUM(R14:T14)","v":0},null,null,null,{"$f":"IF(I14<>\"\",\"SI\",\"NO\")","v":"NO"}]
[null,null,null,null,null,"","","",{"$f":"IF(U15>0,U15,\"\")","v":""},"","",null,null,null,null,"L5N01-NVMe","TS4L6-SRV-NVME",{"$f":"COUNTIF(TS4L5_1,P15)*$R$13","v":0},{"$f":"COUNTIF(TS4L5_2,P15)*$S$13","v":0},{"$f":"COUNTIF(TS4L5_3,P15)*$T$13","v":0},0,null,null,null,"NO"]
[null,null,null,null,null,"","","","","","",null,null,null,null,"L5N01-vSAN","TS4L6-SRV-vSAN",{"$f":"COUNTIF(TS4L5_1,P16)*$R$13","v":0},{"$f":"COUNTIF(TS4L5_2,P16)*$S$13","v":0},{"$f":"COUNTIF(TS4L5_3,P16)*$T$13","v":0},0,null,null,null,"NO"]
[null,null,null,null,null,"","","","","","",null,null,null,null,"L5N02","TS4L6-CPU",{"$f":"COUNTIF(TS4L5_1,P17)*$R$13","v":0},{"$f":"COUNTIF(TS4L5_2,P17)*$S$13","v":0},{"$f":"COUNTIF(TS4L5_3,P17)*$T$13","v":0},0,null,null,null,"NO"]
[null,null,null,null,null,"","","","","","",null,null,null,null,"L5N03","TS4L6-RAM32",{"$f":"COUNTIF(TS4L5_1,P18)*Lotto5_R840_1!L28*R13","v":0},{"$f":"COUNTIF(TS4L5_2,P18)*Lotto5_R840_2!L28*S13","v":0},{"$f":"COUNTIF(TS4L5_3,P18)*Lotto5_R840_3!L28*T13","v":0},0,null,null,null,"NO"]
[null,null,null,null,null,"","","","","","",null,null,null,null,"L5N04","TS4L6-RAM64",{"$f":"COUNTIF(TS4L5_1,P19)*Lotto5_R840_1!L28*R13","v":0},{"$f":"COUNTIF(TS4L5_2,P19)*Lotto5_R840_2!L28*$S$13","v":0},{"$f":"COUNTIF(TS4L5_3,P19)*Lotto5_R840_3!L28*$T$13","v":0},0,null,null,null,"NO"]
[null,null,null,null,null,"","","","","","",null,null,null,null,"L5N05","TS4L6-LAN1",{"$f":"COUNTIF(TS4L5_1,P20)*$R$13","v":0},{"$f":"COUNTIF(TS4L5_2,P20)*$S$13","v":0},{"$f":"COUNTIF(TS4L5_3,P20)*$T$13","v":0},0,null,null,null,"NO"]
[null,null,null,null,null,"","","","","","",null,null,null,null,"L5N75","TS4L6-LAN1-L",{"$f":"COUNTIF(TS4L5_1,P21)*$R$13","v":0},0,0,0,null,null,null,"NO"]
[null,null,null,null,null,"","","","","","",null,null,null,null,"L5N06","TS4L6-LAN10",{"$f":"COUNTIF(TS4L5_1,P22)*$R$13","v":0},0,0,0,null,null,null,"NO"]
[null,null,null,null,null,"","","","","","",null,null,null,null,"L5N76","TS4L6-LAN10-L",{"$f":"COUNTIF(TS4L5_1,P23)*$R$13","v":0},0,0,0,null,null,null,"NO"]
[null,null,null,null,null,"","","","","","",null,null,null,null,"L5N07","TS4L6-LAN25",{"$f":"COUNTIF(TS4L5_1,P24)*$R$13","v":0},0,0,0,null,null,null,"NO"]
[null,null,null,null,null,"","","","","","",null,null,null,null,"L5N77","TS4L6-LAN25-L",{"$f":"COUNTIF(TS4L5_1,P25)*$R$13","v":0},0,0,0,null,null,null,"NO"]
[null,null,null,null,null,"","","","","","",null,null,null,null,"L5N08","TS4L6-CNA10",{"$f":"COUNTIF(TS4L5_1,P26)*$R$13","v":0},0,0,0,null,null,null,"NO"]
[null,null,null,null,null,"","","","","","",null,null,null,null,"L5N78","TS4L6-CNA10-L",{"$f":"COUNTIF(TS4L5_1,P27)*$R$13","v":0},0,0,0,null,null,null,"NO"]
[null,null,null,null,null,"","","","","","",null,null,null,null,"L5N09","TS4L6-BaseT",{"$f":"COUNTIF(TS4L5_1,P28)*$R$13","v":0},0,0,0,null,null,null,"NO"]
[null,null,null,null,null,"","","","","","",null,null,null,null,"L5N79","TS4L6- BaseT-L",{"$f":"COUNTIF(TS4L5_1,P29)*$R$13","v":0},0,0,0,null,null,null,"NO"]
[null,null,null,null,null,"","","","","","",null,null,null,null,"L5N10","TS4L6- FibreChannel",{"$f":"COUNTIF(TS4L5_1,P30)*$R$13","v":0},0,0,0,null,null,null,"NO"]
[null,null,null,null,null,"","","","","","",null,null,null,null,"L5N101","TS4L6- FibreChannel",{"$f":"COUNTIF(TS4L5_1,P31)*$R$13","v":0},0,0,0,"Quantità 1","Quantità 2","Quantità 3","NO"]
[null,null,null,null,null,"","","","","","",null,null,null,null,"L5N11","TS4L6-HDD2TB",{"$f":"COUNTIF(TS4L5_1,P32)*V32*$R$13","v":0},{"$f":"COUNTIF(TS4L5_2,P32)*W32*$S$13","v":0},{"$f":"COUNTIF(TS4L5_3,P32)*X32*$T$13","v":0},0,{"$f":"Lotto5_R840_1!L44","v":0},{"$f":"Lotto5_R840_2!L44","v":0},{"$f":"Lotto5_R840_3!L44","v":0},"NO"]
[null,null,null,null,null,"","","","","","",null,null,null,null,"L5N12","TS4L6-HDD1TB",{"$f":"COUNTIF(TS4L5_1,P33)*V33*$R$13","v":0},0,0,0,{"$f":"Lotto5_R840_1!L46","v":0},{"$f":"Lotto5_R840_2!L46","v":0},{"$f":"Lotto5_R840_3!L46","v":0},"NO"]
[null,null,null,null,null,"","","","","","",null,null,null,null,"L5N13","TS4L6-SSD-RI3,8TB",{"$f":"COUNTIF(TS4L5_1,P34)*V34*$R$13","v":0},0,0,0,{"$f":"Lotto5_R840_1!L48","v":0},{"$f":"Lotto5_R840_2!L48","v":0},{"$f":"Lotto5_R840_3!L48","v":0},"NO"]
[null,null,null,null,null,"","","","","","",null,null,null,null,"L5N14","TS4L6-SSD-RI1,6TB",{"$f":"COUNTIF(TS4L5_1,P35)*V35*$R$13","v":0},0,0,0,{"$f":"Lotto5_R840_1!L50","v":0},{"$f":"Lotto5_R840_2!L50","v":0},{"$f":"Lotto5_R840_3!L50","v":0},"NO"]
[null,null,null,null,null,"","","","","","",null,null,null,null,"L5N15","TS4L6-SSD-MU1,6TB",{"$f":"COUNTIF(TS4L5_1,P36)*V36*$R$13","v":0},0,0,0,{"$f":"Lotto5_R840_1!L52","v":0},{"$f":"Lotto5_R840_2!L52","v":0},{"$f":"Lotto5_R840_3!L52","v":0},"NO"]
[null,null,null,null,null,"","","","","","",null,null,null,null,"L5N16","TS4L6-SSD-RI800GB",{"$f":"COUNTIF(TS4L5_1,P37)*V37*$R$13","v":0},0,0,0,{"$f":"IF(Lotto5_R840_1!L54<=2,0,Lotto5_R840_1!L54-2)","v":0},{"$f":"IF(Lotto5_R840_2!L54<=2,0,Lotto5_R840_2!L54-2)","v":0},{"$f":"IF(Lotto5_R840_3!L54<=2,0,Lotto5_R840_3!L54-2)","v":0},"NO"]
[null,null,null,null,null,"","","","","","",null,null,null,null,"L5N17","TS4L6-SSD-MU800GB",{"$f":"COUNTIF(TS4L5_1,P38)*V38*$R$13","v":0},0,0,0,{"$f":"Lotto5_R840_1!L56","v":0},{"$f":"Lotto5_R840_2!L56","v":0},{"$f":"Lotto5_R840_3!L56","v":0},"NO"]
[null,null,null,null,null,"","","","","","",null,null,null,null,"L5N18","TS4L6-UPS",null,null,null,{"$f":"Altre_Opzioni!J10","v":0},null,null,null,"NO"]
[null,null,null,null,null,"","","","","","",null,null,null,null,"L5N19","TS4L6-GUI",null,null,null,{"$f":"Altre_Opzioni!J13","v":0},null,null,null,"NO"]
[null,null,null,null,null,"","","","","","",null,null,null,null,"L5N20","TS4L6-SWKVM",null,null,null,{"$f":"Altre_Opzioni!J16","v":0},null,null,null,"NO"]
[null,null,null,null,null,"","","","","","",null,null,null,null,"L5N21","TS4L6-WINSRVSTD",{"$f":"COUNTIF(TS4L5_1,P42)*V42*$R$13","v":0},{"$f":"COUNTIF(TS4L5_2,P43)*W42*$S$13","v":0},{"$f":"COUNTIF(TS4L5_3,P42)*X42*$T$13","v":0},{"$f":"SUM(R42:T42)","v":0},{"$f":"Lotto5_R840_1!L31","v":0},{"$f":"Lotto5_R840_2!L31","v":0},{"$f":"Lotto5_R840_3!L31","v":0},"NO"]
[null,null,null,null,null,"","","","","","",null,null,null,null,"L5N22","TS4L6-WINDEVCAL",{"$f":"COUNTIF(TS4L5_1,P43)*V43*$R$13","v":0},{"$f":"COUNTIF(TS4L5_2,P43)*W43*$S$13","v":0},{"$f":"COUNTIF(TS4L5_3,P43)*X43*$T$13","v":0},{"$f":"SUM(R43:T43)","v":0},{"$f":"Lotto5_R840_1!L35","v":0},{"$f":"Lotto5_R840_2!L35","v":0},{"$f":"Lotto5_R840_3!L35","v":0},"NO"]
[null,null,null,null,null,"","","","","","",null,null,null,null,"L5N23","TS4L6-WINUSRCAL",{"$f":"COUNTIF(TS4L5_1,P44)*V44*$R$13","v":0},{"$f":"COUNTIF(TS4L5_2,P44)*W44*$S$13","v":0},{"$f":"COUNTIF(TS4L5_3,P44)*X44*$T$13","v":0},{"$f":"SUM(R44:T44)","v":0},{"$f":"Lotto5_R840_1!L36","v":0},{"$f":"Lotto5_R840_2!L36","v":0},{"$f":"Lotto5_R840_3!L36","v":0},"NO"]
[null,null,null,null,null,"","","","","","",null,null,null,null,"L5N24","TS4L6-WINSRV2C",{"$f":"COUNTIF(TS4L5_1,P45)*V45*$R$13","v":0},{"$f":"COUNTIF(TS4L5_2,P45)*W45*$S$13","v":0},{"$f":"COUNTIF(TS4L5_3,P45)*X45*$T$13","v":0},{"$f":"SUM(R45:T45)","v":0},{"$f":"Lotto5_R840_1!$L$32","v":0},{"$f":"Lotto5_R840_2!$L$32","v":0},{"$f":"Lotto5_R840_3!$L$32","v":0},"NO"]
[null,null,null,null,null,"","","","","","",null,null,null,null,"L5N25","TS4L6-LINUX",{"$f":"COUNTIF(TS4L5_1,P46)*V46*$R$13","v":0},{"$f":"COUNTIF(TS4L5_2,P46)*W46*$S$13","v":0},{"$f":"COUNTIF(TS4L5_3,P46)*X46*$T$13","v":0},{"$f":"SUM(R46:T46)","v":0},null,null,null,"NO"]
[null,null,null,null,null,"","","","","","",null,null,null,null,"L5N26","TS4L6-HDRTNTN36",{"$f":"COUNTIF(TS4L5_1,P47)*$R$13","v":0},{"$f":"COUNTIF(TS4L5_2,P47)*$S$13","v":0},{"$f":"COUNTIF(TS4L5_3,P47)*$T$13","v":0},{"$f":"SUM(R47:T47)","v":0},null,null,null,"NO"]
[null,null,null,null,null,"","","","","","",null,null,null,null,"L5N26b","TS4L6-HDRTNTN60",{"$f":"COUNTIF(TS4L5_1,P48)*$R$13","v":0},{"$f":"COUNTIF(TS4L5_2,P48)*$S$13","v":0},{"$f":"COUNTIF(TS4L5_3,P48)*$T$13","v":0},{"$f":"SUM(R48:T48)","v":0},null,null,null,"NO"]
[null,null,null,null,null,"","","","","","",null,null,null,null,"L5N27","TS4L6-OpzEst24",{"$f":"COUNTIF(TS4L5_1,P49)*$R$13","v":0},{"$f":"COUNTIF(TS4L5_2,P49)*$S$13","v":0},{"$f":"COUNTIF(TS4L5_3,P49)*$T$13","v":0},{"$f":"SUM(R49:T49)","v":0},null,null,null,"NO"]
[null,null,null,null,null,"","","","","","",null,null,null,null,"L5N28","TS4L6-RACK",null,null,null,{"$f":"Altre_Opzioni!J7","v":0},null,null,null,"NO"]
[null,null,null,null,null,null,null,null,null,null,null,null,null,null,null,null,null,null,null,null,null,null,null,null,"SI"]
[null,null,null,null,null,null,null,null,null,null,null,null,null,null,null,null,null,null,null,null,null,null,null,null,"SI"]
[null,null,null,null,null,"Opzioni 20 %",null,null,null,null,null,null,null,null,null,null,null,"Config 1","Config 2","Config 3","Totale",null,null,null,{"$f":"IF(K70>0,\"SI\",\"NO\")","v":"NO"}]
[null,null,null,null,null,"Codice Produttore","Codice Convenzione",null,"Qtà","Costo unitario","Costo Totale",null,null,null,null,"N°","Codice Convenzione",{"$f":"Lotto5_R840_1!L8","v":0},{"$f":"Lotto5_R840_2!L8","v":0},{"$f":"Lotto5_R840_3!L8","v":0},{"$f":"SUM(R54:T54)","v":0},"Quantità 1","Quantità 2","Quantità 3",{"$f":"IF(K70>0,\"SI\",\"NO\")","v":"NO"}]
[null,null,null,null,null,{"$f":"IF(I55=\"\",\"\",VLOOKUP(P55,Tabella_Prezzi,10,FALSE))","v":""},{"$f":"IF(I55=\"\",\"\",VLOOKUP(P55,Tabella_Prezzi,6,FALSE))","v":""},{"$f":"IF(J55=\"\",\"\",VLOOKUP(P55,Tabella_Prezzi,9,FALSE))","v":""},{"$f":"IF(U55>0,U55,\"\")","v":""},{"$f":"IF(I55=\"\",\"\",VLOOKUP(P55,Tabella_Prezzi,4,FALSE))","v":""},{"$f":"IF(F55=\"\",\"\",J55*I55)","v":""},null,null,null,null,"L5N30","TS4L5-SSD7,68RI",{"$f":"COUNTIF(TS4L5_1,P55)*V55*$R$54","v":0},{"$f":"COUNTIF(TS4L5_2,P55)*W55*$S$54","v":0},{"$f":"COUNTIF(TS4L5_3,P55)*X55*$T$54","v":0},{"$f":"SUM(R55:T55)","v":0},{"$f":"Lotto5_R840_1!L58","v":0},{"$f":"Lotto5_R840_2!L58","v":0},{"$f":"Lotto5_R840_3!L58","v":0},{"$f":"IF($I55<>\"\",\"SI\",\"NO\")","v":"NO"}]
[null,null,null,null,null,"","","","","","",null,null,null,null,"L5N31","TS4L5-40GB-I",{"$f":"COUNTIF(TS4L5_1,P56)*$R$54","v":0},{"$f":"COUNTIF(TS4L5_2,P56)*$S$54","v":0},{"$f":"COUNTIF(TS4L5_3,P56)*$T$54","v":0},0,null,null,null,{"$f":"IF($I56<>\"\",\"SI\",\"NO\")","v":"NO"}]
[null,null,null,null,null,"","","","","","",null,null,null,null,"L5N32","TS4L5-100GB-M",{"$f":"COUNTIF(TS4L5_1,P57)*$R$54","v":0},{"$f":"COUNTIF(TS4L5_2,P57)*$S$54","v":0},{"$f":"COUNTIF(TS4L5_3,P57)*$T$54","v":0},0,null,null,null,"NO"]
[null,null,null,null,null,"","","","","","",null,null,null,null,"L5N33","TS4L5-100GB-B",{"$f":"COUNTIF(TS4L5_1,P58)*$R$54","v":0},{"$f":"COUNTIF(TS4L5_2,P58)*$S$54","v":0},{"$f":"COUNTIF(TS4L5_3,P58)*$T$54","v":0},0,null,null,null,"NO"]
[null,null,null,null,null,"","","","","","",null,null,null,null,"L5N34","TS4L5-100GB_INF",{"$f":"COUNTIF(TS4L5_1,P59)*$R$54","v":0},{"$f":"COUNTIF(TS4L5_2,P59)*$S$54","v":0},{"$f":"COUNTIF(TS4L5_3,P59)*$T$54","v":0},0,null,null,null,{"$f":"IF($I59<>\"\",\"SI\",\"NO\")","v":"NO"}]
[null,null,null,null,null,"","","","","","",null,null,null,null,"L5N36","TS4L5-OT10GB",0,{"$f":"COUNTIF(TS4L5_2,P60)*$S$54","v":0},{"$f":"COUNTIF(TS4L5_3,P60)*$T$54","v":0},0,null,null,null,"NO"]
[null,null,null,null,null,"","","","","","",null,null,null,null,"L5N37","TS4L5-OT25GB",0,{"$f":"COUNTIF(TS4L5_2,P61)*$S$54","v":0},{"$f":"COUNTIF(TS4L5_3,P61)*$T$54","v":0},0,null,null,null,"NO"]
[null,null,null,null,null,"","","","","","",null,null,null,null,"L5N38","TS4L5-OT40GB",0,{"$f":"COUNTIF(TS4L5_2,P62)*$S$54","v":0},{"$f":"COUNTIF(TS4L5_3,P62)*$T$54","v":0},0,null,null,null,"NO"]
[null,null,null,null,null,"","","","","","",null,null,null,null,"L5N39","TS4L5-OT100GB",0,{"$f":"COUNTIF(TS4L5_2,P63)*$S$54","v":0},{"$f":"COUNTIF(TS4L5_3,P63)*$T$54","v":0},{"$f":"SUM(R63:T63)","v":0},null,null,null,"NO"]
[null,null,null,null,null,"","","","","","",null,null,null,null,"L5N42","TS4L5-4CPU-2TB",0,{"$f":"COUNTIF(TS4L5_2,P64)*$S$54","v":0},{"$f":"COUNTIF(TS4L5_3,P64)*$T$54","v":0},0,null,null,null,"NO"]
[null,null,null,null,null,null,null,null,null,null,null,null,null,null,null,null,null,null,null,null,null,null,null,null,"SI"]
[]
[]
[null,null,null,null,null,null,null,null,null,null,null,null,null,null,null,null,null,null,null,null,null,null,null,null,"SI"]
[null,null,null,null,null,null,null,null,"Totale Convenzione",null,{"$f":"SUM(K14:K50)","v":0},null,null,null,null,null,null,null,null,null,null,null,null,null,"SI"]
[null,null,null,null,null,"Quota Massima 20%",{"$f":"K72*0.2","v":0},null,"Totale 20%",null,{"$f":"SUM(K55:K64)","v":0},null,null,null,null,null,null,null,null,null,null,null,null,null,"SI"]
[null,null,null,null,null,"Quota Residua 20%",{"$f":"G70-K70","v":0},null,"Totale Iva Esclusa",null,{"$f":"K69+K70","v":0},null,null,null,null,null,null,null,null,null,null,null,null,null,"SI"]
[null,null,null,null,null,null,null,null,"Totale Ordine",null,{"$f":"(K71*1.22)","v":0},null,null,null,null,null,null,null,null,null,null,null,null,null,"SI"]
[null,null,null,null,null,null,null,null,null,null,null,null,null,null,null,null,null,null,null,null,null,null,null,null,"SI"]

{"sheet":"ConfigurationTS4L6","index":6,"n_rows":201,"n_cols":24,"rows_kept":201,"cut":false,"hidden":true,"merged":[[176,3,176,4],[176,6,176,7]]}
[]
[null,"Module Name","Option ID","Option Name","Option List Price","SKUs","Qty","SKU Customer Kit","Attributo","Valore inserito",null,"N°","Codice Convenzione"]
["PowerEdge R840 Server (General Purpose)","Chassis with Up to 8X 2.5 SAS/SATA","Chassis with Up to 8X 2.5 SAS/SATA",{"$f":"VLOOKUP(L3,Tabella_prezzi!$A$2:$L$81,8,FALSE)","v":0},null,null,{"$f":"\"\"","v":""},{"$f":"VLOOKUP(L3,Tabella_prezzi!$A$2:$L$81,9,FALSE)","v":"PowerEdge R840 Server"},{"$f":"VLOOKUP(L3,Tabella_prezzi!$A$2:$L$81,3,FALSE)","v":"server\nrackable quad-processore (prestazionale)"},{"$f":"VLOOKUP(L3,Tabella_prezzi!$A$2:$L$81,4,FALSE)","v":4022.56},null,"L5N01",{"$f":"\"\"","v":""},{"$f":"\"\"","v":""}]
["PowerEdge R840 Server (2TB)","Chassis with Up to 8X 2.5 SAS/SATA + kit TS4L5-4CPU-2TB (include BOSS card 2 x ssd per boot)","Chassis with Up to 8X 2.5 SAS/SATA + kit TS4L5-4CPU-2TB (include BOSS card 2 x ssd per boot)","\tkit TS4L5-4CPU-2TB (include BOSS card 2 x ssd per boot)",null,null,1,"kit TS4L5-4CPU-2TB (include BOSS card 2 x ssd per boot)","Opz4CPU-2TB",4022.56,5876.9,"L5N01","TS4L5-4CPU-2TB","L5N42"]
["PowerEdge R840 Server (vSAN Ready)","Chassis with Up to 8X 2.5 SAS/SATA","Chassis with Up to 8X 2.5 SAS/SATA",{"$f":"VLOOKUP(L5,Tabella_prezzi!$A$2:$L$81,8,FALSE)","v":0},null,null,null,{"$f":"VLOOKUP(L5,Tabella_prezzi!$A$2:$L$81,9,FALSE)","v":"PowerEdge R840 Server"},{"$f":"VLOOKUP(L5,Tabella_prezzi!$A$2:$L$81,3,FALSE)","v":"server\nrackable quad-processore (prestazionale)"},{"$f":"J3*1.02","v":4103.0111999999999},null,"L5N01-vSAN",{"$f":"VLOOKUP(L5,Tabella_prezzi!$A$2:$L$81,6,FALSE)","v":"TS4L5-SRV-vSAN"},{"$f":"\"\"","v":""}]
[]
["TS4L5_Chassis"]
["PowerEdge R840 Server (General Purpose)","Chassis with Up to 8X 2.5 SAS/SATA","Chassis with Up to 8X 2.5 SAS/SATA",null,null,0,1,{"$f":"VLOOKUP(L8,Tabella_prezzi!$A$2:$L$81,9,FALSE)","v":{"$error":"#N/A"}},"TS4-Opz1CPU",null,{"$f":"VLOOKUP(L8,Tabella_prezzi!$A$2:$L$81,4,FALSE)","v":{"$error":"#N/A"}},"L5N105",{"$f":"\"\"","v":""}]
["PowerEdge R840 Server (2TB)","Chassis with Up to 8X 2.5 SAS/SATA","Chassis with Up to 8X 2.5 SAS/SATA",{"$f":"VLOOKUP(L9,Tabella_prezzi!$A$2:$L$81,8,FALSE)","v":0},null,0,1,{"$f":"VLOOKUP(L9,Tabella_prezzi!$A$2:$L$81,9,FALSE)","v":"PowerEdge R840 Server"},{"$f":"VLOOKUP(L9,Tabella_prezzi!$A$2:$L$81,3,FALSE)","v":"server\nrackable quad-processore (prestazionale)"},{"$f":"VLOOKUP(L9,Tabella_prezzi!$A$2:$L$81,4,FALSE)","v":4022.56},null,"L5N01-NVMe","TS4L5-SRV-NVME",{"$f":"\"\"","v":""}]
["PowerEdge R840 Server (vSAN Ready)","Chassis with Up to 8X 2.5 SAS/SATA","Chassis with Up to 8X 2.5 SAS/SATA",{"$f":"VLOOKUP(L10,Tabella_prezzi!$A$2:$L$81,8,FALSE)","v":0},null,null,1,{"$f":"VLOOKUP(L10,Tabella_prezzi!$A$2:$L$81,9,FALSE)","v":"PowerEdge R840 Server"},{"$f":"VLOOKUP(L10,Tabella_prezzi!$A$2:$L$81,9,FALSE)","v":"PowerEdge R840 Server"},null,{"$f":"VLOOKUP(L10,Tabella_prezzi!$A$2:$L$81,4,FALSE)","v":4022.56},"L5N01"]
[]
["TS4L5_CPU"]
["No Additional Processor",{"$f":"\"\"","v":""},{"$f":"\"\"","v":""},{"$f":"\"\"","v":""},{"$f":"\"\"","v":""},{"$f":"\"\"","v":""},{"$f":"\"\"","v":""},{"$f":"\"\"","v":""},{"$f":"\"\"","v":""},{"$f":"\"\"","v":""},{"$f":"\"\"","v":""},{"$f":"\"\"","v":""},{"$f":"\"\"","v":""}]
[{"$f":"D14","v":"2 x Intel Xeon Gold 6252N, 2.3G, 24C/48T, 10.4GT/s, 35.75M Cache, Turbo, HT (150W) DDR4-2933"},null,null,{"$f":"VLOOKUP(L14,Tabella_prezzi!$A$2:$L$81,8,FALSE)","v":"2 x Intel Xeon Gold 6252N, 2.3G, 24C/48T, 10.4GT/s, 35.75M Cache, Turbo, HT (150W) DDR4-2933"},null,null,1,{"$f":"VLOOKUP(L14,Tabella_prezzi!$A$2:$L$81,9,FALSE)","v":"2 x Intel Xeon Gold 6252N, 2.3G, 24C/48T, 10.4GT/s, 35.75M Cache, Turbo, HT (150W) DDR4-2933"},{"$f":"VLOOKUP(L14,Tabella_prezzi!$A$2:$L$81,3,FALSE)","v":"Kit n. 2 Processori\naggiuntivi"},{"$f":"VLOOKUP(L14,Tabella_prezzi!$A$2:$L$81,4,FALSE)","v":2034.14},null,"L5N02",{"$f":"VLOOKUP(L14,Tabella_prezzi!$A$2:$L$81,6,FALSE)","v":"TS4L5-CPU"}]
[]
["TS4L5_RAM (2CPU)"]
[0,{"$f":"\"\"","v":""},{"$f":"\"\"","v":""},{"$f":"\"\"","v":""},{"$f":"\"\"","v":""},{"$f":"\"\"","v":""},0,{"$f":"\"\"","v":""},{"$f":"\"\"","v":""},{"$f":"\"\"","v":""},{"$f":"\"\"","v":""},{"$f":"\"\"","v":""},{"$f":"\"\"","v":""}]
[{"$f":"32*G18","v":128},"Memory Capacity",null,{"$f":"VLOOKUP(L18,Tabella_prezzi!$A$2:$L$81,8,FALSE)","v":"32GB - 2Rx4 DDR4 RDIMM 3200MHz"},null,"370-AEVP",4,{"$f":"VLOOKUP(L18,Tabella_prezzi!$A$2:$L$81,9,FALSE)","v":"32GB - 2Rx4 DDR4 RDIMM 3200MHz"},{"$f":"VLOOKUP(L18,Tabella_prezzi!$A$2:$L$81,3,FALSE)","v":"OpzRAM32GB"},{"$f":"VLOOKUP(L18,Tabella_prezzi!$A$2:$L$81,4,FALSE)*G18","v":1026.56},null,"L5N03",{"$f":"VLOOKUP(L18,Tabella_prezzi!$A$2:$L$81,6,FALSE)","v":"TS4L5-RAM32"},{"$f":"A18","v":128},{"$f":"VLOOKUP(S18,Tabella_prezzi!$A$2:$L$81,6,FALSE)","v":"TS4L5-RAM64"},"Non Configurabile",2,{"$f":"VLOOKUP(S18,Tabella_prezzi!$A$2:$L$81,8,FALSE)","v":"64GB - 2RX4 DDR4 RDIMM 3200MHz"},"L5N04"]
[192,"Memory Capacity",null,{"$f":"VLOOKUP(L19,Tabella_prezzi!$A$2:$L$81,8,FALSE)","v":"32GB - 2Rx4 DDR4 RDIMM 3200MHz"},null,"370-AEVP",6,{"$f":"VLOOKUP(L19,Tabella_prezzi!$A$2:$L$81,9,FALSE)","v":"32GB - 2Rx4 DDR4 RDIMM 3200MHz"},{"$f":"VLOOKUP(L19,Tabella_prezzi!$A$2:$L$81,3,FALSE)","v":"OpzRAM32GB"},{"$f":"VLOOKUP(L19,Tabella_prezzi!$A$2:$L$81,4,FALSE)*G19","v":1539.84},null,"L5N03",{"$f":"VLOOKUP(L19,Tabella_prezzi!$A$2:$L$81,6,FALSE)","v":"TS4L5-RAM32"},192,{"$f":"VLOOKUP(S19,Tabella_prezzi!$A$2:$L$81,6,FALSE)","v":"TS4L5-RAM64"},"Non Configurabile",3,{"$f":"VLOOKUP(S19,Tabella_prezzi!$A$2:$L$81,8,FALSE)","v":"64GB - 2RX4 DDR4 RDIMM 3200MHz"},"L5N04"]
[256,"Memory Capacity",null,{"$f":"VLOOKUP(L20,Tabella_prezzi!$A$2:$L$81,8,FALSE)","v":"32GB - 2Rx4 DDR4 RDIMM 3200MHz"},null,"370-AEVP",8,{"$f":"VLOOKUP(L20,Tabella_prezzi!$A$2:$L$81,9,FALSE)","v":"32GB - 2Rx4 DDR4 RDIMM 3200MHz"},{"$f":"VLOOKUP(L20,Tabella_prezzi!$A$2:$L$81,3,FALSE)","v":"OpzRAM32GB"},{"$f":"VLOOKUP(L20,Tabella_prezzi!$A$2:$L$81,4,FALSE)*G20","v":2053.12},null,"L5N03",{"$f":"VLOOKUP(L20,Tabella_prezzi!$A$2:$L$81,6,FALSE)","v":"TS4L5-RAM32"},256,{"$f":"VLOOKUP(S20,Tabella_prezzi!$A$2:$L$81,6,FALSE)","v":"TS4L5-RAM64"},"Non Configurabile",4,{"$f":"VLOOKUP(S20,Tabella_prezzi!$A$2:$L$81,8,FALSE)","v":"64GB - 2RX4 DDR4 RDIMM 3200MHz"},"L5N04"]
[320,"Memory Capacity",null,{"$f":"VLOOKUP(L21,Tabella_prezzi!$A$2:$L$81,8,FALSE)","v":"32GB - 2Rx4 DDR4 RDIMM 3200MHz"},null,"370-AEVP",10,{"$f":"VLOOKUP(L21,Tabella_prezzi!$A$2:$L$81,9,FALSE)","v":"32GB - 2Rx4 DDR4 RDIMM 3200MHz"},{"$f":"VLOOKUP(L21,Tabella_prezzi!$A$2:$L$81,3,FALSE)","v":"OpzRAM32GB"},{"$f":"VLOOKUP(L21,Tabella_prezzi!$A$2:$L$81,4,FALSE)*G21","v":2566.3999999999996},null,"L5N03",{"$f":"VLOOKUP(L21,Tabella_prezzi!$A$2:$L$81,6,FALSE)","v":"TS4L5-RAM32"},320,{"$f":"VLOOKUP(S21,Tabella_prezzi!$A$2:$L$81,6,FALSE)","v":"TS4L5-RAM64"},"Non Configurabile",5,{"$f":"VLOOKUP(S21,Tabella_prezzi!$A$2:$L$81,8,FALSE)","v":"64GB - 2RX4 DDR4 RDIMM 3200MHz"},"L5N04"]
[384,"Memory Capacity",null,{"$f":"VLOOKUP(L22,Tabella_prezzi!$A$2:$L$81,8,FALSE)","v":"32GB - 2Rx4 DDR4 RDIMM 3200MHz"},null,"370-AEVP",12,{"$f":"VLOOKUP(L22,Tabella_prezzi!$A$2:$L$81,9,FALSE)","v":"32GB - 2Rx4 DDR4 RDIMM 3200MHz"},{"$f":"VLOOKUP(L22,Tabella_prezzi!$A$2:$L$81,3,FALSE)","v":"OpzRAM32GB"},{"$f":"VLOOKUP(L22,Tabella_prezzi!$A$2:$L$81,4,FALSE)*G22","v":3079.68},null,"L5N03",{"$f":"VLOOKUP(L22,Tabella_prezzi!$A$2:$L$81,6,FALSE)","v":"TS4L5-RAM32"},384,{"$f":"VLOOKUP(S22,Tabella_prezzi!$A$2:$L$81,6,FALSE)","v":"TS4L5-RAM64"},"Non Configurabile",6,{"$f":"VLOOKUP(S22,Tabella_prezzi!$A$2:$L$81,8,FALSE)","v":"64GB - 2RX4 DDR4 RDIMM 3200MHz"},"L5N04"]
[448,"Memory Capacity",null,{"$f":"VLOOKUP(L23,Tabella_prezzi!$A$2:$L$81,8,FALSE)","v":"32GB - 2Rx4 DDR4 RDIMM 3200MHz"},null,"370-AEVP",14,{"$f":"VLOOKUP(L23,Tabella_prezzi!$A$2:$L$81,9,FALSE)","v":"32GB - 2Rx4 DDR4 RDIMM 3200MHz"},{"$f":"VLOOKUP(L23,Tabella_prezzi!$A$2:$L$81,3,FALSE)","v":"OpzRAM32GB"},{"$f":"VLOOKUP(L23,Tabella_prezzi!$A$2:$L$81,4,FALSE)*G23","v":3592.96},null,"L5N03",{"$f":"VLOOKUP(L23,Tabella_prezzi!$A$2:$L$81,6,FALSE)","v":"TS4L5-RAM32"},448,{"$f":"VLOOKUP(S23,Tabella_prezzi!$A$2:$L$81,6,FALSE)","v":"TS4L5-RAM64"},"Non Configurabile",7,{"$f":"VLOOKUP(S23,Tabella_prezzi!$A$2:$L$81,8,FALSE)","v":"64GB - 2RX4 DDR4 RDIMM 3200MHz"},"L5N04"]
[512,"Memory Capacity",null,{"$f":"VLOOKUP(L24,Tabella_prezzi!$A$2:$L$81,8,FALSE)","v":"32GB - 2Rx4 DDR4 RDIMM 3200MHz"},null,"370-AEVP",16,{"$f":"VLOOKUP(L24,Tabella_prezzi!$A$2:$L$81,9,FALSE)","v":"32GB - 2Rx4 DDR4 RDIMM 3200MHz"},{"$f":"VLOOKUP(L24,Tabella_prezzi!$A$2:$L$81,3,FALSE)","v":"OpzRAM32GB"},{"$f":"VLOOKUP(L24,Tabella_prezzi!$A$2:$L$81,4,FALSE)*G24","v":4106.24},null,"L5N03",{"$f":"VLOOKUP(L24,Tabella_prezzi!$A$2:$L$81,6,FALSE)","v":"TS4L5-RAM32"},512,{"$f":"VLOOKUP(S24,Tabella_prezzi!$A$2:$L$81,6,FALSE)","v":"TS4L5-RAM64"},"Non Configurabile",8,{"$f":"VLOOKUP(S24,Tabella_prezzi!$A$2:$L$81,8,FALSE)","v":"64GB - 2RX4 DDR4 RDIMM 3200MHz"},"L5N04"]
["TS4L5_RAM_VSAN (2CPU)"]
[512,"Memory Capacity",null,{"$f":"VLOOKUP(L26,Tabella_prezzi!$A$2:$L$81,8,FALSE)","v":"32GB - 2Rx4 DDR4 RDIMM 3200MHz"},null,"370-AEVP",0,{"$f":"VLOOKUP(L26,Tabella_prezzi!$A$2:$L$81,9,FALSE)","v":"32GB - 2Rx4 DDR4 RDIMM 3200MHz"},{"$f":"VLOOKUP(L26,Tabella_prezzi!$A$2:$L$81,3,FALSE)","v":"OpzRAM32GB"},{"$f":"VLOOKUP(L26,Tabella_prezzi!$A$2:$L$81,4,FALSE)*G26","v":0},null,"L5N03",{"$f":"VLOOKUP(L26,Tabella_prezzi!$A$2:$L$81,6,FALSE)","v":"TS4L5-RAM32"}]
[512,"Memory Capacity",null,{"$f":"VLOOKUP(L27,Tabella_prezzi!$A$2:$L$81,8,FALSE)","v":"32GB - 2Rx4 DDR4 RDIMM 3200MHz"},null,"370-AEVP",8,{"$f":"VLOOKUP(L27,Tabella_prezzi!$A$2:$L$81,9,FALSE)","v":"32GB - 2Rx4 DDR4 RDIMM 3200MHz"},{"$f":"VLOOKUP(L27,Tabella_prezzi!$A$2:$L$81,3,FALSE)","v":"OpzRAM32GB"},{"$f":"VLOOKUP(L27,Tabella_prezzi!$A$2:$L$81,4,FALSE)*G27","v":2053.12},null,"L5N03",{"$f":"VLOOKUP(L27,Tabella_prezzi!$A$2:$L$81,6,FALSE)","v":"TS4L5-RAM32"}]
["TS4L5_RAM_VSAN (4CPU)"]
[768,"Memory Capacity",null,{"$f":"VLOOKUP(L29,Tabella_prezzi!$A$2:$L$81,8,FALSE)","v":"32GB - 2Rx4 DDR4 RDIMM 3200MHz"},null,"370-AEVP",16,{"$f":"VLOOKUP(L29,Tabella_prezzi!$A$2:$L$81,9,FALSE)","v":"32GB - 2Rx4 DDR4 RDIMM 3200MHz"},{"$f":"VLOOKUP(L29,Tabella_prezzi!$A$2:$L$81,3,FALSE)","v":"OpzRAM32GB"},{"$f":"VLOOKUP(L29,Tabella_prezzi!$A$2:$L$81,4,FALSE)*G29","v":4106.24},null,"L5N03",{"$f":"VLOOKUP(L29,Tabella_prezzi!$A$2:$L$81,6,FALSE)","v":"TS4L5-RAM32"}]
[1280,"Memory Capacity",null,{"$f":"VLOOKUP(L30,Tabella_prezzi!$A$2:$L$81,8,FALSE)","v":"32GB - 2Rx4 DDR4 RDIMM 3200MHz"},null,"370-AEVP",32,{"$f":"VLOOKUP(L30,Tabella_prezzi!$A$2:$L$81,9,FALSE)","v":"32GB - 2Rx4 DDR4 RDIMM 3200MHz"},{"$f":"VLOOKUP(L30,Tabella_prezzi!$A$2:$L$81,3,FALSE)","v":"OpzRAM32GB"},{"$f":"VLOOKUP(L30,Tabella_prezzi!$A$2:$L$81,4,FALSE)*G30","v":8212.48},null,"L5N03",{"$f":"VLOOKUP(L30,Tabella_prezzi!$A$2:$L$81,6,FALSE)","v":"TS4L5-RAM32"}]
["TS4L5_RAM (4CPU)"]
[0,{"$f":"\"\"","v":""},{"$f":"\"\"","v":""},{"$f":"\"\"","v":""},{"$f":"\"\"","v":""},{"$f":"\"\"","v":""},0,{"$f":"\"\"","v":""},{"$f":"\"\"","v":""},{"$f":"\"\"","v":""},{"$f":"\"\"","v":""},{"$f":"\"\"","v":""},{"$f":"\"\"","v":""},{"$f":"\"\"","v":""},{"$f":"VLOOKUP(S32,Tabella_prezzi!$A$2:$L$81,6,FALSE)","v":"TS4L5-RAM64"},0,0,{"$f":"VLOOKUP(S32,Tabella_prezzi!$A$2:$L$81,8,FALSE)","v":"64GB - 2RX4 DDR4 RDIMM 3200MHz"},"L5N04"]
[{"$f":"32*G33","v":128},"Memory Capacity",null,{"$f":"VLOOKUP(L33,Tabella_prezzi!$A$2:$L$81,8,FALSE)","v":"32GB - 2Rx4 DDR4 RDIMM 3200MHz"},null,"370-AEVP",4,{"$f":"VLOOKUP(L33,Tabella_prezzi!$A$2:$L$81,9,FALSE)","v":"32GB - 2Rx4 DDR4 RDIMM 3200MHz"},{"$f":"VLOOKUP(L33,Tabella_prezzi!$A$2:$L$81,3,FALSE)","v":"OpzRAM32GB"},{"$f":"VLOOKUP(L33,Tabella_prezzi!$A$2:$L$81,4,FALSE)*G33","v":1026.56},null,"L5N03",{"$f":"VLOOKUP(L33,Tabella_prezzi!$A$2:$L$81,6,FALSE)","v":"TS4L5-RAM32"},{"$f":"A33","v":128},{"$f":"VLOOKUP(S33,Tabella_prezzi!$A$2:$L$81,6,FALSE)","v":"TS4L5-RAM64"},"Non Configurabile",2,{"$f":"VLOOKUP(S33,Tabella_prezzi!$A$2:$L$81,8,FALSE)","v":"64GB - 2RX4 DDR4 RDIMM 3200MHz"},"L5N04"]
[{"$f":"32*G34","v":192},"Memory Capacity",null,{"$f":"VLOOKUP(L34,Tabella_prezzi!$A$2:$L$81,8,FALSE)","v":"32GB - 2Rx4 DDR4 RDIMM 3200MHz"},null,"370-AEVP",6,{"$f":"VLOOKUP(L34,Tabella_prezzi!$A$2:$L$81,9,FALSE)","v":"32GB - 2Rx4 DDR4 RDIMM 3200MHz"},{"$f":"VLOOKUP(L34,Tabella_prezzi!$A$2:$L$81,3,FALSE)","v":"OpzRAM32GB"},"Non Configurabile",null,"L5N03",{"$f":"VLOOKUP(L34,Tabella_prezzi!$A$2:$L$81,6,FALSE)","v":"TS4L5-RAM32"},192,{"$f":"VLOOKUP(S34,Tabella_prezzi!$A$2:$L$81,6,FALSE)","v":"TS4L5-RAM64"},"Non Configurabile",4,{"$f":"VLOOKUP(S34,Tabella_prezzi!$A$2:$L$81,8,FALSE)","v":"64GB - 2RX4 DDR4 RDIMM 3200MHz"},"L5N04"]
[{"$f":"32*G35","v":256},"Memory Capacity",null,{"$f":"VLOOKUP(L35,Tabella_prezzi!$A$2:$L$81,8,FALSE)","v":"32GB - 2Rx4 DDR4 RDIMM 3200MHz"},null,"370-AEVP",8,{"$f":"VLOOKUP(L35,Tabella_prezzi!$A$2:$L$81,9,FALSE)","v":"32GB - 2Rx4 DDR4 RDIMM 3200MHz"},{"$f":"VLOOKUP(L35,Tabella_prezzi!$A$2:$L$81,3,FALSE)","v":"OpzRAM32GB"},{"$f":"VLOOKUP(L35,Tabella_prezzi!$A$2:$L$81,4,FALSE)*G35","v":2053.12},null,"L5N03",{"$f":"VLOOKUP(L35,Tabella_prezzi!$A$2:$L$81,6,FALSE)","v":"TS4L5-RAM32"},{"$f":"A35","v":256},{"$f":"VLOOKUP(S35,Tabella_prezzi!$A$2:$L$81,6,FALSE)","v":"TS4L5-RAM64"},"Non Configurabile",4,{"$f":"VLOOKUP(S35,Tabella_prezzi!$A$2:$L$81,8,FALSE)","v":"64GB - 2RX4 DDR4 RDIMM 3200MHz"},"L5N04"]
[{"$f":"32*G36","v":320},"Memory Capacity",null,{"$f":"VLOOKUP(L36,Tabella_prezzi!$A$2:$L$81,8,FALSE)","v":"32GB - 2Rx4 DDR4 RDIMM 3200MHz"},null,"370-AEVP",10,{"$f":"VLOOKUP(L36,Tabella_prezzi!$A$2:$L$81,9,FALSE)","v":"32GB - 2Rx4 DDR4 RDIMM 3200MHz"},{"$f":"VLOOKUP(L36,Tabella_prezzi!$A$2:$L$81,3,FALSE)","v":"OpzRAM32GB"},"Non Configurabile",null,"L5N03",{"$f":"VLOOKUP(L36,Tabella_prezzi!$A$2:$L$81,6,FALSE)","v":"TS4L5-RAM32"},320,{"$f":"VLOOKUP(S36,Tabella_prezzi!$A$2:$L$81,6,FALSE)","v":"TS4L5-RAM64"},"Non Configurabile",5,{"$f":"VLOOKUP(S36,Tabella_prezzi!$A$2:$L$81,8,FALSE)","v":"64GB - 2RX4 DDR4 RDIMM 3200MHz"},"L5N04"]
[384,"Memory Capacity",null,{"$f":"VLOOKUP(L37,Tabella_prezzi!$A$2:$L$81,8,FALSE)","v":"32GB - 2Rx4 DDR4 RDIMM 3200MHz"},null,"370-AEVP",12,{"$f":"VLOOKUP(L37,Tabella_prezzi!$A$2:$L$81,9,FALSE)","v":"32GB - 2Rx4 DDR4 RDIMM 3200MHz"},{"$f":"VLOOKUP(L37,Tabella_prezzi!$A$2:$L$81,3,FALSE)","v":"OpzRAM32GB"},{"$f":"VLOOKUP(L37,Tabella_prezzi!$A$2:$L$81,4,FALSE)*G37","v":3079.68},null,"L5N03",{"$f":"VLOOKUP(L37,Tabella_prezzi!$A$2:$L$81,6,FALSE)","v":"TS4L5-RAM32"},384,{"$f":"VLOOKUP(S37,Tabella_prezzi!$A$2:$L$81,6,FALSE)","v":"TS4L5-RAM64"},"Non Configurabile",6,{"$f":"VLOOKUP(S37,Tabella_prezzi!$A$2:$L$81,8,FALSE)","v":"64GB - 2RX4 DDR4 RDIMM 3200MHz"},"L5N04"]
[448,"Memory Capacity",null,{"$f":"VLOOKUP(L38,Tabella_prezzi!$A$2:$L$81,8,FALSE)","v":"32GB - 2Rx4 DDR4 RDIMM 3200MHz"},null,"370-AEVP",14,{"$f":"VLOOKUP(L38,Tabella_prezzi!$A$2:$L$81,9,FALSE)","v":"32GB - 2Rx4 DDR4 RDIMM 3200MHz"},{"$f":"VLOOKUP(L38,Tabella_prezzi!$A$2:$L$81,3,FALSE)","v":"OpzRAM32GB"},"Non Configurabile",null,"L5N03",{"$f":"VLOOKUP(L38,Tabella_prezzi!$A$2:$L$81,6,FALSE)","v":"TS4L5-RAM32"},448,{"$f":"VLOOKUP(S38,Tabella_prezzi!$A$2:$L$81,6,FALSE)","v":"TS4L5-RAM64"},"Non Configurabile",7,{"$f":"VLOOKUP(S38,Tabella_prezzi!$A$2:$L$81,8,FALSE)","v":"64GB - 2RX4 DDR4 RDIMM 3200MHz"},"L5N04"]
[512,"Memory Capacity",null,{"$f":"VLOOKUP(L39,Tabella_prezzi!$A$2:$L$81,8,FALSE)","v":"32GB - 2Rx4 DDR4 RDIMM 3200MHz"},null,"370-AEVP",16,{"$f":"VLOOKUP(L39,Tabella_prezzi!$A$2:$L$81,9,FALSE)","v":"32GB - 2Rx4 DDR4 RDIMM 3200MHz"},{"$f":"VLOOKUP(L39,Tabella_prezzi!$A$2:$L$81,3,FALSE)","v":"OpzRAM32GB"},{"$f":"VLOOKUP(L39,Tabella_prezzi!$A$2:$L$81,4,FALSE)*G39","v":4106.24},null,"L5N03",{"$f":"VLOOKUP(L39,Tabella_prezzi!$A$2:$L$81,6,FALSE)","v":"TS4L5-RAM32"},512,{"$f":"VLOOKUP(S39,Tabella_prezzi!$A$2:$L$81,6,FALSE)","v":"TS4L5-RAM64"},"Non Configurabile",8,{"$f":"VLOOKUP(S39,Tabella_prezzi!$A$2:$L$81,8,FALSE)","v":"64GB - 2RX4 DDR4 RDIMM 3200MHz"},"L5N04"]
[640,"Memory Capacity",null,{"$f":"VLOOKUP(L40,Tabella_prezzi!$A$2:$L$81,8,FALSE)","v":"32GB - 2Rx4 DDR4 RDIMM 3200MHz"},null,"370-AEVP",20,{"$f":"VLOOKUP(L40,Tabella_prezzi!$A$2:$L$81,9,FALSE)","v":"32GB - 2Rx4 DDR4 RDIMM 3200MHz"},{"$f":"VLOOKUP(L40,Tabella_prezzi!$A$2:$L$81,3,FALSE)","v":"OpzRAM32GB"},{"$f":"VLOOKUP(L40,Tabella_prezzi!$A$2:$L$81,4,FALSE)*G40","v":5132.7999999999993},null,"L5N03",{"$f":"VLOOKUP(L40,Tabella_prezzi!$A$2:$L$81,6,FALSE)","v":"TS4L5-RAM32"},640,{"$f":"VLOOKUP(S40,Tabella_prezzi!$A$2:$L$81,6,FALSE)","v":"TS4L5-RAM64"},"Non Configurabile",10,{"$f":"VLOOKUP(S40,Tabella_prezzi!$A$2:$L$81,8,FALSE)","v":"64GB - 2RX4 DDR4 RDIMM 3200MHz"},"L5N04"]
[768,"Memory Capacity",null,{"$f":"VLOOKUP(L41,Tabella_prezzi!$A$2:$L$81,8,FALSE)","v":"32GB - 2Rx4 DDR4 RDIMM 3200MHz"},null,"370-AEVP",24,{"$f":"VLOOKUP(L41,Tabella_prezzi!$A$2:$L$81,9,FALSE)","v":"32GB - 2Rx4 DDR4 RDIMM 3200MHz"},{"$f":"VLOOKUP(L41,Tabella_prezzi!$A$2:$L$81,3,FALSE)","v":"OpzRAM32GB"},{"$f":"VLOOKUP(L41,Tabella_prezzi!$A$2:$L$81,4,FALSE)*G41","v":6159.36},null,"L5N03",{"$f":"VLOOKUP(L41,Tabella_prezzi!$A$2:$L$81,6,FALSE)","v":"TS4L5-RAM32"},768,{"$f":"VLOOKUP(S41,Tabella_prezzi!$A$2:$L$81,6,FALSE)","v":"TS4L5-RAM64"},"Non Configurabile",12,{"$f":"VLOOKUP(S41,Tabella_prezzi!$A$2:$L$81,8,FALSE)","v":"64GB - 2RX4 DDR4 RDIMM 3200MHz"},"L5N04"]
[896,"Memory Capacity",null,{"$f":"VLOOKUP(L42,Tabella_prezzi!$A$2:$L$81,8,FALSE)","v":"32GB - 2Rx4 DDR4 RDIMM 3200MHz"},null,"370-AEVP",28,{"$f":"VLOOKUP(L42,Tabella_prezzi!$A$2:$L$81,9,FALSE)","v":"32GB - 2Rx4 DDR4 RDIMM 3200MHz"},{"$f":"VLOOKUP(L42,Tabella_prezzi!$A$2:$L$81,3,FALSE)","v":"OpzRAM32GB"},{"$f":"VLOOKUP(L42,Tabella_prezzi!$A$2:$L$81,4,FALSE)*G42","v":7185.92},null,"L5N03",{"$f":"VLOOKUP(L42,Tabella_prezzi!$A$2:$L$81,6,FALSE)","v":"TS4L5-RAM32"},896,{"$f":"VLOOKUP(S42,Tabella_prezzi!$A$2:$L$81,6,FALSE)","v":"TS4L5-RAM64"},"Non Configurabile",14,{"$f":"VLOOKUP(S42,Tabella_prezzi!$A$2:$L$81,8,FALSE)","v":"64GB - 2RX4 DDR4 RDIMM 3200MHz"},"L5N04"]
[1024,"Memory Capacity",null,{"$f":"VLOOKUP(L43,Tabella_prezzi!$A$2:$L$81,8,FALSE)","v":"32GB - 2Rx4 DDR4 RDIMM 3200MHz"},null,"370-AEVP",32,{"$f":"VLOOKUP(L43,Tabella_prezzi!$A$2:$L$81,9,FALSE)","v":"32GB - 2Rx4 DDR4 RDIMM 3200MHz"},{"$f":"VLOOKUP(L43,Tabella_prezzi!$A$2:$L$81,3,FALSE)","v":"OpzRAM32GB"},{"$f":"VLOOKUP(L43,Tabella_prezzi!$A$2:$L$81,4,FALSE)*G43","v":8212.48},null,"L5N03",{"$f":"VLOOKUP(L43,Tabella_prezzi!$A$2:$L$81,6,FALSE)","v":"TS4L5-RAM32"},1024,{"$f":"VLOOKUP(S43,Tabella_prezzi!$A$2:$L$81,6,FALSE)","v":"TS4L5-RAM64"},"Non Configurabile",16,{"$f":"VLOOKUP(S43,Tabella_prezzi!$A$2:$L$81,8,FALSE)","v":"64GB - 2RX4 DDR4 RDIMM 3200MHz"},"L5N04"]
[1088,"Memory Capacity",null,{"$f":"VLOOKUP(L44,Tabella_prezzi!$A$2:$L$81,8,FALSE)","v":"32GB - 2Rx4 DDR4 RDIMM 3200MHz"},null,"370-AEVP",34,{"$f":"VLOOKUP(L44,Tabella_prezzi!$A$2:$L$81,9,FALSE)","v":"32GB - 2Rx4 DDR4 RDIMM 3200MHz"},{"$f":"VLOOKUP(L44,Tabella_prezzi!$A$2:$L$81,3,FALSE)","v":"OpzRAM32GB"},{"$f":"VLOOKUP(L44,Tabella_prezzi!$A$2:$L$81,4,FALSE)*G44","v":8725.76},null,"L5N03",{"$f":"VLOOKUP(L44,Tabella_prezzi!$A$2:$L$81,6,FALSE)","v":"TS4L5-RAM32"},1088,{"$f":"VLOOKUP(S44,Tabella_prezzi!$A$2:$L$81,6,FALSE)","v":"TS4L5-RAM64"},"Non Configurabile",17,{"$f":"VLOOKUP(S44,Tabella_prezzi!$A$2:$L$81,8,FALSE)","v":"64GB - 2RX4 DDR4 RDIMM 3200MHz"},"L5N04"]
[1152,"Memory Capacity",null,{"$f":"VLOOKUP(L45,Tabella_prezzi!$A$2:$L$81,8,FALSE)","v":"32GB - 2Rx4 DDR4 RDIMM 3200MHz"},null,"370-AEVP",36,{"$f":"VLOOKUP(L45,Tabella_prezzi!$A$2:$L$81,9,FALSE)","v":"32GB - 2Rx4 DDR4 RDIMM 3200MHz"},{"$f":"VLOOKUP(L45,Tabella_prezzi!$A$2:$L$81,3,FALSE)","v":"OpzRAM32GB"},{"$f":"VLOOKUP(L45,Tabella_prezzi!$A$2:$L$81,4,FALSE)*G45","v":9239.0399999999991},null,"L5N03",{"$f":"VLOOKUP(L45,Tabella_prezzi!$A$2:$L$81,6,FALSE)","v":"TS4L5-RAM32"},1152,{"$f":"VLOOKUP(S45,Tabella_prezzi!$A$2:$L$81,6,FALSE)","v":"TS4L5-RAM64"},"Non Configurabile",18,{"$f":"VLOOKUP(S45,Tabella_prezzi!$A$2:$L$81,8,FALSE)","v":"64GB - 2RX4 DDR4 RDIMM 3200MHz"},"L5N04"]
[1216,"Memory Capacity",null,{"$f":"VLOOKUP(L46,Tabella_prezzi!$A$2:$L$81,8,FALSE)","v":"32GB - 2Rx4 DDR4 RDIMM 3200MHz"},null,"370-AEVP",38,{"$f":"VLOOKUP(L46,Tabella_prezzi!$A$2:$L$81,9,FALSE)","v":"32GB - 2Rx4 DDR4 RDIMM 3200MHz"},{"$f":"VLOOKUP(L46,Tabella_prezzi!$A$2:$L$81,3,FALSE)","v":"OpzRAM32GB"},{"$f":"VLOOKUP(L46,Tabella_prezzi!$A$2:$L$81,4,FALSE)*G46","v":9752.32},null,"L5N03",{"$f":"VLOOKUP(L46,Tabella_prezzi!$A$2:$L$81,6,FALSE)","v":"TS4L5-RAM32"},{"$f":"A46","v":1216},{"$f":"VLOOKUP(S46,Tabella_prezzi!$A$2:$L$81,6,FALSE)","v":"TS4L5-RAM64"},"Non Configurabile",19,{"$f":"VLOOKUP(S46,Tabella_prezzi!$A$2:$L$81,8,FALSE)","v":"64GB - 2RX4 DDR4 RDIMM 3200MHz"},"L5N04"]
[1280,"Memory Capacity",null,{"$f":"VLOOKUP(L47,Tabella_prezzi!$A$2:$L$81,8,FALSE)","v":"32GB - 2Rx4 DDR4 RDIMM 3200MHz"},null,"370-AEVP",40,{"$f":"VLOOKUP(L47,Tabella_prezzi!$A$2:$L$81,9,FALSE)","v":"32GB - 2Rx4 DDR4 RDIMM 3200MHz"},{"$f":"VLOOKUP(L47,Tabella_prezzi!$A$2:$L$81,3,FALSE)","v":"OpzRAM32GB"},{"$f":"VLOOKUP(L47,Tabella_prezzi!$A$2:$L$81,4,FALSE)*G47","v":10265.599999999999},null,"L5N03",{"$f":"VLOOKUP(L47,Tabella_prezzi!$A$2:$L$81,6,FALSE)","v":"TS4L5-RAM32"},{"$f":"A47","v":1280},{"$f":"VLOOKUP(S47,Tabella_prezzi!$A$2:$L$81,6,FALSE)","v":"TS4L5-RAM64"},"Non Configurabile",20,{"$f":"VLOOKUP(S47,Tabella_prezzi!$A$2:$L$81,8,FALSE)","v":"64GB - 2RX4 DDR4 RDIMM 3200MHz"},"L5N04"]
[2048,"Memory Capacity",null,{"$f":"VLOOKUP(L48,Tabella_prezzi!$A$2:$L$81,8,FALSE)","v":"64GB - 2RX4 DDR4 RDIMM 3200MHz"},null,"370-AEVP",0,{"$f":"VLOOKUP(L48,Tabella_prezzi!$A$2:$L$81,9,FALSE)","v":"64GB - 2RX4 DDR4 RDIMM 3200MHz"},{"$f":"VLOOKUP(L48,Tabella_prezzi!$A$2:$L$81,3,FALSE)","v":"OpzRAM64GB"},"Non Configurabile",null,"L5N04",{"$f":"VLOOKUP(L48,Tabella_prezzi!$A$2:$L$81,6,FALSE)","v":"TS4L5-RAM64"},{"$f":"A48","v":2048},{"$f":"VLOOKUP(S48,Tabella_prezzi!$A$2:$L$81,6,FALSE)","v":"TS4L5-RAM64"},"Non Configurabile",0,{"$f":"VLOOKUP(S48,Tabella_prezzi!$A$2:$L$81,8,FALSE)","v":"64GB - 2RX4 DDR4 RDIMM 3200MHz"},"L5N04"]
[]
["TS4L5_RAM (2TB)"]
[{"$f":"64*G51","v":2048},"Memory Capacity",null,{"$f":"VLOOKUP(L51,Tabella_prezzi!$A$2:$L$81,8,FALSE)","v":"64GB - 2RX4 DDR4 RDIMM 3200MHz"},null,"370-AEVP",32,{"$f":"VLOOKUP(L51,Tabella_prezzi!$A$2:$L$81,9,FALSE)","v":"64GB - 2RX4 DDR4 RDIMM 3200MHz"},{"$f":"VLOOKUP(L51,Tabella_prezzi!$A$2:$L$81,3,FALSE)","v":"OpzRAM64GB"},{"$f":"VLOOKUP(L51,Tabella_prezzi!$A$2:$L$81,4,FALSE)*G51","v":9230.7199999999993},null,"L5N04",{"$f":"VLOOKUP(L51,Tabella_prezzi!$A$2:$L$81,6,FALSE)","v":"TS4L5-RAM64"},{"$f":"A51","v":2048},{"$f":"VLOOKUP(S51,Tabella_prezzi!$A$2:$L$81,6,FALSE)","v":"TS4L5-RAM64"},{"$f":"VLOOKUP(S51,Tabella_prezzi!$A$2:$L$81,4,FALSE)*Q51","v":0},0,{"$f":"VLOOKUP(S51,Tabella_prezzi!$A$2:$L$81,8,FALSE)","v":"64GB - 2RX4 DDR4 RDIMM 3200MHz"},"L5N04"]
["TS4L5_OS"]
["No Operating System","Operating System",null,null,null,null,0,null,{"$f":"\"\"","v":""},null,null,{"$f":"\"\"","v":""},{"$f":"\"\"","v":""},null,0,null,{"$f":"\"\"","v":""},{"$f":"\"\"","v":""},null,0,0,null,null,{"$f":"\"\"","v":""}]
[{"$f":"D54","v":"Windows Server 2022,Standard,ROK,16CORE"},"Operating System",null,{"$f":"VLOOKUP(L54,Tabella_prezzi!$A$2:$L$81,9,FALSE)","v":"Windows Server 2022,Standard,ROK,16CORE"},null,null,1,{"$f":"VLOOKUP(L54,Tabella_prezzi!$A$2:$L$81,9,FALSE)","v":"Windows Server 2022,Standard,ROK,16CORE"},{"$f":"VLOOKUP(L54,Tabella_prezzi!$A$2:$L$81,3,FALSE)","v":"OpzWinServSTD"},{"$f":"VLOOKUP(L54,Tabella_prezzi!$A$2:$L$81,4,FALSE)","v":728.99},null,"L5N21",{"$f":"VLOOKUP(L54,Tabella_prezzi!$A$2:$L$81,6,FALSE)","v":"TS4L5-WINSRVSTD"},null,16,{"$f":"VLOOKUP(U54,Tabella_prezzi!$A$2:$L$81,9,FALSE)","v":{"$error":"#N/A"}},{"$f":"VLOOKUP(U54,Tabella_prezzi!$A$2:$L$81,3,FALSE)","v":{"$error":"#N/A"}},{"$f":"VLOOKUP(U54,Tabella_prezzi!$A$2:$L$81,4,FALSE)*O54","v":{"$error":"#N/A"}},null,6,"L6N23",{"$f":"VLOOKUP(U54,Tabella_prezzi!$A$2:$L$81,4,FALSE)*T54","v":{"$error":"#N/A"}},null,{"$f":"VLOOKUP(U54,Tabella_prezzi!$A$2:$L$81,6,FALSE)","v":{"$error":"#N/A"}}]
[{"$f":"D55","v":"Ubuntu Server 22.04 LTS 64 Bit"},"Operating System",null,{"$f":"VLOOKUP(L55,Tabella_prezzi!$A$2:$L$81,9,FALSE)","v":"Ubuntu Server 22.04 LTS 64 Bit"},null,null,1,{"$f":"VLOOKUP(L55,Tabella_prezzi!$A$2:$L$81,9,FALSE)","v":"Ubuntu Server 22.04 LTS 64 Bit"},{"$f":"VLOOKUP(L55,Tabella_prezzi!$A$2:$L$81,3,FALSE)","v":"OpzOpenSource"},{"$f":"VLOOKUP(L55,Tabella_prezzi!$A$2:$L$81,4,FALSE)","v":38.89},null,"L5N25",{"$f":"VLOOKUP(L55,Tabella_prezzi!$A$2:$L$81,6,FALSE)","v":"TS4L5-LINUX"},null,20,{"$f":"VLOOKUP(U55,Tabella_prezzi!$A$2:$L$81,9,FALSE)","v":{"$error":"#N/A"}},{"$f":"VLOOKUP(U55,Tabella_prezzi!$A$2:$L$81,3,FALSE)","v":{"$error":"#N/A"}},{"$f":"VLOOKUP(U55,Tabella_prezzi!$A$2:$L$81,4,FALSE)*O55","v":{"$error":"#N/A"}},null,6,"L6N24",null,{"$f":"VLOOKUP(U55,Tabella_prezzi!$A$2:$L$81,4,FALSE)*T55","v":{"$error":"#N/A"}},{"$f":"VLOOKUP(U55,Tabella_prezzi!$A$2:$L$81,6,FALSE)","v":{"$error":"#N/A"}}]
[{"$f":"D56","v":"Windows Server 2022 Standard Edition, Add License,2CORE"},"Operating System",null,{"$f":"VLOOKUP(L56,Tabella_prezzi!$A$2:$L$81,9,FALSE)","v":"Windows Server 2022 Standard Edition, Add License,2CORE"},null,null,1,{"$f":"VLOOKUP(L56,Tabella_prezzi!$A$2:$L$81,9,FALSE)","v":"Windows Server 2022 Standard Edition, Add License,2CORE"},{"$f":"VLOOKUP(L56,Tabella_prezzi!$A$2:$L$81,3,FALSE)","v":"OpzWinServSTD2core"},{"$f":"VLOOKUP(L56,Tabella_prezzi!$A$2:$L$81,4,FALSE)","v":93.75},null,"L5N24",{"$f":"VLOOKUP(L56,Tabella_prezzi!$A$2:$L$81,6,FALSE)","v":"TS4L5-WINSRV2C"},null,16,{"$f":"VLOOKUP(U56,Tabella_prezzi!$A$2:$L$81,9,FALSE)","v":{"$error":"#N/A"}},{"$f":"VLOOKUP(U56,Tabella_prezzi!$A$2:$L$81,3,FALSE)","v":{"$error":"#N/A"}},{"$f":"VLOOKUP(U56,Tabella_prezzi!$A$2:$L$81,4,FALSE)*O56","v":{"$error":"#N/A"}},null,6,"L6N23",{"$f":"VLOOKUP(U56,Tabella_prezzi!$A$2:$L$81,4,FALSE)*T56","v":{"$error":"#N/A"}},null,{"$f":"VLOOKUP(U56,Tabella_prezzi!$A$2:$L$81,6,FALSE)","v":{"$error":"#N/A"}}]
[{"$f":"D57","v":"1-pack of Windows Server 2022/2019 Device CALs (STD or DC)"},"Operating System",null,{"$f":"VLOOKUP(L57,Tabella_prezzi!$A$2:$L$81,9,FALSE)","v":"1-pack of Windows Server 2022/2019 Device CALs (STD or DC)"},null,null,1,{"$f":"VLOOKUP(L57,Tabella_prezzi!$A$2:$L$81,9,FALSE)","v":"1-pack of Windows Server 2022/2019 Device CALs (STD or DC)"},{"$f":"VLOOKUP(L57,Tabella_prezzi!$A$2:$L$81,3,FALSE)","v":"OpzDeviceCal"},{"$f":"VLOOKUP(L57,Tabella_prezzi!$A$2:$L$81,4,FALSE)","v":25.45},null,"L5N22",{"$f":"VLOOKUP(L57,Tabella_prezzi!$A$2:$L$81,6,FALSE)","v":"TS4L5-WINDEVCAL"},null,20,{"$f":"VLOOKUP(U57,Tabella_prezzi!$A$2:$L$81,9,FALSE)","v":{"$error":"#N/A"}},{"$f":"VLOOKUP(U57,Tabella_prezzi!$A$2:$L$81,3,FALSE)","v":{"$error":"#N/A"}},{"$f":"VLOOKUP(U57,Tabella_prezzi!$A$2:$L$81,4,FALSE)*O57","v":{"$error":"#N/A"}},null,6,"L6N24",null,{"$f":"VLOOKUP(U57,Tabella_prezzi!$A$2:$L$81,4,FALSE)*T57","v":{"$error":"#N/A"}},{"$f":"VLOOKUP(U57,Tabella_prezzi!$A$2:$L$81,6,FALSE)","v":{"$error":"#N/A"}}]
[{"$f":"D58","v":"1-pack of Windows Server 2022/2019 User CALs (STD or DC)"},"Operating System",null,{"$f":"VLOOKUP(L58,Tabella_prezzi!$A$2:$L$81,9,FALSE)","v":"1-pack of Windows Server 2022/2019 User CALs (STD or DC)"},null,null,1,{"$f":"VLOOKUP(L58,Tabella_prezzi!$A$2:$L$81,9,FALSE)","v":"1-pack of Windows Server 2022/2019 User CALs (STD or DC)"},{"$f":"VLOOKUP(L58,Tabella_prezzi!$A$2:$L$81,3,FALSE)","v":"OpzUserCal"},{"$f":"VLOOKUP(L58,Tabella_prezzi!$A$2:$L$81,4,FALSE)","v":34.64},null,"L5N23",{"$f":"VLOOKUP(L58,Tabella_prezzi!$A$2:$L$81,6,FALSE)","v":"TS4L5-WINUSRCAL"},null,0,null,{"$f":"\"\"","v":""},{"$f":"\"\"","v":""},null,0,0,null,null,{"$f":"\"\"","v":""}]
["No Operating System","Operating System",null,null,null,null,0,null,{"$f":"\"\"","v":""},null,null,{"$f":"\"\"","v":""},{"$f":"\"\"","v":""},null,0,null,{"$f":"\"\"","v":""},{"$f":"\"\"","v":""},null,0,0,null,null,{"$f":"\"\"","v":""}]
[{"$f":"D60","v":"Hard Disk Retention 36 mesi"},"Operating System",null,{"$f":"VLOOKUP(L60,Tabella_prezzi!$A$2:$L$81,9,FALSE)","v":"Hard Disk Retention 36 mesi"},null,null,1,{"$f":"VLOOKUP(L60,Tabella_prezzi!$A$2:$L$81,9,FALSE)","v":"Hard Disk Retention 36 mesi"},{"$f":"VLOOKUP(L60,Tabella_prezzi!$A$2:$L$81,3,FALSE)","v":"OpzHDDRetention"},{"$f":"VLOOKUP(L60,Tabella_prezzi!$A$2:$L$81,4,FALSE)","v":34.85},null,"L5N26",{"$f":"VLOOKUP(L48,Tabella_prezzi!$A$2:$L$81,6,FALSE)","v":"TS4L5-RAM64"},null,16,{"$f":"VLOOKUP(U60,Tabella_prezzi!$A$2:$L$81,9,FALSE)","v":{"$error":"#N/A"}},{"$f":"VLOOKUP(U60,Tabella_prezzi!$A$2:$L$81,3,FALSE)","v":{"$error":"#N/A"}},{"$f":"VLOOKUP(U60,Tabella_prezzi!$A$2:$L$81,4,FALSE)*O60","v":{"$error":"#N/A"}},null,6,"L6N23",{"$f":"VLOOKUP(U60,Tabella_prezzi!$A$2:$L$81,4,FALSE)*T60","v":{"$error":"#N/A"}},null,{"$f":"VLOOKUP(U60,Tabella_prezzi!$A$2:$L$81,6,FALSE)","v":{"$error":"#N/A"}}]
[{"$f":"D61","v":"Estensione della manutenzione in garanzia per ulteriori 24 mesi"},"Operating System",null,{"$f":"VLOOKUP(L61,Tabella_prezzi!$A$2:$L$81,9,FALSE)","v":"Estensione della manutenzione in garanzia per ulteriori 24 mesi"},null,null,1,{"$f":"VLOOKUP(L61,Tabella_prezzi!$A$2:$L$81,9,FALSE)","v":"Estensione della manutenzione in garanzia per ulteriori 24 mesi"},{"$f":"VLOOKUP(L61,Tabella_prezzi!$A$2:$L$81,3,FALSE)","v":"OpzEstensione24"},{"$f":"VLOOKUP(L61,Tabella_prezzi!$A$2:$L$81,4,FALSE)","v":258.74},null,"L5N27",{"$f":"VLOOKUP(L49,Tabella_prezzi!$A$2:$L$81,6,FALSE)","v":{"$error":"#N/A"}},null,16,{"$f":"VLOOKUP(U61,Tabella_prezzi!$A$2:$L$81,9,FALSE)","v":{"$error":"#N/A"}},{"$f":"VLOOKUP(U61,Tabella_prezzi!$A$2:$L$81,3,FALSE)","v":{"$error":"#N/A"}},{"$f":"VLOOKUP(U61,Tabella_prezzi!$A$2:$L$81,4,FALSE)*O61","v":{"$error":"#N/A"}},null,6,"L6N23",{"$f":"VLOOKUP(U61,Tabella_prezzi!$A$2:$L$81,4,FALSE)*T61","v":{"$error":"#N/A"}},null,{"$f":"VLOOKUP(U61,Tabella_prezzi!$A$2:$L$81,6,FALSE)","v":{"$error":"#N/A"}}]
[]
["TS4L5_HDD"]
[{"$f":"\"\"","v":""},null,null,null,null,null,{"$f":"\"\"","v":""},null,{"$f":"\"\"","v":""},null,null,{"$f":"\"\"","v":""},{"$f":"\"\"","v":""}]
[{"$f":"VLOOKUP(L65,Tabella_prezzi!$A$2:$L$81,8,FALSE)","v":"2.4TB 10k SAS ISE 12Gbps"},"Hard Drives",null,{"$f":"VLOOKUP(L65,Tabella_prezzi!$A$2:$L$81,9,FALSE)","v":"2.4TB 10k 512e SAS ISE 12Gbps 2.5in Hot Plug Hard Drive"},null,null,1,{"$f":"VLOOKUP(L65,Tabella_prezzi!$A$2:$L$81,9,FALSE)","v":"2.4TB 10k 512e SAS ISE 12Gbps 2.5in Hot Plug Hard Drive"},{"$f":"VLOOKUP(L65,Tabella_prezzi!$A$2:$L$81,3,FALSE)","v":"OpzHDD2TB"},{"$f":"VLOOKUP(L65,Tabella_prezzi!$A$2:$L$81,4,FALSE)","v":137.87},null,"L5N11",{"$f":"VLOOKUP(L65,Tabella_prezzi!$A$2:$L$81,6,FALSE)","v":"TS4L5-HDD2TB"}]
[{"$f":"VLOOKUP(L66,Tabella_prezzi!$A$2:$L$81,8,FALSE)","v":"1.2TB 10K RPM SAS ISE 12Gbps"},"Hard Drives",null,{"$f":"VLOOKUP(L66,Tabella_prezzi!$A$2:$L$81,9,FALSE)","v":"1.2TB 10k 512n SAS ISE 12Gbps 2.5in Hot Plug Hard Drive"},null,null,1,{"$f":"VLOOKUP(L66,Tabella_prezzi!$A$2:$L$81,9,FALSE)","v":"1.2TB 10k 512n SAS ISE 12Gbps 2.5in Hot Plug Hard Drive"},{"$f":"VLOOKUP(L66,Tabella_prezzi!$A$2:$L$81,3,FALSE)","v":"OpzHDD1TB"},{"$f":"VLOOKUP(L66,Tabella_prezzi!$A$2:$L$81,4,FALSE)","v":79.540000000000006},null,"L5N12",{"$f":"VLOOKUP(L66,Tabella_prezzi!$A$2:$L$81,6,FALSE)","v":"TS4L5-HDD1TB"}]
[{"$f":"VLOOKUP(L67,Tabella_prezzi!$A$2:$L$81,8,FALSE)","v":"3.84TB SSD SAS ISE RI 12Gbps"},"Hard Drives",null,{"$f":"VLOOKUP(L67,Tabella_prezzi!$A$2:$L$81,9,FALSE)","v":"3.84TB SSD SAS ISE RI 12Gbps 512e 2.5in PM6 Hot-Plug 1 DWPD"},null,null,1,{"$f":"VLOOKUP(L67,Tabella_prezzi!$A$2:$L$81,9,FALSE)","v":"3.84TB SSD SAS ISE RI 12Gbps 512e 2.5in PM6 Hot-Plug 1 DWPD"},{"$f":"VLOOKUP(L67,Tabella_prezzi!$A$2:$L$81,3,FALSE)","v":"OpzSSD-RI3,8TB"},{"$f":"VLOOKUP(L67,Tabella_prezzi!$A$2:$L$81,4,FALSE)","v":944.35},null,"L5N13",{"$f":"VLOOKUP(L67,Tabella_prezzi!$A$2:$L$81,6,FALSE)","v":"TS4L5-SSD-RI3,8TB"}]
[{"$f":"VLOOKUP(L68,Tabella_prezzi!$A$2:$L$81,8,FALSE)","v":"1.92TB SSD SAS ISE RI 12Gbps"},"Hard Drives",null,{"$f":"VLOOKUP(L68,Tabella_prezzi!$A$2:$L$81,9,FALSE)","v":"1.92TB SSD SAS ISE RI 12Gbps 512e 2.5in Hot-Plug 1 DWP"},null,null,1,{"$f":"VLOOKUP(L68,Tabella_prezzi!$A$2:$L$81,9,FALSE)","v":"1.92TB SSD SAS ISE RI 12Gbps 512e 2.5in Hot-Plug 1 DWP"},{"$f":"VLOOKUP(L68,Tabella_prezzi!$A$2:$L$81,3,FALSE)","v":"OpzSSD-RI1,6TB"},{"$f":"VLOOKUP(L68,Tabella_prezzi!$A$2:$L$81,4,FALSE)","v":533.28},null,"L5N14",{"$f":"VLOOKUP(L68,Tabella_prezzi!$A$2:$L$81,6,FALSE)","v":"TS4L5-SSD-RI1,6TB"}]
[{"$f":"VLOOKUP(L69,Tabella_prezzi!$A$2:$L$81,8,FALSE)","v":"1.6TB SSD SAS ISE MU 12Gbps"},"Hard Drives",null,{"$f":"VLOOKUP(L69,Tabella_prezzi!$A$2:$L$81,9,FALSE)","v":"1.6TB SSD SAS ISE MU 12Gbps 512e 2.5in Hot-Plug PM6 3 DWPD"},null,null,1,{"$f":"VLOOKUP(L69,Tabella_prezzi!$A$2:$L$81,9,FALSE)","v":"1.6TB SSD SAS ISE MU 12Gbps 512e 2.5in Hot-Plug PM6 3 DWPD"},{"$f":"VLOOKUP(L69,Tabella_prezzi!$A$2:$L$81,3,FALSE)","v":"OpzSSD-MU1,6TB"},{"$f":"VLOOKUP(L69,Tabella_prezzi!$A$2:$L$81,4,FALSE)","v":442.13},null,"L5N15",{"$f":"VLOOKUP(L69,Tabella_prezzi!$A$2:$L$81,6,FALSE)","v":"TS4L5-SSD-MU1,6TB"}]
[{"$f":"VLOOKUP(L70,Tabella_prezzi!$A$2:$L$81,8,FALSE)","v":"960GB SSD SAS ISE RI 12Gbps"},"Hard Drives",null,{"$f":"VLOOKUP(L70,Tabella_prezzi!$A$2:$L$81,9,FALSE)","v":"960GB SSD SAS ISE RI 12Gbps 512e 2.5in Hot-Plug 1 DWPD"},null,null,1,{"$f":"VLOOKUP(L70,Tabella_prezzi!$A$2:$L$81,9,FALSE)","v":"960GB SSD SAS ISE RI 12Gbps 512e 2.5in Hot-Plug 1 DWPD"},{"$f":"VLOOKUP(L70,Tabella_prezzi!$A$2:$L$81,3,FALSE)","v":"OpzSSD-RI800GB"},{"$f":"VLOOKUP(L70,Tabella_prezzi!$A$2:$L$81,4,FALSE)","v":265.13},null,"L5N16",{"$f":"VLOOKUP(L70,Tabella_prezzi!$A$2:$L$81,6,FALSE)","v":"TS4L5-SSD-RI800GB"}]
[{"$f":"VLOOKUP(L71,Tabella_prezzi!$A$2:$L$81,8,FALSE)","v":"800GB SSD SAS ISE Mix Use 12Gbps"},"Hard Drives",null,{"$f":"VLOOKUP(L71,Tabella_prezzi!$A$2:$L$81,9,FALSE)","v":"800GB SSD SAS ISE Mix Use 12Gbps 512e 2.5in Hot-plug, 3 DWPD"},null,null,1,{"$f":"VLOOKUP(L71,Tabella_prezzi!$A$2:$L$81,9,FALSE)","v":"800GB SSD SAS ISE Mix Use 12Gbps 512e 2.5in Hot-plug, 3 DWPD"},{"$f":"VLOOKUP(L71,Tabella_prezzi!$A$2:$L$81,3,FALSE)","v":"OpzSSD-MU800GB"},{"$f":"VLOOKUP(L71,Tabella_prezzi!$A$2:$L$81,4,FALSE)","v":275.73},null,"L5N17",{"$f":"VLOOKUP(L71,Tabella_prezzi!$A$2:$L$81,6,FALSE)","v":"TS4L5-SSD-MU800GB"}]
[{"$f":"VLOOKUP(L72,Tabella_prezzi!$A$2:$L$81,8,FALSE)","v":"7.68TB SSD RI SAS ISE 12Gbps"},"Hard Drives",null,{"$f":"VLOOKUP(L72,Tabella_prezzi!$A$2:$L$81,9,FALSE)","v":"7.68TB SSD RI SAS ISE 12Gbps 512e 2.5in PM1643a Hot-Plug 1 DWPD"},null,null,1,{"$f":"VLOOKUP(L72,Tabella_prezzi!$A$2:$L$81,9,FALSE)","v":"7.68TB SSD RI SAS ISE 12Gbps 512e 2.5in PM1643a Hot-Plug 1 DWPD"},{"$f":"VLOOKUP(L72,Tabella_prezzi!$A$2:$L$81,3,FALSE)","v":"OpzSSD7,68RI"},{"$f":"VLOOKUP(L72,Tabella_prezzi!$A$2:$L$81,4,FALSE)","v":2851.61},null,"L5N30",{"$f":"VLOOKUP(L72,Tabella_prezzi!$A$2:$L$81,6,FALSE)","v":"TS4L5-SSD7,68RI"}]
[{"$f":"VLOOKUP(L73,Tabella_prezzi!$A$2:$L$81,8,FALSE)","v":"Mellanox ConnectX-6 DX Dual Port 100GbE QSFP56 Network Adapter, Low Profile"},"Hard Drives",null,{"$f":"VLOOKUP(L73,Tabella_prezzi!$A$2:$L$81,9,FALSE)","v":"Mellanox ConnectX-6 DX Dual Port 100GbE QSFP56 Network Adapter, Low Profile"},null,null,1,{"$f":"VLOOKUP(L73,Tabella_prezzi!$A$2:$L$81,9,FALSE)","v":"Mellanox ConnectX-6 DX Dual Port 100GbE QSFP56 Network Adapter, Low Profile"},{"$f":"VLOOKUP(L73,Tabella_prezzi!$A$2:$L$81,3,FALSE)","v":"Opz100GB-M"},{"$f":"VLOOKUP(L73,Tabella_prezzi!$A$2:$L$81,4,FALSE)","v":741.66},null,"L5N32",{"$f":"VLOOKUP(L73,Tabella_prezzi!$A$2:$L$81,6,FALSE)","v":"TS4L5-100GB-M"}]
[{"$f":"VLOOKUP(L74,Tabella_prezzi!$A$2:$L$81,8,FALSE)","v":"Broadcom 57508 Dual Port 100GbE QSFP Adapter, PCIe Low Profile"},"Hard Drives",null,{"$f":"VLOOKUP(L74,Tabella_prezzi!$A$2:$L$81,9,FALSE)","v":"Broadcom 57508 Dual Port 100GbE QSFP Adapter, PCIe Full Height"},null,null,1,{"$f":"VLOOKUP(L74,Tabella_prezzi!$A$2:$L$81,9,FALSE)","v":"Broadcom 57508 Dual Port 100GbE QSFP Adapter, PCIe Full Height"},{"$f":"VLOOKUP(L74,Tabella_prezzi!$A$2:$L$81,3,FALSE)","v":"Opz100GB-B"},{"$f":"VLOOKUP(L74,Tabella_prezzi!$A$2:$L$81,4,FALSE)","v":684.82},null,"L5N33",{"$f":"VLOOKUP(L74,Tabella_prezzi!$A$2:$L$81,6,FALSE)","v":"TS4L5-100GB-B"}]
[{"$f":"VLOOKUP(L75,Tabella_prezzi!$A$2:$L$81,8,FALSE)","v":"Mellanox ConnectX-6 Single Port HDR100 QSFP56 Infiniband Adapter, PCIe Low Profile"},"Hard Drives",null,{"$f":"VLOOKUP(L75,Tabella_prezzi!$A$2:$L$81,9,FALSE)","v":"Mellanox ConnectX-6 Single Port HDR100 QSFP56 Infiniband Adapter, PCIe Low Profile"},null,null,1,{"$f":"VLOOKUP(L75,Tabella_prezzi!$A$2:$L$81,9,FALSE)","v":"Mellanox ConnectX-6 Single Port HDR100 QSFP56 Infiniband Adapter, PCIe Low Profile"},{"$f":"VLOOKUP(L75,Tabella_prezzi!$A$2:$L$81,3,FALSE)","v":"Opz100GB_INF"},{"$f":"VLOOKUP(L75,Tabella_prezzi!$A$2:$L$81,4,FALSE)","v":1020.46},null,"L5N34",{"$f":"VLOOKUP(L75,Tabella_prezzi!$A$2:$L$81,6,FALSE)","v":"TS4L5-100GB_INF"}]
[{"$f":"VLOOKUP(L76,Tabella_prezzi!$A$2:$L$81,8,FALSE)","v":"BOSS controller card + with 2 M.2 Sticks 480GB (RAID 1),FH"},"Hard Drives",null,{"$f":"VLOOKUP(L76,Tabella_prezzi!$A$2:$L$81,9,FALSE)","v":"BOSS controller card + with 2 M.2 Sticks 480GB (RAID 1),FH"},null,null,1,{"$f":"VLOOKUP(L76,Tabella_prezzi!$A$2:$L$81,9,FALSE)","v":"BOSS controller card + with 2 M.2 Sticks 480GB (RAID 1),FH"},{"$f":"VLOOKUP(L76,Tabella_prezzi!$A$2:$L$81,3,FALSE)","v":"OpzBOSS"},{"$f":"VLOOKUP(L76,Tabella_prezzi!$A$2:$L$81,4,FALSE)","v":0},null,"L5N35",{"$f":"VLOOKUP(L76,Tabella_prezzi!$A$2:$L$81,6,FALSE)","v":"TS4L5-BOSS"}]
[]
["TS4L5_PSU"]
["Dual, Hot-plug, Redundant Power Supply (1+1), 750W","Power Supply",null,"Dual, Hot-plug, Redundant Power Supply (1+1), 750W",null,null,{"$f":"\"\"","v":""},null,{"$f":"\"\"","v":""},null,null,{"$f":"\"\"","v":""},{"$f":"\"\"","v":""}]
[{"$f":"D80","v":"Dual, Hot-plug, Redundant Power Supply (1+1), 1600W, 250 Volt"},"Power Supply",null,{"$f":"VLOOKUP(L80,Tabella_prezzi!$A$2:$L$81,8,FALSE)","v":"Dual, Hot-plug, Redundant Power Supply (1+1), 1600W, 250 Volt"},null,null,1,{"$f":"VLOOKUP(L80,Tabella_prezzi!$A$2:$L$81,9,FALSE)","v":"Dual, Hot-plug, Redundant Power Supply (1+1), 1600W, 250 Volt"},{"$f":"VLOOKUP(L80,Tabella_prezzi!$A$2:$L$81,3,FALSE)","v":"OpzPSU1600W"},null,{"$f":"VLOOKUP(L80,Tabella_prezzi!$A$2:$L$81,4,FALSE)","v":0},"L5N49",{"$f":"VLOOKUP(L80,Tabella_prezzi!$A$2:$L$81,6,FALSE)","v":"TS4L5-PSU1600W"}]
["Dual, Hot-plug Power Supply (1+1), 2000W","Power Supply",null,{"$f":"VLOOKUP(L81,Tabella_prezzi!$A$2:$L$81,8,FALSE)","v":{"$error":"#N/A"}},null,null,1,{"$f":"VLOOKUP(L81,Tabella_prezzi!$A$2:$L$81,9,FALSE)","v":{"$error":"#N/A"}},{"$f":"VLOOKUP(L81,Tabella_prezzi!$A$2:$L$81,3,FALSE)","v":{"$error":"#N/A"}},null,{"$f":"VLOOKUP(L81,Tabella_prezzi!$A$2:$L$81,4,FALSE)","v":{"$error":"#N/A"}},"L5N50",{"$f":"VLOOKUP(L81,Tabella_prezzi!$A$2:$L$81,6,FALSE)","v":{"$error":"#N/A"}}]
[]
["TS4L5_AddCPU",null,null,null,null,null,null,null,null,null,{"$f":"\"\"","v":""}]
[{"$f":"\"\"","v":""},{"$f":"\"\"","v":""},{"$f":"\"\"","v":""},{"$f":"\"\"","v":""},{"$f":"\"\"","v":""},{"$f":"\"\"","v":""},{"$f":"\"\"","v":""},{"$f":"\"\"","v":""},{"$f":"\"\"","v":""},{"$f":"\"\"","v":""},{"$f":"\"\"","v":""}]
["Aggiungere Secondo Processore",{"$f":"\"\"","v":""},{"$f":"\"\"","v":""},{"$f":"\"\"","v":""},{"$f":"\"\"","v":""},{"$f":"\"\"","v":""},{"$f":"\"\"","v":""},{"$f":"\"\"","v":""},{"$f":"\"\"","v":""},{"$f":"\"\"","v":""},0,{"$f":"\"\"","v":""},{"$f":"\"\"","v":""}]
[]
["TS4L5_CTRL"]
[null,null,null,null,null,null,{"$f":"\"\"","v":""},null,{"$f":"\"\"","v":""},null,null,{"$f":"\"\"","v":""},{"$f":"\"\"","v":""}]
[{"$f":"D89","v":"PERC H750 Adapter"},{"$f":"D89","v":"PERC H750 Adapter"},null,{"$f":"VLOOKUP(L89,Tabella_prezzi!$A$2:$L$81,9,FALSE)","v":"PERC H750 Adapter"},null,null,{"$f":"\"\"","v":""},{"$f":"VLOOKUP(L89,Tabella_prezzi!$A$2:$L$81,9,FALSE)","v":"PERC H750 Adapter"},{"$f":"\"\"","v":""},null,null,"L5N44",{"$f":"\"\"","v":""}]
[{"$f":"D90","v":{"$error":"#N/A"}},{"$f":"D90","v":{"$error":"#N/A"}},null,{"$f":"VLOOKUP(L90,Tabella_prezzi!$A$2:$L$81,9,FALSE)","v":{"$error":"#N/A"}},null,null,1,{"$f":"VLOOKUP(L90,Tabella_prezzi!$A$2:$L$81,9,FALSE)","v":{"$error":"#N/A"}},{"$f":"\"\"","v":""},null,{"$f":"VLOOKUP(L90,Tabella_prezzi!$A$2:$L$81,4,FALSE)","v":{"$error":"#N/A"}},"L5N53",{"$f":"VLOOKUP(L90,Tabella_prezzi!$A$2:$L$81,6,FALSE)","v":{"$error":"#N/A"}}]
[]
["TS4L5_ISDM"]
["No Boss card",null,null,null,null,null,{"$f":"\"\"","v":""},null,{"$f":"\"\"","v":""},null,null,{"$f":"\"\"","v":""},{"$f":"\"\"","v":""}]
["Opzioni 20%",null,null,null,null,null,"Selezionare BOSS card",null,{"$f":"\"\"","v":""},null,null,{"$f":"\"\"","v":""},{"$f":"\"\"","v":""}]
["BOSS controller card + with 2 M.2 Sticks 480GB (RAID 1),FH",null,null,{"$f":"VLOOKUP(L95,Tabella_Prezzi,8,FALSE)","v":"BOSS controller card + with 2 M.2 Sticks 480GB (RAID 1),FH"},null,null,1,{"$f":"VLOOKUP(L95,Tabella_prezzi!$A$2:$L$81,9,FALSE)","v":"BOSS controller card + with 2 M.2 Sticks 480GB (RAID 1),FH"},{"$f":"VLOOKUP(L95,Tabella_prezzi!$A$2:$L$81,3,FALSE)","v":"OpzBOSS"},null,{"$f":"VLOOKUP(L95,Tabella_prezzi!$A$2:$L$81,4,FALSE)","v":0},"L5N35",{"$f":"VLOOKUP(L95,Tabella_prezzi!$A$2:$L$81,6,FALSE)","v":"TS4L5-BOSS"}]
[]
["TS4L5_OME"]
["No OMEA",null,null,null,null,null,{"$f":"\"\"","v":""},null,{"$f":"\"\"","v":""},null,null,{"$f":"\"\"","v":""},{"$f":"\"\"","v":""}]
["[TS4L5-OMEA] OpenManage Enterprise Advanced","OpenManage Enterprise Advanced","TS4L6-OMEA","OpenManage Enterprise Advanced",null,null,1,{"$f":"VLOOKUP(L99,Tabella_prezzi!$A$2:$L$81,9,FALSE)","v":{"$error":"#N/A"}},{"$f":"VLOOKUP(L99,Tabella_prezzi!$A$2:$L$81,3,FALSE)","v":{"$error":"#N/A"}},null,{"$f":"VLOOKUP(L99,Tabella_prezzi!$A$2:$L$81,4,FALSE)","v":{"$error":"#N/A"}},"L5N96",{"$f":"VLOOKUP(L99,Tabella_prezzi!$A$2:$L$81,6,FALSE)","v":{"$error":"#N/A"}}]
[]
["TS4L5_WARRANTY"]
["Manutenzione in garanzia (36 mesi)","Dell Services: Extended Service",null,"RESTRICTED:ProSupport One Data Center and Next Business Day Onsite Service Volume Low, 39 Month(s)",null,null,{"$f":"\"\"","v":""},null,{"$f":"\"\"","v":""},null,null,{"$f":"\"\"","v":""},{"$f":"\"\"","v":""}]
[{"$f":"D103","v":"Estensione della manutenzione in garanzia per ulteriori 24 mesi"},"Dell Services: Extended Service",null,{"$f":"VLOOKUP(L103,Tabella_prezzi!$A$2:$L$81,8,FALSE)","v":"Estensione della manutenzione in garanzia per ulteriori 24 mesi"},null,null,1,{"$f":"VLOOKUP(L103,Tabella_prezzi!$A$2:$L$276,9,FALSE)","v":"Estensione della manutenzione in garanzia per ulteriori 24 mesi"},{"$f":"VLOOKUP(L103,Tabella_prezzi!$A$2:$L$276,3,FALSE)","v":"OpzEstensione24"},{"$f":"VLOOKUP(L103,Tabella_prezzi!$A$2:$L$276,4,FALSE)","v":258.74},null,"L5N27",{"$f":"VLOOKUP(L103,Tabella_prezzi!$A$2:$L$81,6,FALSE)","v":"TS4L5-OpzEst24"}]
[]
["TS4L5_HDDRET"]
[{"$f":"\"\"","v":""},{"$f":"\"\"","v":""},{"$f":"\"\"","v":""},{"$f":"\"\"","v":""},{"$f":"\"\"","v":""},{"$f":"\"\"","v":""},{"$f":"\"\"","v":""},{"$f":"\"\"","v":""},{"$f":"\"\"","v":""},{"$f":"\"\"","v":""},{"$f":"\"\"","v":""},{"$f":"\"\"","v":""},{"$f":"\"\"","v":""}]
[{"$f":"D107","v":"Hard Disk Retention 36 mesi"},"Dell Services: Extended Service",null,{"$f":"Tabella_prezzi!H48","v":"Hard Disk Retention 36 mesi"},null,null,1,{"$f":"VLOOKUP(L107,Tabella_prezzi!$A$2:$L$276,9,FALSE)","v":"Hard Disk Retention 36 mesi"},{"$f":"VLOOKUP(L107,Tabella_prezzi!$A$2:$L$276,3,FALSE)","v":"OpzHDDRetention"},{"$f":"VLOOKUP(L107,Tabella_prezzi!$A$2:$L$276,4,FALSE)","v":34.85},null,"L5N26",{"$f":"VLOOKUP(L107,Tabella_prezzi!$A$2:$L$81,6,FALSE)","v":"TS4L5-HDRTN36"}]
[{"$f":"D108","v":"Hard Disk Retention 60 mesi"},"Dell Services: Extended Service",null,{"$f":"VLOOKUP(L108,Tabella_prezzi!$A$2:$L$81,8,FALSE)","v":"Hard Disk Retention 60 mesi"},null,null,1,{"$f":"VLOOKUP(L108,Tabella_prezzi!$A$2:$L$276,9,FALSE)","v":"Hard Disk Retention 60 mesi"},{"$f":"VLOOKUP(L108,Tabella_prezzi!$A$2:$L$276,3,FALSE)","v":"OpzHDDRetention60"},{"$f":"VLOOKUP(L108,Tabella_prezzi!$A$2:$L$276,4,FALSE)","v":58.08},null,"L5N26b",{"$f":"VLOOKUP(L108,Tabella_prezzi!$A$2:$L$81,6,FALSE)","v":"TS4L5-HDRTN60"}]
["TS44_KYHDD"]
[{"$f":"D110","v":"Unità KVM - monitor 17\", cavo combi PS/2&USB da 1,8mt, tastiera italiana, touch pad"},null,null,{"$f":"VLOOKUP(L110,Tabella_prezzi!$A$2:$L$81,8,FALSE)","v":"Unità KVM - monitor 17\", cavo combi PS/2&USB da 1,8mt, tastiera italiana, touch pad"},null,null,1,{"$f":"VLOOKUP(L110,Tabella_prezzi!$A$2:$L$81,9,FALSE)","v":"Unità KVM - monitor 17\", cavo combi PS/2&USB da 1,8mt, tastiera italiana, touch pad"},{"$f":"VLOOKUP(L110,Tabella_prezzi!$A$2:$L$81,3,FALSE)","v":"OpzGUI"},{"$f":"VLOOKUP(L110,Tabella_prezzi!$A$2:$L$81,4,FALSE)","v":491.62},null,"L5N19",{"$f":"VLOOKUP(L110,Tabella_prezzi!$A$2:$L$81,6,FALSE)","v":"TS4L5-GUI"}]
[{"$f":"D111","v":"KVM Switch IP per GUI 16P"},null,null,{"$f":"VLOOKUP(L111,Tabella_prezzi!$A$2:$L$81,9,FALSE)","v":"KVM Switch IP per GUI 16P"},null,null,1,{"$f":"VLOOKUP(L111,Tabella_prezzi!$A$2:$L$81,9,FALSE)","v":"KVM Switch IP per GUI 16P"},{"$f":"VLOOKUP(L111,Tabella_prezzi!$A$2:$L$81,3,FALSE)","v":"OpzKVM"},{"$f":"VLOOKUP(L111,Tabella_prezzi!$A$2:$L$81,4,FALSE)","v":552.47},null,"L5N20",{"$f":"VLOOKUP(L111,Tabella_prezzi!$A$2:$L$81,6,FALSE)","v":"TS4L5-KVM"}]
[{"$f":"D112","v":"Windows Server 2022,Standard,ROK,16CORE"},null,null,{"$f":"VLOOKUP(L112,Tabella_prezzi!$A$2:$L$81,9,FALSE)","v":"Windows Server 2022,Standard,ROK,16CORE"},null,null,1,{"$f":"VLOOKUP(L112,Tabella_prezzi!$A$2:$L$81,9,FALSE)","v":"Windows Server 2022,Standard,ROK,16CORE"},{"$f":"VLOOKUP(L112,Tabella_prezzi!$A$2:$L$81,3,FALSE)","v":"OpzWinServSTD"},{"$f":"VLOOKUP(L112,Tabella_prezzi!$A$2:$L$81,4,FALSE)","v":728.99},null,"L5N21",{"$f":"VLOOKUP(L112,Tabella_prezzi!$A$2:$L$81,6,FALSE)","v":"TS4L5-WINSRVSTD"}]
["1-pack of Windows Server 2019/2016 Device CALs (STD or DC)",null,null,{"$f":"VLOOKUP(L113,Tabella_prezzi!$A$2:$L$81,9,FALSE)","v":"1-pack of Windows Server 2022/2019 User CALs (STD or DC)"},null,null,1,{"$f":"VLOOKUP(L113,Tabella_prezzi!$A$2:$L$81,9,FALSE)","v":"1-pack of Windows Server 2022/2019 User CALs (STD or DC)"},{"$f":"VLOOKUP(L113,Tabella_prezzi!$A$2:$L$81,3,FALSE)","v":"OpzUserCal"},{"$f":"VLOOKUP(L113,Tabella_prezzi!$A$2:$L$81,4,FALSE)","v":34.64},null,"L5N23",{"$f":"VLOOKUP(L113,Tabella_prezzi!$A$2:$L$81,6,FALSE)","v":"TS4L5-WINUSRCAL"}]
["1-pack of Windows Server 2019/2016 User CALs (STD or DC)",null,null,{"$f":"VLOOKUP(L114,Tabella_prezzi!$A$2:$L$81,9,FALSE)","v":"Windows Server 2022 Standard Edition, Add License,2CORE"},null,null,1,{"$f":"VLOOKUP(L114,Tabella_prezzi!$A$2:$L$81,9,FALSE)","v":"Windows Server 2022 Standard Edition, Add License,2CORE"},{"$f":"VLOOKUP(L114,Tabella_prezzi!$A$2:$L$81,3,FALSE)","v":"OpzWinServSTD2core"},{"$f":"VLOOKUP(L114,Tabella_prezzi!$A$2:$L$81,4,FALSE)","v":93.75},null,"L5N24",{"$f":"VLOOKUP(L114,Tabella_prezzi!$A$2:$L$81,6,FALSE)","v":"TS4L5-WINSRV2C"}]
["Armadio Rack 42U",null,null,{"$f":"VLOOKUP(L115,Tabella_prezzi!$A$2:$L$81,9,FALSE)","v":"Intel XL710 Dual Port 40G, QSFP+, Full Height"},null,null,1,{"$f":"VLOOKUP(L115,Tabella_prezzi!$A$2:$L$81,9,FALSE)","v":"Intel XL710 Dual Port 40G, QSFP+, Full Height"},{"$f":"VLOOKUP(L115,Tabella_prezzi!$A$2:$L$81,3,FALSE)","v":"Opz40GB-I"},{"$f":"VLOOKUP(L115,Tabella_prezzi!$A$2:$L$81,4,FALSE)","v":682.11},null,"L5N31",{"$f":"VLOOKUP(L115,Tabella_prezzi!$A$2:$L$81,6,FALSE)","v":"TS4L5-40GB-I"}]
[]
["TS4L2_PCI_A"]
[{"$f":"\"\"","v":""},{"$f":"\"\"","v":""},{"$f":"\"\"","v":""},{"$f":"\"\"","v":""},{"$f":"\"\"","v":""},{"$f":"\"\"","v":""},{"$f":"\"\"","v":""},{"$f":"\"\"","v":""},{"$f":"\"\"","v":""},0,0,{"$f":"\"\"","v":""},{"$f":"\"\"","v":""}]
[{"$f":"D119","v":"Broadcom 5720 DP 1Gb Network Interface Card,Full Height"},null,null,{"$f":"VLOOKUP(L119,Tabella_Prezzi,9,FALSE)","v":"Broadcom 5720 DP 1Gb Network Interface Card,Full Height"},null,"540-BBCX",1,{"$f":"VLOOKUP(L119,Tabella_Prezzi,9,FALSE)","v":"Broadcom 5720 DP 1Gb Network Interface Card,Full Height"},{"$f":"VLOOKUP(L119,Tabella_Prezzi,3,FALSE)","v":"OpzGigabit"},{"$f":"VLOOKUP(L119,Tabella_Prezzi,4,FALSE)","v":27.82},null,"L5N05",{"$f":"VLOOKUP(L119,Tabella_Prezzi,6,FALSE)","v":"TS4L5-LAN1"}]
["Broadcom 57414 Dual Port 10/25GbE SFP28 Adapter, PCIe Full Height + Optics",null,null,"Broadcom 57414 Dual Port 10/25GbE SFP28 Adapter, PCIe Full Height + Optics",null,"540-BBCX",1,"Broadcom 57414 Dual Port 10/25GbE SFP28 Adapter, PCIe Full Height + Optics","OpzGigabit10Gbps",149.99,null,"L5N06","TS4L5-LAN10"]
["Intel Ethernet XXV710 Dual Port 25GbE SFP28 Adapter, PCIe Full Height + Optics",null,null,"Intel Ethernet XXV710 Dual Port 25GbE SFP28 Adapter, PCIe Full Height + Optics",null,"540-BBCX",1,"Intel Ethernet XXV710 Dual Port 25GbE SFP28 Adapter, PCIe Full Height + Optics","OpzGigabit25Gbps",233.31,null,"L5N07","TS4L5-LAN25"]
["CNA QLogic 41262 Dual Port 10Gb SFP28 Adapter, Full Height +10 Gbps Optics",null,null,"CNA QLogic 41262 Dual Port 10Gb SFP28 Adapter, Full Height +10 Gbps Optics",null,"540-BBCX",1,"CNA QLogic 41262 Dual Port 10Gb SFP28 Adapter, Full Height +10 Gbps Optics","OpzGigabit10Gbps CNA",143.16999999999999,null,"L5N08","TS4L5-CNA10"]
["Intel X710-T2L Dual Port 10GbE BASE-T Adapter, PCIe Full Height",null,null,"Intel X710-T2L Dual Port 10GbE BASE-T Adapter, PCIe Full Height",null,"540-BBCX",1,"Intel X710-T2L Dual Port 10GbE BASE-T Adapter, PCIe Full Height","Opz10Gigabit BaseT",137.87,null,"L5N09","TS4L5-BaseT"]
["QLogic 2772 Dual Port 32Gb Fibre Channel HBA, PCIe Full Height + Optics",null,null,"QLogic 2772 Dual Port 32Gb Fibre Channel HBA, PCIe Full Height + Optics",null,"540-BBCX",1,"QLogic 2772 Dual Port 32Gb Fibre Channel HBA, PCIe Full Height + Optics","OpzFibreChannel",426.52,null,"L5N10","TS4L5- FibreChannel"]
[{"$f":"\"\"","v":""},{"$f":"\"\"","v":""},{"$f":"\"\"","v":""},{"$f":"\"\"","v":""},{"$f":"\"\"","v":""},{"$f":"\"\"","v":""},{"$f":"\"\"","v":""},{"$f":"\"\"","v":""},{"$f":"\"\"","v":""},{"$f":"\"\"","v":""},{"$f":"\"\"","v":""},{"$f":"\"\"","v":""},{"$f":"\"\"","v":""}]
["Opzioni 20%",{"$f":"\"\"","v":""},{"$f":"\"\"","v":""},{"$f":"\"\"","v":""},{"$f":"\"\"","v":""},{"$f":"\"\"","v":""},{"$f":"\"\"","v":""},{"$f":"\"\"","v":""},{"$f":"\"\"","v":""},{"$f":"\"\"","v":""},{"$f":"\"\"","v":""},{"$f":"\"\"","v":""},{"$f":"\"\"","v":""}]
[{"$f":"\"\"","v":""},{"$f":"\"\"","v":""},{"$f":"\"\"","v":""},{"$f":"\"\"","v":""},{"$f":"\"\"","v":""},{"$f":"\"\"","v":""},{"$f":"\"\"","v":""},{"$f":"\"\"","v":""},{"$f":"\"\"","v":""},{"$f":"\"\"","v":""},{"$f":"\"\"","v":""},{"$f":"\"\"","v":""},{"$f":"\"\"","v":""}]
[{"$f":"D128","v":"Intel XL710 Dual Port 40G, QSFP+, Full Height"},null,null,{"$f":"VLOOKUP(L128,Tabella_Prezzi,9,FALSE)","v":"Intel XL710 Dual Port 40G, QSFP+, Full Height"},null,"540-BBCX",1,{"$f":"VLOOKUP(L128,Tabella_Prezzi,9,FALSE)","v":"Intel XL710 Dual Port 40G, QSFP+, Full Height"},{"$f":"VLOOKUP(L128,Tabella_Prezzi,3,FALSE)","v":"Opz40GB-I"},null,{"$f":"VLOOKUP(L128,Tabella_Prezzi,4,FALSE)","v":682.11},"L5N31",{"$f":"VLOOKUP(L128,Tabella_Prezzi,6,FALSE)","v":"TS4L5-40GB-I"}]
["Riservato Boss Card",{"$f":"\"\"","v":""},{"$f":"\"\"","v":""},{"$f":"\"\"","v":""},{"$f":"\"\"","v":""},{"$f":"\"\"","v":""},{"$f":"\"\"","v":""},{"$f":"\"\"","v":""},{"$f":"\"\"","v":""},0,0,{"$f":"\"\"","v":""},{"$f":"\"\"","v":""}]
["TS4L2_PCI_A_LP"]
[{"$f":"\"\"","v":""},null,null,null,null,null,{"$f":"\"\"","v":""},null,{"$f":"\"\"","v":""},null,null,{"$f":"\"\"","v":""},{"$f":"\"\"","v":""}]
[{"$f":"D132","v":"Broadcom 5720 DP 1Gb Network Interface Car, Low Profile "},null,null,{"$f":"VLOOKUP(L132,Tabella_Prezzi,9,FALSE)","v":"Broadcom 5720 DP 1Gb Network Interface Car, Low Profile "},null,"540-BBCX",1,{"$f":"VLOOKUP(L132,Tabella_Prezzi,9,FALSE)","v":"Broadcom 5720 DP 1Gb Network Interface Car, Low Profile "},{"$f":"VLOOKUP(L132,Tabella_Prezzi,3,FALSE)","v":"OpzGigabit"},{"$f":"VLOOKUP(L132,Tabella_Prezzi,4,FALSE)","v":27.82},null,"L5N75",{"$f":"VLOOKUP(L132,Tabella_Prezzi,6,FALSE)","v":"TS4L5-LAN1"}]
["Broadcom 57414 Dual Port 25Gb, SFP28, PCIe Adapter, LOW PROFILE + Optics",null,null,"Broadcom 57414 Dual Port 25Gb, SFP28, PCIe Adapter, LOW PROFILE + Optics",null,"540-BBCX",1,"Broadcom 57414 Dual Port 25Gb, SFP28, PCIe Adapter, LOW PROFILE + Optics","OpzGigabit10Gbps",149.99,null,"L5N76","TS4L5-LAN10"]
["Intel Ethernet XXV710 Dual Port 25GbE SFP28 Adapter, PCIe Low Profile + Optics",null,null,"Intel Ethernet XXV710 Dual Port 25GbE SFP28 Adapter, PCIe Low Profile + Optics",null,"540-BBCX",1,"Intel Ethernet XXV710 Dual Port 25GbE SFP28 Adapter, PCIe Low Profile + Optics","OpzGigabit25Gbps",233.31,null,"L5N77","TS4L5-LAN25"]
["CNA QLogic 41262 Dual Port 10Gb SFP28 Adapter, Low Profile + 10 Gbps Optics",null,null,"CNA QLogic 41262 Dual Port 10Gb SFP28 Adapter, Low Profile + 10 Gbps Optics",null,"540-BBCX",1,"CNA QLogic 41262 Dual Port 10Gb SFP28 Adapter, Low Profile + 10 Gbps Optics","OpzGigabit10Gbps CNA",143.16999999999999,null,"L5N78","TS4L5-CNA10"]
["Intel X710-T2L Dual Port 10GbE BASE-T Adapter, PCIe LP",null,null,"Intel X710-T2L Dual Port 10GbE BASE-T Adapter, PCIe LP",null,"540-BBCX",1,"Intel X710-T2L Dual Port 10GbE BASE-T Adapter, PCIe LP","Opz10Gigabit BaseT",137.87,null,"L5N79","TS4L5- BaseT-L"]
["QLogic 2772 Dual Port 32GbE Fibre Channel HBA, PCIe Low Profile + Optics",null,null,"QLogic 2772 Dual Port 32GbE Fibre Channel HBA, PCIe Low Profile + Optics",null,"540-BBCX",1,"QLogic 2772 Dual Port 32GbE Fibre Channel HBA, PCIe Low Profile + Optics","OpzFibreChannel",426.52,null,"L5N101","TS4L5- FibreChannel"]
[]
["Opzioni 20 %"]
[{"$f":"\"\"","v":""}]
[{"$f":"D141","v":"Mellanox ConnectX-6 DX Dual Port 100GbE QSFP56 Network Adapter, Low Profile"},null,null,{"$f":"VLOOKUP(L141,Tabella_Prezzi,9,FALSE)","v":"Mellanox ConnectX-6 DX Dual Port 100GbE QSFP56 Network Adapter, Low Profile"},null,null,1,{"$f":"VLOOKUP(L141,Tabella_Prezzi,9,FALSE)","v":"Mellanox ConnectX-6 DX Dual Port 100GbE QSFP56 Network Adapter, Low Profile"},{"$f":"VLOOKUP(L141,Tabella_Prezzi,3,FALSE)","v":"Opz100GB-M"},null,{"$f":"VLOOKUP(L141,Tabella_Prezzi,4,FALSE)","v":741.66},"L5N32",{"$f":"VLOOKUP(L141,Tabella_Prezzi,6,FALSE)","v":"TS4L5-100GB-M"}]
[{"$f":"D142","v":"Broadcom 57508 Dual Port 100GbE QSFP Adapter, PCIe Full Height"},null,null,"Broadcom 57508 Dual Port 100GbE QSFP Adapter, PCIe Full Height",null,null,1,"Broadcom 57508 Dual Port 100GbE QSFP Adapter, PCIe Full Height","Opz100GB-B",null,{"$f":"VLOOKUP(L142,Tabella_Prezzi,4,FALSE)","v":684.82},"L5N33","TS4L5-100GB-B"]
[{"$f":"D143","v":"Mellanox ConnectX-6 Single Port HDR100 QSFP56 Infiniband Adapter, PCIe Low Profile"},null,null,"Mellanox ConnectX-6 Single Port HDR100 QSFP56 Infiniband Adapter, PCIe Low Profile",null,null,1,"Mellanox ConnectX-6 Single Port HDR100 QSFP56 Infiniband Adapter, PCIe Low Profile","Opz100GB_INF",null,{"$f":"VLOOKUP(L143,Tabella_Prezzi,4,FALSE)","v":1020.46},"L5N34","TS4L5-100GB_INF"]
["Riservato Boss Card"]
[]
["TS4L5_SFP"]
[{"$f":"D147","v":"SFP+ SR Optic for all SFP+ ports except high temp validation warning cards"},null,null,{"$f":"VLOOKUP(L147,Tabella_Prezzi,9,FALSE)","v":"SFP+ SR Optic for all SFP+ ports except high temp validation warning cards"},null,null,null,{"$f":"VLOOKUP(L147,Tabella_Prezzi,9,FALSE)","v":"SFP+ SR Optic for all SFP+ ports except high temp validation warning cards"},{"$f":"VLOOKUP(L147,Tabella_Prezzi,3,FALSE)","v":"OpzOT10GB"},null,{"$f":"VLOOKUP(L147,Tabella_Prezzi,4,FALSE)","v":17.59},"L5N36",{"$f":"VLOOKUP(L147,Tabella_Prezzi,6,FALSE)","v":"TS4L5-OT10GB"}]
[{"$f":"D148","v":"SFP28 SR Optic, 25GbE, 85C, for all SFP28 ports"},null,null,{"$f":"VLOOKUP(L148,Tabella_Prezzi,9,FALSE)","v":"SFP28 SR Optic, 25GbE, 85C, for all SFP28 ports"},null,null,null,{"$f":"VLOOKUP(L148,Tabella_Prezzi,9,FALSE)","v":"SFP28 SR Optic, 25GbE, 85C, for all SFP28 ports"},{"$f":"VLOOKUP(L148,Tabella_Prezzi,3,FALSE)","v":"OpzOT25GB"},null,{"$f":"VLOOKUP(L148,Tabella_Prezzi,4,FALSE)","v":112.33},"L5N37",{"$f":"VLOOKUP(L148,Tabella_Prezzi,6,FALSE)","v":"TS4L5-OT25GB"}]
["Dell Networking, Transceiver, 40GbE QSFP+ SR4 Optics, MPO, 850nmWavelength, 100-150m Reach on OM3/OM4",null,null,"Dell Networking, Transceiver, 40GbE QSFP+ SR4 Optics, MPO, 850nmWavelength, 100-150m Reach on OM3/OM4",null,null,null,"Dell Networking, Transceiver, 40GbE QSFP+ SR4 Optics, MPO, 850nmWavelength, 100-150m Reach on OM3/OM4","OpzOT40GB",null,{"$f":"VLOOKUP(L149,Tabella_Prezzi,4,FALSE)","v":73.08},"L5N38","TS4L5-OT40GB"]
[{"$f":"D150","v":"Dell EMC PowerEdge QSFP28 SR4 100GbE 85C optic"},null,null,{"$f":"VLOOKUP(L150,Tabella_Prezzi,9,FALSE)","v":"Dell EMC PowerEdge QSFP28 SR4 100GbE 85C optic"},null,null,null,{"$f":"VLOOKUP(L150,Tabella_Prezzi,9,FALSE)","v":"Dell EMC PowerEdge QSFP28 SR4 100GbE 85C optic"},{"$f":"VLOOKUP(L150,Tabella_Prezzi,3,FALSE)","v":"OpzOT100GB"},null,{"$f":"VLOOKUP(L150,Tabella_Prezzi,4,FALSE)","v":485.87},"L5N39",{"$f":"VLOOKUP(L150,Tabella_Prezzi,6,FALSE)","v":"TS4L5-OT100GB"}]
[]
["TS4L5_UPS"]
[]
[{"$f":"D154","v":{"$error":"#N/A"}},null,null,{"$f":"VLOOKUP(L154,Tabella_Prezzi,9,FALSE)","v":{"$error":"#N/A"}},null,null,null,{"$f":"VLOOKUP(L154,Tabella_Prezzi,9,FALSE)","v":{"$error":"#N/A"}},{"$f":"VLOOKUP(L154,Tabella_Prezzi,3,FALSE)","v":{"$error":"#N/A"}},null,{"$f":"VLOOKUP(L154,Tabella_Prezzi,4,FALSE)","v":{"$error":"#N/A"}},"L5N54",{"$f":"VLOOKUP(L154,Tabella_Prezzi,6,FALSE)","v":{"$error":"#N/A"}}]
[]
["TS4L5_UPS"]
[]
[{"$f":"D158","v":"Dispositivo UPS di tipo On-line doppia conversione, strutturato per il montaggio a rack da 19”"},null,null,{"$f":"VLOOKUP(L158,Tabella_Prezzi,9,FALSE)","v":"Dispositivo UPS di tipo On-line doppia conversione, strutturato per il montaggio a rack da 19”"},null,null,null,{"$f":"VLOOKUP(L158,Tabella_Prezzi,9,FALSE)","v":"Dispositivo UPS di tipo On-line doppia conversione, strutturato per il montaggio a rack da 19”"},{"$f":"VLOOKUP(L158,Tabella_Prezzi,3,FALSE)","v":"OpzUps (3000VA)"},null,{"$f":"VLOOKUP(L158,Tabella_Prezzi,4,FALSE)","v":386.02},"L5N18",{"$f":"VLOOKUP(L158,Tabella_Prezzi,6,FALSE)","v":"TS4L5-UPS"}]
["TS4L5_GUI"]
[]
[{"$f":"D161","v":"Unità KVM - monitor 17\", cavo combi PS/2&USB da 1,8mt, tastiera italiana, touch pad"},null,null,{"$f":"VLOOKUP(L161,Tabella_Prezzi,9,FALSE)","v":"Unità KVM - monitor 17\", cavo combi PS/2&USB da 1,8mt, tastiera italiana, touch pad"},null,null,null,{"$f":"VLOOKUP(L161,Tabella_Prezzi,9,FALSE)","v":"Unità KVM - monitor 17\", cavo combi PS/2&USB da 1,8mt, tastiera italiana, touch pad"},{"$f":"VLOOKUP(L161,Tabella_Prezzi,3,FALSE)","v":"OpzGUI"},null,{"$f":"VLOOKUP(L161,Tabella_Prezzi,4,FALSE)","v":491.62},"L5N19",{"$f":"VLOOKUP(L161,Tabella_Prezzi,6,FALSE)","v":"TS4L5-GUI"}]
[]
["TS4L5_KVM"]
[]
[{"$f":"D165","v":"KVM Switch IP per GUI 16P"},null,null,{"$f":"VLOOKUP(L165,Tabella_Prezzi,9,FALSE)","v":"KVM Switch IP per GUI 16P"},null,null,null,{"$f":"VLOOKUP(L165,Tabella_Prezzi,9,FALSE)","v":"KVM Switch IP per GUI 16P"},{"$f":"VLOOKUP(L165,Tabella_Prezzi,3,FALSE)","v":"OpzKVM"},null,{"$f":"VLOOKUP(L165,Tabella_Prezzi,4,FALSE)","v":552.47},"L5N20",{"$f":"VLOOKUP(L165,Tabella_Prezzi,6,FALSE)","v":"TS4L5-KVM"}]
[]
["TS4L5_RACK"]
[]
[{"$f":"D169","v":"Armadio Rack 42U"},null,null,{"$f":"VLOOKUP(L169,Tabella_Prezzi,9,FALSE)","v":"Armadio Rack 42U"},null,null,null,{"$f":"VLOOKUP(L169,Tabella_Prezzi,9,FALSE)","v":"Armadio Rack 42U"},{"$f":"VLOOKUP(L169,Tabella_Prezzi,3,FALSE)","v":"OpzRack"},null,{"$f":"VLOOKUP(L169,Tabella_Prezzi,4,FALSE)","v":579.63},"L5N28",{"$f":"VLOOKUP(L169,Tabella_Prezzi,6,FALSE)","v":"TS4L5-RACK"}]
[]
["TS4L5-RAM32"]
["TS4L5-RAM64"]
["Riservato Boss Card",{"$f":"\"\"","v":""},{"$f":"\"\"","v":""},{"$f":"\"\"","v":""},{"$f":"\"\"","v":""},{"$f":"\"\"","v":""},{"$f":"\"\"","v":""},{"$f":"\"\"","v":""},{"$f":"\"\"","v":""},{"$f":"\"\"","v":""},{"$f":"\"\"","v":""},{"$f":"\"\"","v":""},{"$f":"\"\"","v":""}]
["Aggiungere Terzo e Quarto Processore"]
[0,null,"Riservato per PERC"]
[2]
[4,null,null,"Standard",null,null,"Datacenter"]
[6,null,null,"2CPU","4CPU",null,"2CPU","4CPU"]
["Illimitate",null,null,48,96,null,48,96]
[]
[]
[1,3,null,16,40,null,16,40]
[3,6,null,40,88,null,40,88]
[4,9,null,64,136,null,64,136]
[]
[1]
[2]
[3]
[4]
[5]
[6]
[7]
[8]
[9]
[10]
[11]
[12]
[13]
[14]
[15]
[16]

{"sheet":"Tabella_prezzi","index":7,"n_rows":67,"n_cols":18,"rows_kept":67,"cut":false,"hidden":true,"merged":[[23,12,24,12],[25,12,26,12],[38,12,39,12],[4,12,10,12],[15,12,16,12],[17,12,18,12],[19,12,20,12],[21,12,22,12],[38,10,39,10],[4,0,10,0],[4,1,10,1],[4,3,10,3],[4,4,10,4],[4,5,10,5],[4,9,10,9],[38,8,39,8],[38,6,39,6],[17,4,18,4],[4,2,10,2],[19,5,20,5],[21,5,22,5],[15,4,16,4],[17,5,18,5],[19,4,20,4],[15,0,16,0],[15,1,16,1],[15,2,16,2],[15,3,16,3],[21,0,22,0],[21,1,22,1],[21,2,22,2],[21,3,22,3],[19,0,20,0],[19,1,20,1],[17,0,18,0],[17,1,18,1],[17,2,18,2],[17,3,18,3],[19,2,20,2],[19,3,20,3],[25,4,26,4],[25,5,26,5],[15,9,16,9],[17,9,18,9],[19,9,20,9],[21,9,22,9],[23,9,24,9],[25,9,26,9],[15,5,16,5],[23,4,24,4],[23,5,24,5],[21,4,22,4],[23,2,24,2],[25,0,26,0],[25,1,26,1],[25,2,26,2],[25,3,26,3],[23,0,24,0],[23,1,24,1],[23,3,24,3],[38,9,39,9],[38,5,39,5],[38,0,39,0],[38,1,39,1],[38,4,39,4],[38,2,39,2],[38,3,39,3]]}
["N°",null,"Attributo","Valore inserito","N°","Codice Convenzione","Qty:",null,"Description:","Manufacturer Part","Sku Number:","Brand"]
["L5N01",1,"server\nrackable quad-processore (prestazionale)",4022.56,"L5N01","TS4L5-SRV",1,null,"PowerEdge R840 Server","L5N01-ServerR840","210-AMTE","DELL","TS4L6-SRV",null,null,null,"210-321-BCPX","-"]
["L5N01-NVMe",1,"server\nrackable quad-processore (prestazionale)",4022.56,"L5N01","TS4L5-SRV-NVME",1,null,"PowerEdge R840 Server","L5N01-ServerR840-NVME","210-AMTE","DELL","TS4L6-SRV-NVME",null,null,null,"210-321-BCPX","-"]
["L5N01-vSAN",1,"server\nrackable quad-processore (prestazionale)",4022.56,"L5N01","TS4L5-SRV-vSAN",1,null,"PowerEdge R840 Server","L5N01-ServerR840-vSAN","210-AMTE","DELL","TS4L6-SRV-vSAN",null,null,null,"210-321-BCPX","-"]
["L5N02",2,"Kit n. 2 Processori\naggiuntivi",2034.14,"L5N02","TS4L5-CPU",1,"2 x Intel Xeon Gold 6252N, 2.3G, 24C/48T, 10.4GT/s, 35.75M Cache, Turbo, HT (150W) DDR4-2933","2 x Intel Xeon Gold 6252N, 2.3G, 24C/48T, 10.4GT/s, 35.75M Cache, Turbo, HT (150W) DDR4-2933","L5N02-OpzCPU","338-BZSB","DELL","TS4L6-CPU-NVME",null,null,null,"338-BZSB","WX6G7"]
[null,null,null,null,null,null,1,"L Shape Heatsink for 2nd CPU equal to or greater than 180W,PowerEdge R6525/R7525, Customer Install","L Shape Heatsink for 2nd CPU equal to or greater than 180W,PowerEdge R6525/R7525, Customer Install",null,"412-AASW","DELL",null,null,null,null,"412-AASW","4RCGC"]
[null,null,null,null,null,null,1,"PowerEdge R7525 High Performance Fan Customer Kit V3","PowerEdge R7525 High Performance Fan Customer Kit V3",null,"121-BBBI","DELL",null,null,null,null,"121-BBBI","HVVRP"]
[null,null,null,null,null,null,1,"Riser with Two x8(x16 connector) PCIe Gen4 (Slots 4 & 5), Customer Install","Riser with Two x8(x16 connector) PCIe Gen4 (Slots 4 & 5), Customer Install",null,"330-BBTM","DELL",null,null,null,null,"330-BBTM","234T7"]
[null,null,null,null,null,null,1,"Riser 4B, PCIe Gen4 1x16 (x16 connector), Half Length, PowerEdge R7525, CK","Riser 4B, PCIe Gen4 1x16 (x16 connector), Half Length, PowerEdge R7525, CK",null,"330-BBPR","DELL",null,null,null,null,"330-BBPR"]
[null,null,null,null,null,null,1,"Riser 1B, PCIe Gen4 2x8 (x16 connector), Half Length, PowerEdge R7525, CK","Riser 1B, PCIe Gen4 2x8 (x16 connector), Half Length, PowerEdge R7525, CK",null,"330-BBPV","DELL",null,null,null,null,"330-BBPV","R80PP"]
[null,null,null,null,null,null,1,"Riser 2A, PCIe Gen4 2x16 (x16 connector), PowerEdge R7525, CK","Riser 2A, PCIe Gen4 2x16 (x16 connector), PowerEdge R7525, CK",null,"330-BBPO","DELL",null,null,null,null,"330-BBPO"]
["L5N03",3,"OpzRAM32GB",256.64,"L5N03","TS4L5-RAM32",1,"32GB - 2Rx4 DDR4 RDIMM 3200MHz","32GB - 2Rx4 DDR4 RDIMM 3200MHz","L5N03-OpzRAM32GB","AA799087","DELL","TS4L6-RAM32-NVME",null,null,null,"AA79SNP75X1VC/32G","SNP75X1VC/32G"]
["L5N04",4,"OpzRAM64GB",288.45999999999998,"L5N04","TS4L5-RAM64",1,"64GB - 2RX4 DDR4 RDIMM 3200MHz","64GB - 2RX4 DDR4 RDIMM 3200MHz","L5N04-OpzRAM64GB","AA799110","DELL","TS4L6-RAM64-NVME",null,null,null,"AA79SNPP2MYXC/64G","SNPP2MYXC/64G"]
["L5N05",5,"OpzGigabit",27.82,"L5N05","TS4L5-LAN1",1,"Broadcom 5720 DP 1Gb Network Interface Card,Full Height","Broadcom 5720 DP 1Gb Network Interface Card,Full Height","L5N05-OpzGigabit","540-BBGX","DELL","TS4L6-LAN1-NVME",1,2,3,"540-XF9VF","XF9VF"]
["L5N75",5,"OpzGigabit",27.82,"L5N05b","TS4L5-LAN1",1,"Broadcom 5720 DP 1Gb Network Interface Card, Low Profile ","Broadcom 5720 DP 1Gb Network Interface Car, Low Profile ","L5N75-OpzGigabitLP","540-BBHB","DELL","TS4L6-LAN1-L-NVME",4,null,null,"540-W0N4T","W0N4T"]
["L5N06",6,"OpzGigabit10Gbps",149.99,"L5N06","TS4L5-LAN10",1,"Broadcom 57414 Dual Port 10/25GbE SFP28 Adapter, PCIe Full Height + Optics","Broadcom 57414 Dual Port 10/25GbE SFP28 Adapter, PCIe Full Height + Optics","L5N06-OpzGigabit10Gbps","540-BBUP","DELL","TS4L6-LAN10-NVME",1,2,3,"540-H6N50","H6N50"]
[null,null,null,null,null,null,2,"Dell Networking, Transceiver, SFP+, 10GbE, SR, 850nm Wavelength, 300m Reach - Kit","Dell Networking, Transceiver, SFP+, 10GbE, SR, 850nm Wavelength, 300m Reach - Kit",null,"407-BBOU","DELL",null,null,null,null,"407-4Y8DN","4Y8DN"]
["L5N76",6,"OpzGigabit10Gbps",149.99,"L5N06b","TS4L5-LAN10",1,"Broadcom 57414 Dual Port 25Gb, SFP28, PCIe Adapter, LOW PROFILE + Optics","Broadcom 57414 Dual Port 25Gb, SFP28, PCIe Adapter, LOW PROFILE + Optics","L5N76-OpzGigabit10GbpsLP","540-BBVL","DELL","TS4L6-LAN10-L-NVME",4,null,null,"540-N7R67","N7R67"]
[null,null,null,null,null,null,2,"Dell Networking, Transceiver, SFP+, 10GbE, SR, 850nm Wavelength, 300m Reach","Dell Networking, Transceiver, SFP+, 10GbE, SR, 850nm Wavelength, 300m Reach",null,"407-BBOU","DELL",null,null,null,null,"407-4Y8DN","4Y8DN"]
["L5N07",7,"OpzGigabit25Gbps",233.31,"L5N07","TS4L5-LAN25",1,"Intel Ethernet XXV710 Dual Port 25GbE SFP28 Adapter, PCIe Full Height + Optics","Intel Ethernet XXV710 Dual Port 25GbE SFP28 Adapter, PCIe Full Height + Optics","L5N07-OpzGigabit25Gbps","540-BBYI","DELL","TS4L6-LAN25-NVME",1,2,3,"540-86P4V","86P4V"]
[null,null,null,null,null,null,2,"Dell Networking, Transceiver, 25GbE SFP28 SR, No FEC, MMF, Duplex LC","Dell Networking, Transceiver, 25GbE SFP28 SR, No FEC, MMF, Duplex LC",null,"407-BCHI","DELL",null,null,null,null,"407-PY7V9","PY7V9"]
["L5N77",7,"OpzGigabit25Gbps",233.31,"L5N07b","TS4L5-LAN25",1,"Intel Ethernet XXV710 Dual Port 25GbE SFP28 Adapter, PCIe Low Profile + Optics","Intel Ethernet XXV710 Dual Port 25GbE SFP28 Adapter, PCIe Low Profile + Optics","L5N77-OpzGigabit25GbpsLP","540-BBZO","DELL","TS4L6-LAN25-L-NVME",4,null,null,"540-9RVF0","9RVF0"]
[null,null,null,null,null,null,2,"Dell Networking, Transceiver, 25GbE SFP28 SR, No FEC, MMF, Duplex LC","Dell Networking, Transceiver, 25GbE SFP28 SR, No FEC, MMF, Duplex LC",null,"407-BBXU","DELL",null,null,null,null,"407-PY7V9","PY7V9"]
["L5N08",8,"OpzGigabit10Gbps CNA",143.16999999999999,"L5N08","TS4L5-CNA10",1,"CNA QLogic 41262 Dual Port 10Gb SFP28 Adapter, Full Height +10 Gbps Optics","CNA QLogic 41262 Dual Port 10Gb SFP28 Adapter, Full Height +10 Gbps Optics","L5N08-OpzCNA10Gbps","540-BBYH","DELL","TS4L6-CNA10-NVME",1,2,3,"540-42H35","42H35"]
[null,null,null,null,null,null,2,"Dell Networking, Transceiver, SFP+, 10GbE, SR, 850nm Wavelength, 300m Reach - Kit","Dell Networking, Transceiver, SFP+, 10GbE, SR, 850nm Wavelength, 300m Reach - Kit",null,"407-BBOU","DELL",null,null,null,null,"407-4Y8DN","4Y8DN"]
["L5N78",8,"OpzGigabit10Gbps CNA",143.16999999999999,"L5N08b","TS4L5-CNA10",1,"CNA QLogic 41262 Dual Port 10Gb SFP28 Adapter, Low Profile + 10 Gbps Optics","CNA QLogic 41262 Dual Port 10Gb SFP28 Adapter, Low Profile + 10 Gbps Optics","L5N78-OpzCNA10GbpsLP","540-BBZM","DELL","TS4L6-CNA10-L-NVME",4,null,null,"540-01CN1","01CN1"]
[null,null,null,null,null,null,2,"Dell Networking, Transceiver, SFP+, 10GbE, SR, 850nm Wavelength, 300m Reach - Kit","Dell Networking, Transceiver, SFP+, 10GbE, SR, 850nm Wavelength, 300m Reach - Kit",null,"407-BBOU","DELL",null,null,null,null,"407-4Y8DN","4Y8DN"]
["L5N09",9,"Opz10Gigabit BaseT",137.87,"L5N09","TS4L5-BaseT",1,"Intel X710-T2L Dual Port 10GbE BASE-T Adapter, PCIe Full Height","Intel X710-T2L Dual Port 10GbE BASE-T Adapter, PCIe Full Height","L5N09-Opz-BaseT","540-BCSC","DELL","TS4L6-BaseT-NVME",1,2,3,"403-YH1DK","YH1DK"]
["L5N79",9,"Opz10Gigabit BaseT",137.87,"L5N09b","TS4L5- BaseT-L",1,"Intel X710-T2L Dual Port 10GbE BASE-T Adapter, PCIe LP","Intel X710-T2L Dual Port 10GbE BASE-T Adapter, PCIe LP","L5N79-Opz-BaseT","403-BBMT","DELL","TS4L6- BaseT-L-NVME",4,null,null,"403-P0TRP","P0TRP"]
["L5N10",10,"OpzFibreChannel",426.52,"L5N10","TS4L5- FibreChannel",1,"QLogic 2772 Dual Port 32Gb Fibre Channel HBA, PCIe Full Height + Optics","QLogic 2772 Dual Port 32Gb Fibre Channel HBA, PCIe Full Height + Optics","L5N10-OpzFibreChannel","540-BDHC","DELL","TS4L6- FibreChannel-NVME",4,null,null,"403-P0TRP","P0TRP"]
["L5N101",10,"OpzFibreChannel",426.52,"L5N10","TS4L5- FibreChannel",1,"QLogic 2772 Dual Port 32GbE Fibre Channel HBA, PCIe Low Profile + Optics","QLogic 2772 Dual Port 32GbE Fibre Channel HBA, PCIe Low Profile + Optics","L5N10-OpzFibreChannel","540-BDGU","DELL","TS4L6- FibreChannel-NVME",4,null,null,"403-P0TRP","P0TRP"]
["L5N11",11,"OpzHDD2TB",137.87,"L5N11","TS4L5-HDD2TB",1,"2.4TB 10k SAS ISE 12Gbps","2.4TB 10k 512e SAS ISE 12Gbps 2.5in Hot Plug Hard Drive","L5N10-OpzHDD2TB","400-BEGI","DELL","TS4L6-HDD2TB-NVME",null,null,null,"400-HTMGW","HTMGW"]
["L5N12",12,"OpzHDD1TB",79.540000000000006,"L5N12","TS4L5-HDD1TB",1,"1.2TB 10K RPM SAS ISE 12Gbps","1.2TB 10k 512n SAS ISE 12Gbps 2.5in Hot Plug Hard Drive","L5N11-OpzHDD1TB","400-ATJL","DELL","TS4L6-HDD1TB-NVME",null,null,null,"400-400-ATJL","400-ATJL"]
["L5N13",13,"OpzSSD-RI3,8TB",944.35,"L5N13","TS4L5-SSD-RI3,8TB",1,"3.84TB SSD SAS ISE RI 12Gbps","3.84TB SSD SAS ISE RI 12Gbps 512e 2.5in PM6 Hot-Plug 1 DWPD","L5N12-OpzSSD-RI3,8TB","345-BBXY","DELL","TS4L6-SSD-RI3,8TB-NVME",null,null,null,"400-PDNT1","PDNT1"]
["L5N14",14,"OpzSSD-RI1,6TB",533.28,"L5N14","TS4L5-SSD-RI1,6TB",1,"1.92TB SSD SAS ISE RI 12Gbps","1.92TB SSD SAS ISE RI 12Gbps 512e 2.5in Hot-Plug 1 DWP","L5N13-OpzSSD-RI1,6TB","345-BBYK","DELL","TS4L6-SSD-RI1,6TB-NVME",null,null,null,"400-2H59H","2H59H"]
["L5N15",15,"OpzSSD-MU1,6TB",442.13,"L5N15","TS4L5-SSD-MU1,6TB",1,"1.6TB SSD SAS ISE MU 12Gbps","1.6TB SSD SAS ISE MU 12Gbps 512e 2.5in Hot-Plug PM6 3 DWPD","L5N14-OpzSSD-MU1,6TB","345-BCIP","DELL","TS4L6-SSD-MU1,6TB-NVME",null,null,null,"400-CDPWY","CDPWY"]
["L5N16",16,"OpzSSD-RI800GB",265.13,"L5N16","TS4L5-SSD-RI800GB",1,"960GB SSD SAS ISE RI 12Gbps","960GB SSD SAS ISE RI 12Gbps 512e 2.5in Hot-Plug 1 DWPD","L5N15-OpzSSD-RI800GB","345-BBYU","DELL","TS4L6-SSD-RI800GB-NVME",null,null,null,"400-VPV60","VPV60"]
["L5N17",17,"OpzSSD-MU800GB",275.73,"L5N17","TS4L5-SSD-MU800GB",1,"800GB SSD SAS ISE Mix Use 12Gbps","800GB SSD SAS ISE Mix Use 12Gbps 512e 2.5in Hot-plug, 3 DWPD","L5N16-OpzSSD-MU800GB","400-AZII","DELL","TS4L6-SSD-MU800GB-NVME",null,null,null,"400-MW0DK","MW0DK"]
["L5N18",19,"OpzUps (3000VA)",386.02,"L5N19","TS4L5-UPS",1,"Dispositivo UPS di tipo On-line doppia conversione, strutturato per il montaggio a rack da 19”","Dispositivo UPS di tipo On-line doppia conversione, strutturato per il montaggio a rack da 19”","L5N19-OpzUps","RPMM9/3K",null,"TS4L6-UPS-NVME",null,null,null,"RPMMRPMM9/3K","RPMM9/3K"]
[null,null,null,null,null,null,null,null,null,null,null,null,null,null,null,null,""]
["L5N19",20,"OpzGUI",491.62,"L5N20","TS4L5-GUI",1,"Unità KVM - monitor 17\", cavo combi PS/2&USB da 1,8mt, tastiera italiana, touch pad","Unità KVM - monitor 17\", cavo combi PS/2&USB da 1,8mt, tastiera italiana, touch pad","L5N20-OpzGUI","F9857N",null,"TS4L6-GUI-NVME",null,null,null,"F985F9857N","F9857N"]
["L5N20",21,"OpzKVM",552.47,"L5N21","TS4L5-KVM",1,"KVM Switch IP per GUI 16P","KVM Switch IP per GUI 16P","L5N21-OpzKVM","T9816NIP",null,"TS4L6-KVM-NVME",null,null,null,"T981T9816NIP","T9816NIP"]
["L5N21",22,"OpzWinServSTD",728.99,"L5N22","TS4L5-WINSRVSTD",1,"Windows Server 2022,Standard,ROK,16CORE","Windows Server 2022,Standard,ROK,16CORE","L5N22-OpzWinServSTD","634-BYKR","DELL","TS4L6-WINSRVSTD-NVME",null,null,null,"634-634-BSFX","634-BSFX"]
["L5N22",23,"OpzDeviceCal",25.45,"L5N23","TS4L5-WINDEVCAL",1,"1-pack of Windows Server 2022/2019 Device CALs (STD or DC)","1-pack of Windows Server 2022/2019 Device CALs (STD or DC)","L5N23-OpzDeviceCal","634-BYLD","DELL","TS4L6-WINDEVCAL-NVME",null,null,null,"623-623-BBCV","623-BBCV"]
["L5N23",24,"OpzUserCal",34.64,"L5N24","TS4L5-WINUSRCAL",1,"1-pack of Windows Server 2022/2019 User CALs (STD or DC)","1-pack of Windows Server 2022/2019 User CALs (STD or DC)","L5N24-OpzUserCal","634-BYKZ","DELL","TS4L6-WINUSRCAL-NVME",null,null,null,"623-623-BBCT","623-BBCT"]
["L5N24",25,"OpzWinServSTD2core",93.75,"L5N25","TS4L5-WINSRV2C",1,"Windows Server 2022 Standard Edition, Add License,2CORE","Windows Server 2022 Standard Edition, Add License,2CORE","L5N25-OpzWinServSTD2core","634-BYKQ","DELL","TS4L6-WINSRV2C-NVME",null,null,null,"634-634-BSGS","634-BSGS"]
["L5N25",26,"OpzOpenSource",38.89,"L5N26","TS4L5-LINUX",1,"Ubuntu Server 22.04 LTS 64 Bit","Ubuntu Server 22.04 LTS 64 Bit","L5N26-OpzOpenSource",null,null,"TS4L6-LINUX-NVME",null,null,null,""]
["L5N26",29,"OpzHDDRetention",34.85,"L5N29","TS4L5-HDRTN36",1,"Hard Disk Retention 36 mesi","Hard Disk Retention 36 mesi","L5N29-OpzHDDRetention36","785-10921","DELL","TS4L6-HDRTN60-NVME",1,2,3,"405-V5FKR","V5FKR"]
["L5N26b",29,"OpzHDDRetention60",58.08,"L5N29b","TS4L5-HDRTN60",1,"Hard Disk Retention 60 mesi","Hard Disk Retention 60 mesi","L5N29-OpzHDDRetention60","785-10921","DELL","TS4L6-HDRTN60-NVME",1,2,3,"405-V5FKR","V5FKR"]
["L5N27",30,"OpzEstensione24",258.74,"L5N30","TS4L5-OpzEst24",1,"Estensione della manutenzione in garanzia per ulteriori 24 mesi","Estensione della manutenzione in garanzia per ulteriori 24 mesi","L5N30-OpzEst24","P6142NCONSIP",null,"TS4L6-OpzEst24-NVME",null,null,null,"P614P6142NCONSIP","P6142NCONSIP"]
["L5N28",31,"OpzRack",579.63,"L5N31","TS4L5-RACK",1,"Armadio Rack 42U","Armadio Rack 42U","L5N31-OpzRack","P6142NCONSIP",null,"TS4L6-RACK-NVME",null,null,null,"P614P6142NCONSIP","P6142NCONSIP"]
["L5N44",44,null,null,"L5N44",null,1,"PERC H750 Adapter","PERC H750 Adapter",null,"405-AAMX","DELL",null,4,null,null,"405-39M19","39M19"]
["L5N45",45,null,null,"L5N45",null,1,"Customer Kit,Card,Controller,H740P,Minicard","Customer Kit,Card,Controller,H740P,Minicard",null,"405-AANL","DELL",null,"int",null,null,"405-4R84R","4R84R"]
["L5N49",49,"OpzPSU1600W",0,"L5N49","TS4L5-PSU1600W",1,"Dual, Hot-plug, Redundant Power Supply (1+1), 1600W, 250 Volt","Dual, Hot-plug, Redundant Power Supply (1+1), 1600W, 250 Volt",null,"450-AEBL","DELL",null,null,null,null,"450-T4RTF","T4RTF"]
["L5N30",32,"OpzSSD7,68RI",2851.61,"L5N30","TS4L5-SSD7,68RI",1,"7.68TB SSD RI SAS ISE 12Gbps","7.68TB SSD RI SAS ISE 12Gbps 512e 2.5in PM1643a Hot-Plug 1 DWPD","L5N30-SSD7,68",null,null,{"$f":"CONCATENATE(A55,\"-\",F55)","v":"L5N30-TS4L5-SSD7,68RI"}]
["L5N31",36,"Opz40GB-I",682.11,"L5N31","TS4L5-40GB-I",1,"Intel XL710 Dual Port 40G, QSFP+, Full Height","Intel XL710 Dual Port 40G, QSFP+, Full Height","L5N31-OT40GB",null,null,{"$f":"CONCATENATE(A56,\"-\",F56)","v":"L5N31-TS4L5-40GB-I"}]
["L5N32",38,"Opz100GB-M",741.66,"L5N32","TS4L5-100GB-M",1,"Mellanox ConnectX-6 DX Dual Port 100GbE QSFP56 Network Adapter, Low Profile","Mellanox ConnectX-6 DX Dual Port 100GbE QSFP56 Network Adapter, Low Profile","L5N32-100GBCX",null,null,"L5N32-TS4L5-100GB-M"]
["L5N33",39,"Opz100GB-B",684.82,"L5N33","TS4L5-100GB-B",1,"Broadcom 57508 Dual Port 100GbE QSFP Adapter, PCIe Low Profile","Broadcom 57508 Dual Port 100GbE QSFP Adapter, PCIe Full Height","L5N33-100GB",null,null,"L5N33-TS4L5-100GB-B"]
["L5N34",41,"Opz100GB_INF",1020.46,"L5N34","TS4L5-100GB_INF",1,"Mellanox ConnectX-6 Single Port HDR100 QSFP56 Infiniband Adapter, PCIe Low Profile","Mellanox ConnectX-6 Single Port HDR100 QSFP56 Infiniband Adapter, PCIe Low Profile","L5N34-100GB_M",null,null,"L5N34-TS4L5-100GB_INF"]
["L5N35",42,"OpzBOSS",0,"L5N35","TS4L5-BOSS",1,"BOSS controller card + with 2 M.2 Sticks 480GB (RAID 1),FH","BOSS controller card + with 2 M.2 Sticks 480GB (RAID 1),FH","TS4L5-BOSS",null,null,"L5N35-TS4L5-BOSS"]
["L5N36",50,"OpzOT10GB",17.59,"L5N36","TS4L5-OT10GB",1,"SFP+ SR Optic for all SFP+ ports except high temp validation warning cards","SFP+ SR Optic for all SFP+ ports except high temp validation warning cards","L5N36-OpzOT10GB",null,null,"L5N36-TS4L5-OT10GB"]
["L5N37",51,"OpzOT25GB",112.33,"L5N37","TS4L5-OT25GB",1,"SFP28 SR Optic, 25GbE, 85C, for all SFP28 ports","SFP28 SR Optic, 25GbE, 85C, for all SFP28 ports","L5N37-OpzOT25GB",null,null,"L5N37-TS4L5-OT25GB"]
["L5N38",52,"OpzOT40GB",73.08,"L5N38","TS4L5-OT40GB",null,"Dell Networking, Transceiver, 40GbE QSFP+ SR4 Optics, MPO, 850nmWavelength, 100-150m Reach on OM3/OM4","Dell Networking, Transceiver, 40GbE QSFP+ SR4 Optics, MPO, 850nmWavelength, 100-150m Reach on OM3/OM4","L5N38-OpzOT40GB",null,null,"L5N38-TS4L5-OT40GB"]
["L5N39",53,"OpzOT100GB",485.87,"L5N39","TS4L5-OT100GB",1,"Dell EMC PowerEdge QSFP28 SR4 100GbE 85C optic","Dell EMC PowerEdge QSFP28 SR4 100GbE 85C optic","L5N38-OpzOT100GB",null,null,"L5N39-TS4L5-OT100GB"]
["L5N40",54,"OpzPERC",100007,"L5N40","TS4L5-OpzPERC",1,"HBA330+ Adapter FH for R940","HBA330+ Adapter FH for R940","TS4L5-PERC",null,null,"L5N40-TS4L5-OpzPERC"]
["L5N41",55,"OpzCMA",100007,"L5N41","TS4L5-OpzCMA",1,"\tCable Management Arm for PowerEdge Systems - Kit","\tCable Management Arm for PowerEdge Systems - Kit","TS4L5-CMA",null,null,{"$f":"CONCATENATE(A66,\"-\",F66)","v":"L5N41-TS4L5-OpzCMA"}]
["L5N42",56,"Opz4CPU-2TB",5876.9,"L5N42","TS4L5-4CPU-2TB",1,"\tkit TS4L5-4CPU-2TB (include BOSS card 2 x ssd per boot)","kit TS4L5-4CPU-2TB (include BOSS card 2 x ssd per boot)","L5N42-4CPU-2TB",null,null,{"$f":"CONCATENATE(A67,\"-\",F67)","v":"L5N42-TS4L5-4CPU-2TB"}]